﻿Directorate,Service,Division,Responsible Unit,Expense Type,Payment Date,Trans No,Net Amount,Supplier Name
Place,General Fund/Council Fund,Homelessness,Hmlss Fams-Management,Educational/Training Supplies - Resources,02/08/2019,5252494,300.00,Significant (UK) LTD
Place,General Fund/Council Fund,Homelessness,Hmlss Fams -Hsing Managmnt & Proc Team,Stationery,23/08/2019,5270187,370.00,M&L Signs Ltd
Place,General Fund/Council Fund,Homelessness,Hmlss Fams -Hsing Managmnt & Proc Team,Services - Professional Fees - Counsel's Fees,02/08/2019,5274450,"1,811.25",42 Bedford Row
Place,General Fund/Council Fund,Homelessness,Hmlss Fams -Hsing Managmnt & Proc Team,Services - Professional Fees - Legal Fees/Expenses,02/08/2019,5274454,325.00,42 Bedford Row
Place,General Fund/Council Fund,Homelessness,Hmlss Fams-Priv Lic Accom,Third Party Payments - Temporary Accommodation Rents - One Room,02/08/2019,5274444,"3,000.00",Cromwood Housing Ltd
Place,General Fund/Council Fund,Homelessness,Hmlss Fams-Priv Lic Accom,Third Party Payments - Temporary Accommodation Rents - One Room,02/08/2019,5274899,"5,218.23",Ace Property Finder
Place,General Fund/Council Fund,Homelessness,Hmlss Fams-Priv Lic Accom,Third Party Payments - Temporary Accommodation Rents - One Room,02/08/2019,5274900,"83,824.47",Buildvantage
Place,General Fund/Council Fund,Homelessness,Hmlss Fams-Priv Lic Accom,Third Party Payments - Temporary Accommodation Rents - One Room,02/08/2019,5274901,"17,860.85",Buxton Homes Poplar Limited
Place,General Fund/Council Fund,Homelessness,Hmlss Fams-Priv Lic Accom,Third Party Payments - Temporary Accommodation Rents - One Room,02/08/2019,5274902,"1,838.00",Capital Homes
Place,General Fund/Council Fund,Homelessness,Hmlss Fams-Priv Lic Accom,Third Party Payments - Temporary Accommodation Rents - One Room,02/08/2019,5274905,"74,369.11",elliot leigh property management ltd
Place,General Fund/Council Fund,Homelessness,Hmlss Fams-Priv Lic Accom,Third Party Payments - Temporary Accommodation Rents - One Room,02/08/2019,5274906,"9,967.74",Keymove Estates Limited
Place,General Fund/Council Fund,Homelessness,Hmlss Fams-Priv Lic Accom,Third Party Payments - Temporary Accommodation Rents - One Room,02/08/2019,5274910,"127,913.21",Matkap
Place,General Fund/Council Fund,Homelessness,Hmlss Fams-Priv Lic Accom,Third Party Payments - Temporary Accommodation Rents - One Room,02/08/2019,5274911,"21,749.54",MBRC Investments LTD t/a 1st Capital Homes
Place,General Fund/Council Fund,Homelessness,Hmlss Fams-Priv Lic Accom,Third Party Payments - Temporary Accommodation Rents - One Room,02/08/2019,5274912,"4,084.25",Meadway Properties LTD
Place,General Fund/Council Fund,Homelessness,Hmlss Fams-Priv Lic Accom,Third Party Payments - Temporary Accommodation Rents - One Room,02/08/2019,5274914,"2,136.83",Midos Management Company Ltd
Place,General Fund/Council Fund,Homelessness,Hmlss Fams-Priv Lic Accom,Third Party Payments - Temporary Accommodation Rents - One Room,02/08/2019,5274917,"4,628.30",Pearce Properties Investments Limited
Place,General Fund/Council Fund,Homelessness,Hmlss Fams-Priv Lic Accom,Third Party Payments - Temporary Accommodation Rents - One Room,02/08/2019,5274922,"1,395.00",St James Asset Management Limited
Place,General Fund/Council Fund,Homelessness,Hmlss Fams-Priv Lic Accom,Third Party Payments - Temporary Accommodation Rents - One Room,07/08/2019,5275206,"4,845.30",ADAM HARRIS ESTATES
Place,General Fund/Council Fund,Homelessness,Hmlss Fams-Priv Lic Accom,Third Party Payments - Temporary Accommodation Rents - One Room,07/08/2019,5275207,"15,035.31",AMI PROPERTIES LIMITED
Place,General Fund/Council Fund,Homelessness,Hmlss Fams-Priv Lic Accom,Third Party Payments - Temporary Accommodation Rents - One Room,07/08/2019,5275208,"2,945.00",Apolonia Property Services (Exodus Housing)
Place,General Fund/Council Fund,Homelessness,Hmlss Fams-Priv Lic Accom,Third Party Payments - Temporary Accommodation Rents - One Room,07/08/2019,5275209,"43,251.94",Barry Stewart and Sons Ltd
Place,General Fund/Council Fund,Homelessness,Hmlss Fams-Priv Lic Accom,Third Party Payments - Temporary Accommodation Rents - One Room,07/08/2019,5275210,"2,046.00",Bercleys Properties LTD
Place,General Fund/Council Fund,Homelessness,Hmlss Fams-Priv Lic Accom,Third Party Payments - Temporary Accommodation Rents - One Room,07/08/2019,5275211,"73,377.31",CITY HOUSING PARTNERSHIP LTD
Place,General Fund/Council Fund,Homelessness,Hmlss Fams-Priv Lic Accom,Third Party Payments - Temporary Accommodation Rents - One Room,07/08/2019,5275212,"1,538.22",Das Properties LTD
Place,General Fund/Council Fund,Homelessness,Hmlss Fams-Priv Lic Accom,Third Party Payments - Temporary Accommodation Rents - One Room,07/08/2019,5275213,"30,468.18",D & G lettings Ltd
Place,General Fund/Council Fund,Homelessness,Hmlss Fams-Priv Lic Accom,Third Party Payments - Temporary Accommodation Rents - One Room,07/08/2019,5275214,863.66,Has & Sons Investments
Place,General Fund/Council Fund,Homelessness,Hmlss Fams-Priv Lic Accom,Third Party Payments - Temporary Accommodation Rents - One Room,07/08/2019,5275215,"163,342.09",METROPOLITAN & CROWN
Place,General Fund/Council Fund,Homelessness,Hmlss Fams-Priv Lic Accom,Third Party Payments - Temporary Accommodation Rents - One Room,07/08/2019,5275216,"7,758.08",Pynnacle Assets
Place,General Fund/Council Fund,Homelessness,Hmlss Fams-Priv Lic Accom,Third Party Payments - Temporary Accommodation Rents - One Room,07/08/2019,5275217,"21,147.25",Rent Connect Housing Ltd
Place,General Fund/Council Fund,Homelessness,Hmlss Fams-Priv Lic Accom,Third Party Payments - Temporary Accommodation Rents - One Room,07/08/2019,5278054,"40,305.96",Wentworth Estates
Place,General Fund/Council Fund,Homelessness,Hmlss Fams-Priv Lic Accom,Third Party Payments - Temporary Accommodation Rents - One Room,07/08/2019,5278055,"48,191.64",Apex Housing Solutions Ltd
Place,General Fund/Council Fund,Homelessness,Hmlss Fams-Priv Lic Accom,Third Party Payments - Temporary Accommodation Rents - One Room,09/08/2019,5278558,"105,855.16",Ample Properties & Finance
Place,General Fund/Council Fund,Homelessness,Hmlss Fams-Priv Lic Accom,Third Party Payments - Temporary Accommodation Rents - One Room,09/08/2019,5278730,"1,425.88",METROPOLITAN & CROWN
Place,General Fund/Council Fund,Homelessness,Hmlss Fams-Priv Lic Accom,Third Party Payments - Temporary Accommodation Rents - One Room,09/08/2019,5278731,"1,621.88",METROPOLITAN & CROWN
Place,General Fund/Council Fund,Homelessness,Hmlss Fams-Priv Lic Accom,Third Party Payments - Temporary Accommodation Rents - One Room,09/08/2019,5278732,457.16,METROPOLITAN & CROWN
Place,General Fund/Council Fund,Homelessness,Hmlss Fams-Priv Lic Accom,Third Party Payments - Temporary Accommodation Rents - One Room,09/08/2019,5278733,272.47,METROPOLITAN & CROWN
Place,General Fund/Council Fund,Homelessness,Hmlss Fams-Priv Lic Accom,Third Party Payments - Temporary Accommodation Rents - One Room,09/08/2019,5278734,303.41,METROPOLITAN & CROWN
Place,General Fund/Council Fund,Homelessness,Hmlss Fams-Priv Lic Accom,Third Party Payments - Temporary Accommodation Rents - One Room,09/08/2019,5278735,529.88,METROPOLITAN & CROWN
Place,General Fund/Council Fund,Homelessness,Hmlss Fams-Priv Lic Accom,Third Party Payments - Temporary Accommodation Rents - One Room,09/08/2019,5278736,483.10,METROPOLITAN & CROWN
Place,General Fund/Council Fund,Homelessness,Hmlss Fams-Priv Lic Accom,Third Party Payments - Temporary Accommodation Rents - One Room,09/08/2019,5278737,712.43,METROPOLITAN & CROWN
Place,General Fund/Council Fund,Homelessness,Hmlss Fams-Priv Lic Accom,Third Party Payments - Temporary Accommodation Rents - One Room,09/08/2019,5278738,276.78,METROPOLITAN & CROWN
Place,General Fund/Council Fund,Homelessness,Hmlss Fams-Priv Lic Accom,Third Party Payments - Temporary Accommodation Rents - One Room,09/08/2019,5278739,368.01,METROPOLITAN & CROWN
Place,General Fund/Council Fund,Homelessness,Hmlss Fams-Priv Lic Accom,Third Party Payments - Temporary Accommodation Rents - One Room,09/08/2019,5279325,"6,729.79",Altwood Properties
Place,General Fund/Council Fund,Homelessness,Hmlss Fams-Priv Lic Accom,Third Party Payments - Temporary Accommodation Rents - One Room,09/08/2019,5279326,619.92,Dockside Property Services
Place,General Fund/Council Fund,Homelessness,Hmlss Fams-Priv Lic Accom,Third Party Payments - Temporary Accommodation Rents - One Room,09/08/2019,5279327,"37,404.20",IKON ESTATES GROUP LTD
Place,General Fund/Council Fund,Homelessness,Hmlss Fams-Priv Lic Accom,Third Party Payments - Temporary Accommodation Rents - One Room,09/08/2019,5279331,"5,443.91",Limeco Associates Ltd
Place,General Fund/Council Fund,Homelessness,Hmlss Fams-Priv Lic Accom,Third Party Payments - Temporary Accommodation Rents - One Room,09/08/2019,5279332,"76,014.24",louisianna properties
Place,General Fund/Council Fund,Homelessness,Hmlss Fams-Priv Lic Accom,Third Party Payments - Temporary Accommodation Rents - One Room,16/08/2019,5279334,"1,472.50",Maritime Properties
Place,General Fund/Council Fund,Homelessness,Hmlss Fams-Priv Lic Accom,Third Party Payments - Temporary Accommodation Rents - One Room,09/08/2019,5279336,"36,410.98",RENT ASSURED PROPERTY SERVICES
Place,General Fund/Council Fund,Homelessness,Hmlss Fams-Priv Lic Accom,Third Party Payments - Temporary Accommodation Rents - One Room,09/08/2019,5279338,"2,480.00",The Housing Network
Place,General Fund/Council Fund,Homelessness,Hmlss Fams-Priv Lic Accom,Third Party Payments - Temporary Accommodation Rents - One Room,09/08/2019,5279344,"54,202.85",TERRA FIRMA PROPERTY SERVICES UK
Place,General Fund/Council Fund,Homelessness,Hmlss Fams-Priv Lic Accom,Third Party Payments - Temporary Accommodation Rents - One Room,16/08/2019,5282187,"38,424.30",Apex Housing Solutions Ltd
Place,General Fund/Council Fund,Homelessness,Hmlss Fams-Priv Lic Accom,Third Party Payments - Temporary Accommodation Rents - One Room,16/08/2019,5282188,"3,109.68",FAIRDEAL PROPERTY & FINANCIAL SERVICES
Place,General Fund/Council Fund,Homelessness,Hmlss Fams-Priv Lic Accom,Third Party Payments - Temporary Accommodation Rents - One Room,16/08/2019,5282189,"34,701.85",Sovereign Residential
Place,General Fund/Council Fund,Homelessness,Hmlss Fams-Priv Lic Accom,Third Party Payments - Temporary Accommodation Rents - One Room,16/08/2019,5282190,"2,362.00",UK Property Let
Place,General Fund/Council Fund,Homelessness,Hmlss Fams-Priv Lic Accom,Third Party Payments - Temporary Accommodation Rents - One Room,16/08/2019,5282272,"38,102.44",Tower Estates (Lodge) Ltd
Place,General Fund/Council Fund,Homelessness,Hmlss Fams-Priv Lic Accom,Third Party Payments - Temporary Accommodation Rents - One Room,16/08/2019,5282301,"5,000.00",Easymove EA Ltd
Place,General Fund/Council Fund,Homelessness,Hmlss Fams-Priv Lic Accom,Third Party Payments - Temporary Accommodation Rents - One Room,16/08/2019,5282305,707.59,Easymove EA Ltd
Place,General Fund/Council Fund,Homelessness,Hmlss Fams-Priv Lic Accom,Third Party Payments - Temporary Accommodation Rents - One Room,19/08/2019,5282903,550.62,Apolonia Property Services (Exodus Housing)
Place,General Fund/Council Fund,Homelessness,Hmlss Fams-Priv Lic Accom,Third Party Payments - Temporary Accommodation Rents - One Room,21/08/2019,5283131,"97,268.42",Fairview Lets
Place,General Fund/Council Fund,Homelessness,Hmlss Fams-Priv Lic Accom,Third Party Payments - Temporary Accommodation Rents - One Room,28/08/2019,5286577,"26,294.32",Housing Britain
Place,General Fund/Council Fund,Homelessness,Hmlss Fams-Priv Lic Accom,Third Party Payments - Temporary Accommodation Rents - One Room,28/08/2019,5286580,"39,865.07",RENT ASSURED PROPERTY SERVICES
Place,General Fund/Council Fund,Homelessness,Hmlss Fams-Priv Lic Accom,Third Party Payments - Temporary Accommodation Rents - One Room,28/08/2019,5286581,"184,596.04",Assetgrove
Place,General Fund/Council Fund,Homelessness,Hmlss Fams-Priv Lic Accom,Third Party Payments - Temporary Accommodation Rents - One Room,28/08/2019,5286616,"3,000.00",Fairview Lets
Place,General Fund/Council Fund,Homelessness,Hmlss Fams-Priv Lic Accom,Third Party Payments - Temporary Accommodation Rents - One Room,28/08/2019,5289178,"218,059.96",HAMLETTS LTD
Place,General Fund/Council Fund,Homelessness,Hmlss Fams-Priv Lic Accom,Third Party Payments - Temporary Accommodation Rents - One Room,30/08/2019,5289709,"40,258.87",Mears Housing Management Ltd
Place,General Fund/Council Fund,Homelessness,Hmlss Fams-Priv Lic Accom,Third Party Payments - Temporary Accommodation Rents - One Room,30/08/2019,5289709,"27,072.61",Mears Housing Management Ltd
Place,General Fund/Council Fund,Homelessness,Hmlss Fams-Priv Lic Accom,Third Party Payments - Temporary Accommodation Rents - One Room,30/08/2019,5289709,"-11,233.75",Mears Housing Management Ltd
Place,General Fund/Council Fund,Homelessness,Hmlss Fams-Priv Lic Accom,Third Party Payments - Temporary Accommodation Rents - One Room,30/08/2019,5289709,"-1,417.32",Mears Housing Management Ltd
Place,General Fund/Council Fund,Homelessness,Hmlss Fams-Priv Lic Accom,Third Party Payments - Temporary Accommodation Rents - One Room,30/08/2019,5289880,"51,959.36",Easymove EA Ltd
Place,General Fund/Council Fund,Homelessness,Hmlss Fams-Priv Lic Accom,Third Party Payments - Temporary Accommodation Rents - One Room,30/08/2019,5289882,"108,608.03",LETTINGS INTERNATIONAL
Place,General Fund/Council Fund,Homelessness,Hmlss Fams-Priv Lic Accom,Third Party Payments - Temporary Accommodation Rents - One Room,30/08/2019,5290385,"33,292.20",Denhan International
Place,General Fund/Council Fund,Homelessness,Hmlss Fams-Priv Lic Accom,Third Party Payments - Temporary Accommodation Rents - One Room,30/08/2019,5290386,"46,952.04",Wentworth Estates
Place,General Fund/Council Fund,Homelessness,Hmlss Fams-Priv Lic Accom,Third Party Payments - Temporary Accommodation Rents - One Room,30/08/2019,5290387,885.98,CITY FINANCIAL CONSULTANCY
Place,General Fund/Council Fund,Homelessness,Hmlss Fams-Priv Lic Accom,Third Party Payments - Service Charges for Private Licenced Accommodation (PLA),21/08/2019,5283296,897.75,Buildvantage
Place,General Fund/Council Fund,Homelessness,Hmlss Fams-Priv Lic Accom,Third Party Payments - Service Charges for Private Licenced Accommodation (PLA),21/08/2019,5283311,"2,424.69",Buildvantage
Place,General Fund/Council Fund,Homelessness,Hmlss Fams-Priv Lic Accom,Third Party Payments - Rent Incentives,21/08/2019,5283321,812.55,Buildvantage
Place,General Fund/Council Fund,Homelessness,Hmlss Fams-Bed and Breakfast,Meeting Expenses,02/08/2019,5266968,"8,091.00",George IV Regency Hotel
Place,General Fund/Council Fund,Homelessness,Hmlss Fams-Bed and Breakfast,Meeting Expenses,02/08/2019,5274837,"13,149.00",Shuttleworth (UK) Ltd
Place,General Fund/Council Fund,Homelessness,Hmlss Fams-Bed and Breakfast,Meeting Expenses,02/08/2019,5274838,"10,372.00",Shuttleworth (UK) Ltd
Place,General Fund/Council Fund,Homelessness,Hmlss Fams-Bed and Breakfast,Meeting Expenses,02/08/2019,5274839,"26,133.00",Shuttleworth (UK) Ltd
Place,General Fund/Council Fund,Homelessness,Hmlss Fams-Bed and Breakfast,Meeting Expenses,02/08/2019,5274840,"8,835.00",Shuttleworth (UK) Ltd
Place,General Fund/Council Fund,Homelessness,Hmlss Fams-Bed and Breakfast,Meeting Expenses,02/08/2019,5274842,"1,140.00",Shuttleworth (UK) Ltd
Place,General Fund/Council Fund,Homelessness,Hmlss Fams-Bed and Breakfast,Meeting Expenses,02/08/2019,5274843,"27,317.00",Shuttleworth (UK) Ltd
Place,General Fund/Council Fund,Homelessness,Hmlss Fams-Bed and Breakfast,Meeting Expenses,02/08/2019,5274844,"10,950.00",Shuttleworth (UK) Ltd
Place,General Fund/Council Fund,Homelessness,Hmlss Fams-Bed and Breakfast,Meeting Expenses,14/08/2019,5278671,"15,714.00",Shuttleworth (UK) Ltd
Place,General Fund/Council Fund,Homelessness,Hmlss Fams-Bed and Breakfast,Meeting Expenses,14/08/2019,5278672,"11,092.00",Shuttleworth (UK) Ltd
Place,General Fund/Council Fund,Homelessness,Hmlss Fams-Bed and Breakfast,Meeting Expenses,14/08/2019,5278673,"26,342.00",Shuttleworth (UK) Ltd
Place,General Fund/Council Fund,Homelessness,Hmlss Fams-Bed and Breakfast,Meeting Expenses,14/08/2019,5278674,"8,518.00",Shuttleworth (UK) Ltd
Place,General Fund/Council Fund,Homelessness,Hmlss Fams-Bed and Breakfast,Meeting Expenses,14/08/2019,5278675,"29,664.00",Shuttleworth (UK) Ltd
Place,General Fund/Council Fund,Homelessness,Hmlss Fams-Bed and Breakfast,Meeting Expenses,14/08/2019,5278676,"11,593.00",Shuttleworth (UK) Ltd
Place,General Fund/Council Fund,Homelessness,Hmlss Fams-Bed and Breakfast,Meeting Expenses,14/08/2019,5278686,252.00,PARK HOTEL
Place,General Fund/Council Fund,Homelessness,Hmlss Fams-Bed and Breakfast,Meeting Expenses,14/08/2019,5278687,"24,120.00",PARK HOTEL
Place,General Fund/Council Fund,Homelessness,Hmlss Fams-Bed and Breakfast,Meeting Expenses,14/08/2019,5279474,960.00,Apolonia Property Services (Exodus Housing)
Place,General Fund/Council Fund,Homelessness,Hmlss Fams-Bed and Breakfast,Meeting Expenses,14/08/2019,5279552,"27,221.00",PARK HOTEL
Place,General Fund/Council Fund,Homelessness,Hmlss Fams-Bed and Breakfast,Meeting Expenses,30/08/2019,5279889,"2,340.00",Metro Properties Ltd
Place,General Fund/Council Fund,Homelessness,Hmlss Fams-Bed and Breakfast,Meeting Expenses,19/08/2019,5279901,"3,884.00",Apolonia Property Services (Exodus Housing)
Place,General Fund/Council Fund,Homelessness,Hmlss Fams-Bed and Breakfast,Meeting Expenses,19/08/2019,5282469,"17,534.00",Metro Properties Ltd
Place,General Fund/Council Fund,Homelessness,Hmlss Fams-Bed and Breakfast,Meeting Expenses,30/08/2019,5286474,"4,545.00",Metro Properties Ltd
Place,General Fund/Council Fund,Homelessness,Hmlss Fams-Bed and Breakfast,Meeting Expenses,28/08/2019,5286476,945.00,Metro Properties Ltd
Place,General Fund/Council Fund,Homelessness,Hmlss Fams-Bed and Breakfast,Meeting Expenses,23/08/2019,5286481,"14,191.00",George IV Regency Hotel
Place,General Fund/Council Fund,Homelessness,Hmlss Fams-Bed and Breakfast,Meeting Expenses,30/08/2019,5286569,"3,744.00",COMMONGATE HOTELS LTD
Place,General Fund/Council Fund,Homelessness,Hmlss Fams-Bed and Breakfast,Third Party Payments - Temporary Accommodation Rents - One Room,02/08/2019,5274841,646.00,Shuttleworth (UK) Ltd
Place,General Fund/Council Fund,Homelessness,Hmlss Fams-Bed and Breakfast,Third Party Payments - Housing Options� Storage,30/08/2019,5290398,681.43,Grays Removals
Place,General Fund/Council Fund,Homelessness,Hmlss Fams-Dilapidations,Third Party Payments - Temporary Accommodation Rents - One Room,02/08/2019,5274480,760.00,Sovereign Residential
Place,General Fund/Council Fund,Homelessness,Hmlss Fams-Dilapidations,Third Party Payments - Temporary Accommodation Rents - One Room,09/08/2019,5278845,"1,105.00",Fairview Lets
Place,General Fund/Council Fund,Homelessness,Hmlss Fams-Dilapidations,Third Party Payments - Temporary Accommodation Rents - One Room,09/08/2019,5279324,"1,910.00",Fairview Lets
Place,General Fund/Council Fund,Homelessness,Hmlss Fams-Dilapidations,Third Party Payments - Temporary Accommodation Rents - One Room,16/08/2019,5282326,"1,200.00",Fairview Lets
Place,General Fund/Council Fund,Homelessness,Hmlss Fams-Dilapidations,Third Party Payments - Temporary Accommodation Rents - Three Rooms,09/08/2019,5278844,"1,510.00",Fairview Lets
Place,General Fund/Council Fund,Homelessness,Hmlss Fams-Dilapidations,Third Party Payments - Temporary Accommodation Rents - Two Rooms,16/08/2019,5282325,745.00,Sovereign Residential
Place,General Fund/Council Fund,Homelessness,Hmlss Fams-Casch Incent(Fams),Third Party Payments - Rent Incentives,16/08/2019,5279614,"4,500.00",T J Miller Ltd
Place,General Fund/Council Fund,Homelessness,Hmlss Fams-NST Properties,Kitchen Supplies - Domestic Equipment,30/08/2019,5290453,565.50,Lodge Group Furniture Supply LTD
Place,General Fund/Council Fund,Homelessness,Hmlss Fams-NST Properties,Kitchen Supplies - Domestic Equipment,30/08/2019,5290454,663.30,Lodge Group Furniture Supply LTD
Place,General Fund/Council Fund,Homelessness,Hmlss Fams-NST Properties,Kitchen Supplies - Domestic Equipment,30/08/2019,5290455,678.40,Lodge Group Furniture Supply LTD
Place,General Fund/Council Fund,Homelessness,Hmlss Fams-NST Properties,Kitchen Supplies - Domestic Equipment,30/08/2019,5290456,"1,043.60",Lodge Group Furniture Supply LTD
Place,General Fund/Council Fund,Homelessness,Hmlss Fams-NST Properties,Kitchen Supplies - Domestic Equipment,30/08/2019,5290457,540.00,Lodge Group Furniture Supply LTD
Place,General Fund/Council Fund,Homelessness,Hmlss Fams-NST Properties,Kitchen Supplies - Domestic Equipment,30/08/2019,5290458,938.40,Lodge Group Furniture Supply LTD
Place,General Fund/Council Fund,Homelessness,Hmlss Fams-NST Properties,Kitchen Supplies - Domestic Equipment,30/08/2019,5290460,"1,379.52",Lodge Group Furniture Supply LTD
Place,General Fund/Council Fund,Homelessness,Hmlss Fams-NST Properties,Kitchen Supplies - Domestic Equipment,30/08/2019,5290461,765.20,Lodge Group Furniture Supply LTD
Place,General Fund/Council Fund,Homelessness,Hmlss Fams-NST Properties,Kitchen Supplies - Domestic Equipment,30/08/2019,5290462,441.60,Lodge Group Furniture Supply LTD
Place,General Fund/Council Fund,Homelessness,Hmlss Fams-NST Properties,Kitchen Supplies - Domestic Equipment,30/08/2019,5290463,456.25,Lodge Group Furniture Supply LTD
Place,General Fund/Council Fund,Homelessness,Hmlss Fams-NST Properties,Kitchen Supplies - Domestic Equipment,30/08/2019,5290464,"1,066.00",Lodge Group Furniture Supply LTD
Place,General Fund/Council Fund,Homelessness,Hmlss Fams-NST Properties,Kitchen Supplies - Domestic Equipment,30/08/2019,5290465,950.28,Lodge Group Furniture Supply LTD
Place,General Fund/Council Fund,Homelessness,Hmlss Fams-NST Properties,Kitchen Supplies - Domestic Equipment,30/08/2019,5290466,"1,117.60",Lodge Group Furniture Supply LTD
Place,General Fund/Council Fund,Homelessness,Hmlss Fams-NST Properties,Kitchen Supplies - Domestic Equipment,30/08/2019,5290467,272.00,Lodge Group Furniture Supply LTD
Place,General Fund/Council Fund,Homelessness,Hmlss Fams-NST Properties,Kitchen Supplies - Domestic Equipment,30/08/2019,5290468,"1,053.60",Lodge Group Furniture Supply LTD
Place,General Fund/Council Fund,Homelessness,Hmlss Fams-NST Properties,Kitchen Supplies - Domestic Equipment,30/08/2019,5290469,636.80,Lodge Group Furniture Supply LTD
Place,General Fund/Council Fund,Homelessness,Hmlss Fams-NST Properties,Kitchen Supplies - Domestic Equipment,30/08/2019,5290470,606.40,Lodge Group Furniture Supply LTD
Place,General Fund/Council Fund,Homelessness,Hmlss Fams-NST Properties,Kitchen Supplies - Domestic Equipment,30/08/2019,5290471,987.20,Lodge Group Furniture Supply LTD
Place,General Fund/Council Fund,Homelessness,Hmlss Fams-NST Properties,Kitchen Supplies - Domestic Equipment,30/08/2019,5290472,696.40,Lodge Group Furniture Supply LTD
Place,General Fund/Council Fund,Homelessness,Hmlss Fams-NST Properties,Kitchen Supplies - Domestic Equipment,30/08/2019,5290473,850.46,Lodge Group Furniture Supply LTD
Place,General Fund/Council Fund,Homelessness,Hmlss Fams-NST Properties,Office Furniture/Equipment,02/08/2019,5245164,530.25,Lodge Group Furniture Supply LTD
Place,General Fund/Council Fund,Homelessness,Hmlss Fams-NST Properties,Third Party Payments - Temporary Accommodation Rents - One Room,16/08/2019,5282620,"1,441.88",Jollygate Limited
Place,No Service Specified,No Division Specified,Conversion to TA 1-4-1,Other External Fees - Consultants Fees,28/08/2019,5279939,"3,707.72",Blakeney Leigh Ltd
Place,No Service Specified,No Division Specified,Conversion to TA 1-4-1,Other External Fees - Consultants Fees,28/08/2019,5279940,"4,500.00",Blakeney Leigh Ltd
Place,No Service Specified,No Division Specified,Community Hubs/Buildings - HRA,Other External Fees - Architects Fees,14/08/2019,5274793,"5,200.00",Bloom Procurement Services Limited
Place,No Service Specified,No Division Specified,Community Hubs/Buildings - HRA,Other External Fees - Architects Fees,14/08/2019,5274966,"5,200.00",Bloom Procurement Services Limited
Place,No Service Specified,No Division Specified,Community Hubs/Buildings - HRA,Building Works - Main Works,05/08/2019,5265393,"127,300.00",T & B Contractors
Place,No Service Specified,No Division Specified,DFG (Post Jul 03)-Mandatory,Grants to 3rd Parties - Renovation Grants,09/08/2019,5278810,"9,250.00",Evolve AMs UK Ltd
Place,No Service Specified,No Division Specified,DFG (Post Jul 03)-Mandatory,Grants to 3rd Parties - Renovation Grants,14/08/2019,5279812,"3,968.40",SIMRIC (UK) LTD
Place,No Service Specified,No Division Specified,DFG (Post Jul 03)-Mandatory,Grants to 3rd Parties - Renovation Grants,21/08/2019,5283322,"1,225.00",SIMRIC (UK) LTD
Place,No Service Specified,No Division Specified,DFG (Post Jul 03)-Man L/Lord,Grants to 3rd Parties - Renovation Grants,02/08/2019,5274270,"1,699.20",Clarion Housing Group
Place,No Service Specified,No Division Specified,DFG (Post Jul 03)-Man L/Lord,Grants to 3rd Parties - Renovation Grants,02/08/2019,5274442,"4,975.00",Evolve AMs UK Ltd
Place,No Service Specified,No Division Specified,DFG (Post Jul 03)-Man L/Lord,Grants to 3rd Parties - Renovation Grants,02/08/2019,5274445,"6,478.20",COMCARE ENVIRONMENTAL SERVICES
Place,No Service Specified,No Division Specified,DFG (Post Jul 03)-Man L/Lord,Grants to 3rd Parties - Renovation Grants,02/08/2019,5274446,"5,162.81",One Housing Group
Place,No Service Specified,No Division Specified,DFG (Post Jul 03)-Man L/Lord,Grants to 3rd Parties - Renovation Grants,02/08/2019,5274447,"8,102.18",One Housing Group
Place,No Service Specified,No Division Specified,DFG (Post Jul 03)-Man L/Lord,Grants to 3rd Parties - Renovation Grants,02/08/2019,5274451,"5,340.00",One Housing Group
Place,No Service Specified,No Division Specified,DFG (Post Jul 03)-Man L/Lord,Grants to 3rd Parties - Renovation Grants,09/08/2019,5278762,"6,107.00",Creative Support
Place,No Service Specified,No Division Specified,DFG (Post Jul 03)-Man L/Lord,Grants to 3rd Parties - Renovation Grants,09/08/2019,5278806,"5,930.00",One Housing Group
Place,No Service Specified,No Division Specified,DFG (Post Jul 03)-Man L/Lord,Grants to 3rd Parties - Renovation Grants,14/08/2019,5279838,"7,980.00",ACCESS AUTOMATION LTD
Place,No Service Specified,No Division Specified,DFG (Post Jul 03)-Man L/Lord,Grants to 3rd Parties - Renovation Grants,16/08/2019,5282618,"6,596.20",COMCARE ENVIRONMENTAL SERVICES
Place,No Service Specified,No Division Specified,DFG (Post Jul 03)-Man L/Lord,Grants to 3rd Parties - Renovation Grants,16/08/2019,5282619,"4,065.10",COMCARE ENVIRONMENTAL SERVICES
Place,No Service Specified,No Division Specified,DFG (Post Jul 03)-Man L/Lord,Grants to 3rd Parties - Renovation Grants,16/08/2019,5282621,"3,498.70",COMCARE ENVIRONMENTAL SERVICES
Place,No Service Specified,No Division Specified,DFG (Post Jul 03)-Man L/Lord,Grants to 3rd Parties - Renovation Grants,16/08/2019,5282651,"5,345.40",Clarion Housing Group
Place,No Service Specified,No Division Specified,DFG (Post Jul 03)-Man L/Lord,Grants to 3rd Parties - Renovation Grants,16/08/2019,5282655,"5,398.50",Clarion Housing Group
Place,No Service Specified,No Division Specified,DFG (Post Jul 03)-Man L/Lord,Grants to 3rd Parties - Renovation Grants,21/08/2019,5282859,"21,730.05",T.E.B. Builders
Place,No Service Specified,No Division Specified,DFG (Post Jul 03)-Man L/Lord,Grants to 3rd Parties - Renovation Grants,21/08/2019,5283313,"6,203.90",SIMRIC (UK) LTD
Place,No Service Specified,No Division Specified,DFG (Post Jul 03)-Man L/Lord,Grants to 3rd Parties - Renovation Grants,21/08/2019,5283316,"8,593.50",Avenue Property Construction
Place,Planning Services,Economic Development,Employment & Skills,Contract Cleaning,28/08/2019,5275349,"1,762.74",Wetton Cleaning Services LTD
Place,Planning Services,Economic Development,Employment & Skills,Computing - Purchase of Software,12/08/2019,5266450,"6,588.00",BKSB Ltd
Place,Planning Services,Economic Development,Employment & Skills,Education & Training - Non Staff Tuition Fees,05/08/2019,5274932,"1,053.00",ILM (A City & Guilds Group Business)
Place,Planning Services,Economic Development,Employment & Skills,Employment Training Payments,21/08/2019,5282265,"1,160.00",Institute of Employability Professionals
Place,Planning Services,Economic Development,Employment & Skills,Third Party Payments - Joint Arrangements,21/08/2019,5283191,"1,114.00",Arcus Global Limited
Place,Planning Services,Economic Development,Employment & Skills,Third Party Payments - Joint Arrangements,21/08/2019,5283192,"62,500.00",Arcus Global Limited
Place,Environmental and Regulatory Services,Regulatory Services,"Corporate Health & Safety		",Staff Advertising,19/08/2019,5271414,"1,636.78",Penna PLC
Place,Planning Services,Community Development,Tower Hamlets Connectivity Programme,Third Party Payments - Consultants Fees,23/08/2019,5274965,"4,975.00",Social Streets C.I.C
Place,Corporate & Democratic Core,Corporate Management,Tackling Poverty,Staff Advertising,19/08/2019,5271415,294.88,Penna PLC
Place,Corporate & Democratic Core,Corporate Management,Tackling Poverty,Services - Professional Fees - Financial Services Fees,30/08/2019,5289830,"20,000.00",Toynbee Hall
Place,Corporate & Democratic Core,Corporate Management,Tackling Poverty,Third Party Payments - Other Agencies,21/08/2019,5279216,"50,000.00",Social Finance Ltd
Place,Corporate & Democratic Core,Corporate Management,Facilities Management,Agency Staff,02/08/2019,5262900,"1,826.50",Hays Specialist Recruitment Ltd
Place,Corporate & Democratic Core,Corporate Management,Facilities Management,Agency Staff,02/08/2019,5263217,"1,079.76",Hays Specialist Recruitment Ltd
Place,Corporate & Democratic Core,Corporate Management,Facilities Management,Agency Staff,14/08/2019,5267559,"1,799.60",Hays Specialist Recruitment Ltd
Place,Corporate & Democratic Core,Corporate Management,Facilities Management,Agency Staff,14/08/2019,5267561,"1,826.50",Hays Specialist Recruitment Ltd
Place,Corporate & Democratic Core,Corporate Management,Facilities Management,Agency Staff,14/08/2019,5267562,719.84,Hays Specialist Recruitment Ltd
Place,Corporate & Democratic Core,Corporate Management,Facilities Management,Agency Staff,30/08/2019,5277549,"1,799.60",Hays Specialist Recruitment Ltd
Place,Corporate & Democratic Core,Corporate Management,Facilities Management,Agency Staff,28/08/2019,5279479,359.92,Hays Specialist Recruitment Ltd
Place,Corporate & Democratic Core,Corporate Management,Facilities Management,Training Expenses - Staff External Training (UK Based),23/08/2019,5271667,"13,671.45",International Workplace Ltd
Place,Corporate & Democratic Core,Corporate Management,Facilities Management,Uniforms & Clothing,16/08/2019,5267129,514.78,Burlington Uniforms Ltd
Place,Corporate & Democratic Core,Corporate Management,Facilities Management,Uniforms & Clothing,23/08/2019,5283075,"1,777.98",Burlington Uniforms Ltd
Place,Corporate & Democratic Core,Corporate Management,Facilities Management,Office Furniture/Equipment,07/08/2019,5265694,"2,460.00",Unique Office Solutions
Place,Corporate & Democratic Core,Corporate Management,Facilities Management,Office Furniture/Equipment,07/08/2019,5265695,"2,460.00",Unique Office Solutions
Place,Corporate & Democratic Core,Corporate Management,Postal Services,Comms - Courier,05/08/2019,5266970,"4,410.80",ROYAL MAIL
Place,Corporate & Democratic Core,Corporate Management,Postal Services,Comms - Courier,12/08/2019,5266971,"4,280.39",ROYAL MAIL
Place,Corporate & Democratic Core,Corporate Management,Postal Services,Comms - Courier,16/08/2019,5282202,"5,195.05",ROYAL MAIL
Place,Corporate & Democratic Core,Corporate Management,Handy Person Service Team,Tools and Equipment - Purchase,02/08/2019,5257921,"1,030.37",TOWER DIY
Place,Corporate & Democratic Core,Corporate Management,Handy Person Service Team,Tools and Equipment - Purchase,09/08/2019,5270205,266.26,LSDM LIMITED T/A LEYLAND SDM
Place,Corporate & Democratic Core,Corporate Management,Handy Person Service Team,Tools and Equipment - Purchase,28/08/2019,5275292,479.60,TOWER DIY
Place,Corporate & Democratic Core,Corporate Management,Facilities Management Income,Repairs and Maintenance - Responsive - Heating Systems,14/08/2019,5271378,"5,389.00",Controlcare Ltd
Place,Corporate & Democratic Core,Corporate Management,Facilities Management Income,Computing - Internet,28/08/2019,5279499,371.75,Virgin Media Business
Place,No Service Specified,No Division Specified,CLM Service Charges,Service Charges,05/08/2019,5267589,"2,870.01",Pinnacle Places
Place,No Service Specified,No Division Specified,CLM Service Charges,Service Charges,07/08/2019,5274990,"34,486.34",Eastend Homes LTD
Place,No Service Specified,No Division Specified,CLM Energy,Electricity,19/08/2019,5282866,270.00,EDF Energy Customer Field Services
Place,No Service Specified,No Division Specified,CLM Energy,Water Services - Metered,09/08/2019,5278817,329.70,CASTLE WATER
Place,No Service Specified,No Division Specified,CLM Energy,Water Services - Metered,16/08/2019,5282294,486.77,CASTLE WATER
Place,No Service Specified,No Division Specified,CLM Energy,Water Services - Metered,16/08/2019,5282294,414.44,CASTLE WATER
Place,No Service Specified,No Division Specified,CLM Contract Cleaning,Contract Cleaning,23/08/2019,5275340,"8,406.76",Wetton Cleaning Services LTD
Place,No Service Specified,No Division Specified,"CLM Reactive R&M 		",Repairs and Maintenance - Responsive - Electrical,19/08/2019,5271092,360.75,Edmundson Electrical LTD
Place,No Service Specified,No Division Specified,"CLM Reactive R&M 		",Repairs and Maintenance - Responsive - Electrical,21/08/2019,5271095,"5,678.52",Edmundson Electrical LTD
Place,No Service Specified,No Division Specified,"CLM Reactive R&M 		",Repairs and Maintenance - Responsive - Electrical,21/08/2019,5271097,"2,760.00",Edmundson Electrical LTD
Place,No Service Specified,No Division Specified,"CLM Reactive R&M 		",Repairs and Maintenance - Responsive - Electrical,23/08/2019,5271661,395.70,Edmundson Electrical LTD
Place,No Service Specified,No Division Specified,"CLM Reactive R&M 		",Repairs and Maintenance - Responsive - General,21/08/2019,5271094,374.76,Edmundson Electrical LTD
Place,No Service Specified,No Division Specified,"CLM Reactive R&M 		",Repairs and Maintenance - Responsive - General,23/08/2019,5271339,419.90,The Maintenance Supply Co Ltd
Place,No Service Specified,No Division Specified,"CLM Reactive R&M 		",Repairs and Maintenance - Responsive - Heating Systems,28/08/2019,5289105,"1,184.00",Controlcare Ltd
Place,No Service Specified,No Division Specified,"CLM Reactive R&M 		",Repairs and Maintenance - Responsive - Mechanical,14/08/2019,5275284,695.00,Eales Shutters Ltd
Place,No Service Specified,No Division Specified,"CLM Reactive R&M 		",Repairs and Maintenance - Responsive - Security,21/08/2019,5270170,680.00,JC Coster (Metalworks) Ltd
Place,No Service Specified,No Division Specified,"CLM Reactive R&M 		",Repairs and Maintenance - Responsive - Security,09/08/2019,5271367,"15,000.00",surelock security systems ltd
Place,No Service Specified,No Division Specified,"CLM Reactive R&M 		",Repairs and Maintenance - Responsive - Security,23/08/2019,5271550,560.00,JC Coster (Metalworks) Ltd
Place,No Service Specified,No Division Specified,"CLM Reactive R&M 		",Repairs and Maintenance - Responsive - Security,14/08/2019,5275331,"1,160.00",surelock security systems ltd
Place,No Service Specified,No Division Specified,"CLM Reactive R&M 		",Repairs and Maintenance - Programmed - Security,28/08/2019,5275335,"2,661.67",Openview Security Solutions Ltd
Place,No Service Specified,No Division Specified,"CLM Planned Maintenance 		",Repairs and Maintenance - Programmed - Security,28/08/2019,5282241,"26,468.55",Openview Security Solutions Ltd
Place,No Service Specified,No Division Specified,"CLM Planned Maintenance 		",Repairs and Maintenance - Programmed - Health and Safety,14/08/2019,5279212,"2,695.00",Lawrence Webster Forrest Limited
Place,No Service Specified,No Division Specified,"CLM Planned Maintenance 		",Repairs and Maintenance - Programmed - Health and Safety,21/08/2019,5279213,"3,180.00",Lawrence Webster Forrest Limited
Place,No Service Specified,No Division Specified,"CLM Planned Maintenance 		",Repairs and Maintenance - Programmed - Health and Safety,28/08/2019,5289070,"1,925.00",Lawrence Webster Forrest Limited
Place,No Service Specified,No Division Specified,CLM Grounds Maintenance,Grounds Maintenance - Contract - Horticultural Maintenance,30/08/2019,5274974,"5,056.49",Aspire Community Works
Place,No Service Specified,No Division Specified,Pest Control (Surveys and Work),Environmental Health Supplies - Baits and Poisons,23/08/2019,5274367,380.00,Nightshift Pest Control Limited
Place,Highways and Transport Services,Public Transport,Mobility Support,Services - Professional Fees - Partnership Arrangement,28/08/2019,5275310,723.24,Allied Publicity Services (Manchester) Limited
Place,Cultural and Related Services,Open Spaces,Green Team,Repairs and Maintenance - Responsive - Repair & Maintenance,07/08/2019,5257869,420.00,JC Coster (Metalworks) Ltd
Place,Cultural and Related Services,Open Spaces,Green Team,Repairs and Maintenance - Responsive - Repair & Maintenance,07/08/2019,5258819,"2,450.00",JC Coster (Metalworks) Ltd
Place,Cultural and Related Services,Open Spaces,Green Team,Repairs and Maintenance - Responsive - Repair & Maintenance,12/08/2019,5265618,625.00,JC Coster (Metalworks) Ltd
Place,Cultural and Related Services,Open Spaces,Green Team,Repairs and Maintenance - Responsive - Repair & Maintenance,14/08/2019,5266420,560.00,JC Coster (Metalworks) Ltd
Place,Cultural and Related Services,Open Spaces,Green Team,Repairs and Maintenance - Responsive - Repair & Maintenance,21/08/2019,5270993,280.00,JC Coster (Metalworks) Ltd
Place,Cultural and Related Services,Open Spaces,Green Team,Repairs and Maintenance - Responsive - Repair & Maintenance,23/08/2019,5271320,875.00,JC Coster (Metalworks) Ltd
Place,Cultural and Related Services,Open Spaces,Green Team,Community Equipment  Supplies - Non Store Items,02/08/2019,5274855,"6,755.25",Amethyst Horticulture Ltd
Place,No Service Specified,No Division Specified,Capital-Major Works (CS),Other External Fees - Other External Fees,23/08/2019,5275053,"7,500.00",We Made That
Place,No Service Specified,No Division Specified,Capital-Major Works (CS),Building Works - Main Works,02/08/2019,5258631,550.00,The Play Inspection Company
Place,No Service Specified,No Division Specified,Capital-Major Works (CS),Building Works - Main Works,07/08/2019,5265201,"1,250.00",Maher Anjum Associates Ltd
Place,No Service Specified,No Division Specified,Capital-Major Works (CS),Building Works - Main Works,07/08/2019,5265202,"1,250.00",Maher Anjum Associates Ltd
Place,No Service Specified,No Division Specified,Capital-Major Works (CS),Building Works - Main Works,14/08/2019,5279700,"1,740.00",Community Link Trading Ltd
Place,No Service Specified,No Division Specified,Capital-Major Works (CS),Building Works - Main Works,23/08/2019,5286089,"1,000.00",Kompan UK
Place,No Service Specified,No Division Specified,Capital-Major Works (CS),Other Capital Payments - Other capital costs,14/08/2019,5238232,"9,891.18",PSG Solutions Ltd
Place,No Service Specified,No Division Specified,Capital-Major Works (CS),Computer Equipment,28/08/2019,5212914,"2,404.78",Agilisys Professional Services
Place,No Service Specified,No Division Specified,Capital-Major Works (CS),Computer Equipment,23/08/2019,5230405,"1,744.96",Agilisys Professional Services
Place,No Service Specified,No Division Specified,Capital-Major Works (CS),Computer Equipment,23/08/2019,5250090,"5,957.05",Agilisys Professional Services
Place,No Service Specified,No Division Specified,Capital-Major Works (CS),Computer Equipment,28/08/2019,5267057,"6,282.88",Agilisys Professional Services
Place,No Service Specified,No Division Specified,Capital-Major Works (CS),Computer Equipment,30/08/2019,5279267,"6,816.92",Agilisys Professional Services
Place,Planning Services,Community Development,Estates & Valuations,Services - Professional Fees - Consultants Fees,02/08/2019,5267653,"5,500.00",GERALD EVE LLP
Place,Planning Services,Community Development,Estates & Valuations,Services - Professional Fees - Consultants Fees,21/08/2019,5282768,"5,365.00",One Consulting Group
Place,Planning Services,Community Development,Estates & Valuations,Services - Professional Fees - Consultants Fees,28/08/2019,5282769,"7,282.50",One Consulting Group
Place,Highways and Transport Services,"Transport Planning, Policy and Strategy",Public Realm Management,Comms - Purchase of Equipment,28/08/2019,5212914,"1,491.80",Agilisys Professional Services
Place,Highways and Transport Services,"Transport Planning, Policy and Strategy",Public Realm Management,Comms - Purchase of Equipment,23/08/2019,5230405,"1,082.48",Agilisys Professional Services
Place,Highways and Transport Services,"Transport Planning, Policy and Strategy",Public Realm Management,Comms - Purchase of Equipment,23/08/2019,5250090,"3,695.44",Agilisys Professional Services
Place,Highways and Transport Services,"Transport Planning, Policy and Strategy",Public Realm Management,Comms - Purchase of Equipment,28/08/2019,5267057,"3,897.57",Agilisys Professional Services
Place,Highways and Transport Services,"Transport Planning, Policy and Strategy",Public Realm Management,Comms - Purchase of Equipment,30/08/2019,5279267,"4,228.86",Agilisys Professional Services
Place,Environmental and Regulatory Services,Waste Disposal,Waste Mobilisation Team,Training Expenses - Staff External Training (UK Based),21/08/2019,5279504,"15,322.00",Bloom Procurement Services Limited
Place,Highways and Transport Services,Structural Maintenance,Bridges & Structures,Payments to Private Contractors - Private Contractor,02/08/2019,5274408,"1,403.00",London Bridges Engineering Group
Place,Environmental and Regulatory Services,Waste Disposal,Contracts Development Team,Community Equipment  Supplies - Non Store Items,30/08/2019,5286650,460.23,MILLDOME LTD
Place,Environmental and Regulatory Services,Waste Disposal,Programme Team,Services - Professional Fees - Environmental Services Fees,23/08/2019,5279480,"3,200.00",Wise Owl Business Solutions Ltd
Place,Environmental and Regulatory Services,Waste Disposal,Clean and Green Management Team,Other Allowance - Other Staff Expenses,19/08/2019,5267540,"1,995.00",Keep Britain Tidy
Place,Environmental and Regulatory Services,Street Cleansing (not chargeable to highways),Street Cleansing,Payments to Private Contractors - Private Contractor,30/08/2019,5286635,888.70,VEOLIA ENVIRONMENTAL SERVICES PLC
Place,Environmental and Regulatory Services,Street Cleansing (not chargeable to highways),Street Cleansing,Payments to Private Contractors - Private Contractor,30/08/2019,5286636,264.54,VEOLIA ENVIRONMENTAL SERVICES PLC
Place,Environmental and Regulatory Services,Waste Disposal,Street Care,Other Sales and Fees - Scaffolding & Hoarding Perm.,09/08/2019,5278751,705.00,Curo Construction
Place,Environmental and Regulatory Services,Waste Disposal,Waste Disposal,Payments to Private Contractors - Private Contractor,21/08/2019,5270197,"764,805.01",Cory Environmental LTD T/A Cory Riverside Energy
Place,Environmental and Regulatory Services,Waste Disposal,Waste Disposal,Payments to Private Contractors - Private Contractor,30/08/2019,5289735,"80,678.77",Bywaters
Place,Other Operating Income and Expenditure,Trading Account Surpluses and Deficits,Client Fleet Mngmnt,Spare Parts,16/08/2019,5267237,307.50,Universal Tyre & Autocentre
Place,Other Operating Income and Expenditure,Trading Account Surpluses and Deficits,Client Fleet Mngmnt,Spare Parts,21/08/2019,5274883,296.56,Quarterman Windsreens LTD
Place,Other Operating Income and Expenditure,Trading Account Surpluses and Deficits,Client Fleet Mngmnt,Transport Dept Charges,14/08/2019,5266422,"1,251.70",London Hire Ltd
Place,Other Operating Income and Expenditure,Trading Account Surpluses and Deficits,Client Fleet Mngmnt,Transport Dept Charges,28/08/2019,5274747,"2,150.00",London Hire Ltd
Place,Other Operating Income and Expenditure,Trading Account Surpluses and Deficits,Client Fleet Mngmnt,Transport Dept Charges,28/08/2019,5274748,"2,150.00",London Hire Ltd
Place,Other Operating Income and Expenditure,Trading Account Surpluses and Deficits,Client Fleet Mngmnt,Transport Dept Charges,28/08/2019,5274749,"2,150.00",London Hire Ltd
Place,Other Operating Income and Expenditure,Trading Account Surpluses and Deficits,Client Fleet Mngmnt,Transport Dept Charges,21/08/2019,5278577,336.00,London Hire Ltd
Place,Other Operating Income and Expenditure,Trading Account Surpluses and Deficits,Client Fleet Mngmnt,Transport Dept Charges,21/08/2019,5278578,686.74,London Hire Ltd
Place,Other Operating Income and Expenditure,Trading Account Surpluses and Deficits,Client Fleet Mngmnt,Transport Dept Charges,23/08/2019,5278579,"3,758.93",London Hire Ltd
Place,Other Operating Income and Expenditure,Trading Account Surpluses and Deficits,Client Fleet Mngmnt,Transport Dept Charges,28/08/2019,5278580,"1,410.00",London Hire Ltd
Place,Other Operating Income and Expenditure,Trading Account Surpluses and Deficits,Client Fleet Mngmnt,Transport Dept Charges,28/08/2019,5278581,"2,150.00",London Hire Ltd
Place,Other Operating Income and Expenditure,Trading Account Surpluses and Deficits,Client Fleet Mngmnt,Transport Dept Charges,28/08/2019,5278582,"1,410.00",London Hire Ltd
Place,Other Operating Income and Expenditure,Trading Account Surpluses and Deficits,Client Fleet Mngmnt,Transport Dept Charges,28/08/2019,5278583,"1,410.00",London Hire Ltd
Place,Other Operating Income and Expenditure,Trading Account Surpluses and Deficits,Client Fleet Mngmnt,Transport Dept Charges,28/08/2019,5278584,"3,166.34",London Hire Ltd
Place,Other Operating Income and Expenditure,Trading Account Surpluses and Deficits,Client Fleet Mngmnt,Transport Dept Charges,28/08/2019,5278587,301.81,London Hire Ltd
Place,Other Operating Income and Expenditure,Trading Account Surpluses and Deficits,Client Fleet Mngmnt,Transport Dept Charges,28/08/2019,5278588,301.81,London Hire Ltd
Place,Other Operating Income and Expenditure,Trading Account Surpluses and Deficits,Client Fleet Mngmnt,Transport Dept Charges,28/08/2019,5278589,321.89,London Hire Ltd
Place,Other Operating Income and Expenditure,Trading Account Surpluses and Deficits,Client Fleet Mngmnt,Transport Dept Charges,28/08/2019,5278590,301.81,London Hire Ltd
Place,Other Operating Income and Expenditure,Trading Account Surpluses and Deficits,Client Fleet Mngmnt,Transport Dept Charges,28/08/2019,5278591,335.42,London Hire Ltd
Place,Other Operating Income and Expenditure,Trading Account Surpluses and Deficits,Client Fleet Mngmnt,Transport Dept Charges,28/08/2019,5278592,320.00,London Hire Ltd
Place,Other Operating Income and Expenditure,Trading Account Surpluses and Deficits,Client Fleet Mngmnt,Transport Dept Charges,28/08/2019,5278593,301.81,London Hire Ltd
Place,Other Operating Income and Expenditure,Trading Account Surpluses and Deficits,Client Fleet Mngmnt,Transport Dept Charges,28/08/2019,5278594,728.50,London Hire Ltd
Place,Other Operating Income and Expenditure,Trading Account Surpluses and Deficits,Client Fleet Mngmnt,Transport Dept Charges,28/08/2019,5278599,"1,410.00",London Hire Ltd
Place,Other Operating Income and Expenditure,Trading Account Surpluses and Deficits,Client Fleet Mngmnt,Transport Dept Charges,28/08/2019,5278600,320.00,London Hire Ltd
Place,Other Operating Income and Expenditure,Trading Account Surpluses and Deficits,Client Fleet Mngmnt,Transport Dept Charges,28/08/2019,5278601,320.00,London Hire Ltd
Place,Other Operating Income and Expenditure,Trading Account Surpluses and Deficits,Client Fleet Mngmnt,Transport Dept Charges,28/08/2019,5278602,"1,992.99",London Hire Ltd
Place,Other Operating Income and Expenditure,Trading Account Surpluses and Deficits,Client Fleet Mngmnt,Transport Dept Charges,28/08/2019,5278603,320.00,London Hire Ltd
Place,Other Operating Income and Expenditure,Trading Account Surpluses and Deficits,Client Fleet Mngmnt,Transport Dept Charges,28/08/2019,5278604,320.00,London Hire Ltd
Place,Other Operating Income and Expenditure,Trading Account Surpluses and Deficits,Client Fleet Mngmnt,Transport Dept Charges,28/08/2019,5278605,"2,150.00",London Hire Ltd
Place,Other Operating Income and Expenditure,Trading Account Surpluses and Deficits,Client Fleet Mngmnt,Transport Dept Charges,28/08/2019,5278606,"1,528.00",London Hire Ltd
Place,Other Operating Income and Expenditure,Trading Account Surpluses and Deficits,Client Fleet Mngmnt,Transport Dept Charges,28/08/2019,5278607,"2,150.00",London Hire Ltd
Place,Other Operating Income and Expenditure,Trading Account Surpluses and Deficits,Client Fleet Mngmnt,Transport Dept Charges,28/08/2019,5278608,"2,150.00",London Hire Ltd
Place,Other Operating Income and Expenditure,Trading Account Surpluses and Deficits,Client Fleet Mngmnt,Transport Dept Charges,28/08/2019,5279560,593.40,L&F Plant Hire t/a Tipperhire
Place,Other Operating Income and Expenditure,Trading Account Surpluses and Deficits,Client Fleet Mngmnt,Transport Dept Charges,28/08/2019,5279561,529.00,L&F Plant Hire t/a Tipperhire
Place,Other Operating Income and Expenditure,Trading Account Surpluses and Deficits,Client Fleet Mngmnt,Transport Dept Charges,28/08/2019,5279562,598.00,L&F Plant Hire t/a Tipperhire
Place,Other Operating Income and Expenditure,Trading Account Surpluses and Deficits,Client Fleet Mngmnt,Transport Dept Charges,28/08/2019,5279563,483.00,L&F Plant Hire t/a Tipperhire
Place,Other Operating Income and Expenditure,Trading Account Surpluses and Deficits,Client Fleet Mngmnt,Transport Dept Charges,28/08/2019,5279564,759.00,L&F Plant Hire t/a Tipperhire
Place,Other Operating Income and Expenditure,Trading Account Surpluses and Deficits,Client Fleet Mngmnt,Transport Dept Charges,28/08/2019,5279565,368.00,L&F Plant Hire t/a Tipperhire
Place,Other Operating Income and Expenditure,Trading Account Surpluses and Deficits,Client Fleet Mngmnt,Transport Dept Charges,28/08/2019,5279749,593.40,L&F Plant Hire t/a Tipperhire
Place,Other Operating Income and Expenditure,Trading Account Surpluses and Deficits,Client Fleet Mngmnt,Transport Dept Charges,28/08/2019,5279750,593.40,L&F Plant Hire t/a Tipperhire
Place,Other Operating Income and Expenditure,Trading Account Surpluses and Deficits,Client Fleet Mngmnt,Transport Dept Charges,28/08/2019,5279751,593.40,L&F Plant Hire t/a Tipperhire
Place,Other Operating Income and Expenditure,Trading Account Surpluses and Deficits,Client Fleet Mngmnt,Transport Dept Charges,28/08/2019,5279752,598.00,L&F Plant Hire t/a Tipperhire
Place,Other Operating Income and Expenditure,Trading Account Surpluses and Deficits,Client Fleet Mngmnt,Transport Dept Charges,28/08/2019,5279753,598.00,L&F Plant Hire t/a Tipperhire
Place,Other Operating Income and Expenditure,Trading Account Surpluses and Deficits,Client Fleet Mngmnt,Transport Dept Charges,28/08/2019,5279754,529.00,L&F Plant Hire t/a Tipperhire
Place,Other Operating Income and Expenditure,Trading Account Surpluses and Deficits,Client Fleet Mngmnt,Transport Dept Charges,28/08/2019,5282230,303.49,Alphabet (GB) Ltd
Place,Other Operating Income and Expenditure,Trading Account Surpluses and Deficits,Client Fleet Mngmnt,Non Staff Transport Costs - Reimbursement,12/08/2019,5267104,"1,500.00",Go Plant Fleet Services Limited
Place,Other Operating Income and Expenditure,Trading Account Surpluses and Deficits,Client Fleet Mngmnt,Non Staff Transport Costs - Reimbursement,23/08/2019,5274414,269.93,Go Plant Fleet Services Limited
Place,Other Operating Income and Expenditure,Trading Account Surpluses and Deficits,Client Fleet Mngmnt,Non Staff Transport Costs - Reimbursement,23/08/2019,5274429,751.91,Go Plant Fleet Services Limited
Place,Other Operating Income and Expenditure,Trading Account Surpluses and Deficits,Client Fleet Mngmnt,Non Staff Transport Costs - Reimbursement,23/08/2019,5274431,370.88,Go Plant Fleet Services Limited
Place,Other Operating Income and Expenditure,Trading Account Surpluses and Deficits,Client Fleet Mngmnt,Non Staff Transport Costs - Reimbursement,23/08/2019,5274432,370.88,Go Plant Fleet Services Limited
Place,Other Operating Income and Expenditure,Trading Account Surpluses and Deficits,Client Fleet Mngmnt,Non Staff Transport Costs - Reimbursement,23/08/2019,5274434,250.50,Go Plant Fleet Services Limited
Place,Other Operating Income and Expenditure,Trading Account Surpluses and Deficits,Client Fleet Mngmnt,Non Staff Transport Costs - Reimbursement,23/08/2019,5274436,633.70,Go Plant Fleet Services Limited
Place,Other Operating Income and Expenditure,Trading Account Surpluses and Deficits,Client Fleet Mngmnt,Non Staff Transport Costs - Reimbursement,23/08/2019,5274437,633.70,Go Plant Fleet Services Limited
Place,Other Operating Income and Expenditure,Trading Account Surpluses and Deficits,Client Fleet Mngmnt,Non Staff Transport Costs - Reimbursement,28/08/2019,5277676,"1,527.90",Hitachi Capital & Commercial Vehicle Svc
Place,Other Operating Income and Expenditure,Trading Account Surpluses and Deficits,Client Fleet Mngmnt,Non Staff Transport Costs - Reimbursement,28/08/2019,5277677,"1,275.70",Hitachi Capital & Commercial Vehicle Svc
Place,Other Operating Income and Expenditure,Trading Account Surpluses and Deficits,Client Fleet Mngmnt,Non Staff Transport Costs - Reimbursement,28/08/2019,5277678,329.85,Hitachi Capital & Commercial Vehicle Svc
Place,Other Operating Income and Expenditure,Trading Account Surpluses and Deficits,Client Fleet Mngmnt,Non Staff Transport Costs - Reimbursement,28/08/2019,5277679,275.01,Hitachi Capital & Commercial Vehicle Svc
Place,Other Operating Income and Expenditure,Trading Account Surpluses and Deficits,Client Fleet Mngmnt,Non Staff Transport Costs - Reimbursement,28/08/2019,5277680,295.26,Hitachi Capital & Commercial Vehicle Svc
Place,Other Operating Income and Expenditure,Trading Account Surpluses and Deficits,Client Fleet Mngmnt,Non Staff Transport Costs - Reimbursement,28/08/2019,5277706,"1,550.00",Go Plant Fleet Services Limited
Place,Other Operating Income and Expenditure,Trading Account Surpluses and Deficits,Client Fleet Mngmnt,Non Staff Transport Costs - Reimbursement,28/08/2019,5279720,"1,527.90",Hitachi Capital & Commercial Vehicle Svc
Place,Other Operating Income and Expenditure,Trading Account Surpluses and Deficits,Client Fleet Mngmnt,Non Staff Transport Costs - Reimbursement,28/08/2019,5279721,"1,275.70",Hitachi Capital & Commercial Vehicle Svc
Place,Other Operating Income and Expenditure,Trading Account Surpluses and Deficits,Client Fleet Mngmnt,Non Staff Transport Costs - Reimbursement,28/08/2019,5279722,"1,275.70",Hitachi Capital & Commercial Vehicle Svc
Place,Other Operating Income and Expenditure,Trading Account Surpluses and Deficits,Client Fleet Mngmnt,Non Staff Transport Costs - Reimbursement,28/08/2019,5279723,"1,275.70",Hitachi Capital & Commercial Vehicle Svc
Place,Other Operating Income and Expenditure,Trading Account Surpluses and Deficits,Client Fleet Mngmnt,Non Staff Transport Costs - Reimbursement,28/08/2019,5279724,"1,275.70",Hitachi Capital & Commercial Vehicle Svc
Place,Other Operating Income and Expenditure,Trading Account Surpluses and Deficits,Client Fleet Mngmnt,Non Staff Transport Costs - Reimbursement,28/08/2019,5279747,"1,550.00",Go Plant Fleet Services Limited
Place,Other Operating Income and Expenditure,Trading Account Surpluses and Deficits,Client Fleet Mngmnt,Non Staff Transport Costs - Reimbursement,28/08/2019,5279748,"1,550.00",Go Plant Fleet Services Limited
Place,Other Operating Income and Expenditure,Trading Account Surpluses and Deficits,Client Fleet Mngmnt,Non Staff Transport Costs - Reimbursement,28/08/2019,5280037,"1,750.00",Arriva Bus and Coach Ltd
Place,Highways and Transport Services,"Transport Planning, Policy and Strategy",Engineering Group,Office Furniture/Equipment,21/08/2019,5271376,"6,324.00",Controlcare Ltd
Place,Highways and Transport Services,Traffic Management and Road Safety,TFL-Funded Projects,Payments to Private Contractors - Other Contractors,05/08/2019,5258918,"1,500.00",Cycling Instructor LTD
Place,Highways and Transport Services,Traffic Management and Road Safety,TFL-Funded Projects,Payments to Private Contractors - Other Contractors,14/08/2019,5271665,"2,005.00",MOVENSMOOTH LTD
Place,Highways and Transport Services,Traffic Management and Road Safety,TFL-Funded Projects,Payments to Private Contractors - Other Contractors,21/08/2019,5282757,"1,115.00",Cycle Confident Ltd
Place,Highways and Transport Services,Traffic Management and Road Safety,TFL-Funded Projects,Payments to Private Contractors - Other Contractors,28/08/2019,5286160,"3,760.00",Selectamark Security Systems plc
Place,Highways and Transport Services,Traffic Management and Road Safety,TFL-Funded Projects,Payments to Private Contractors - Other Contractors,23/08/2019,5286243,450.00,CA Traffic LTD
Place,Highways and Transport Services,Parking Services,Parking Permits,Other Sales and Fees - Residents,16/08/2019,5282454,527.83,Carter Backer Winter LLP
Place,Highways and Transport Services,Parking Services,Parking Business Unit,Services - Professional Fees - Debt Reg. Fee,02/08/2019,5274469,"49,500.00",HMCTS
Place,Highways and Transport Services,Parking Services,Parking Business Unit,Computing - Maint Agreements - Software,28/08/2019,5278667,808.00,Buchanan Order Management
Place,Highways and Transport Services,Parking Services,Parking On-Street,Parking Bays - Parking Signs and Posts,23/08/2019,5271188,260.00,Contract Sign Systems LTD
Place,Highways and Transport Services,Parking Services,Parking On-Street,Services - Bank Charges - Management Charges,21/08/2019,5283229,"25,129.16",Cobalt Telephone Technologies
Place,Highways and Transport Services,Parking Services,Parking Enforcement,Services - Bank Charges - Management Charges,21/08/2019,5283228,"23,019.58",Cobalt Telephone Technologies
Place,Highways and Transport Services,Parking Services,Removals,Services - Professional Fees - Counsel's Fees,07/08/2019,5271292,600.00,5 Pump Court CDS
Place,Highways and Transport Services,Parking Services,Removals,Payments to Private Contractors - Clamping Contractors,30/08/2019,5289108,"41,667.96",NSL LTD
Place,Highways and Transport Services,Parking Services,Parking Reps/Appeals,Services - Professional Fees - Debt Reg. Fee,07/08/2019,5216061,"6,296.00",HMCTS
Place,Highways and Transport Services,Parking Services,Parking Reps/Appeals,Services - Professional Fees - Financial Services Fees,05/08/2019,5274991,"1,500.00",London Councils
Place,Highways and Transport Services,"Transport Planning, Policy and Strategy",Street Works,Non Staff Advertising - Public Notices,21/08/2019,5271614,365.00,TMP UK Ltd
Place,Highways and Transport Services,"Transport Planning, Policy and Strategy",Street Works,Non Staff Advertising - Public Notices,28/08/2019,5278648,413.00,TMP UK Ltd
Place,Highways and Transport Services,"Environmental, Safety and Routine Maintenance",Roads maintenance,Educational/Training Supplies - Resources,23/08/2019,5271254,321.53,Hands on Skills Training Ltd
Place,Highways and Transport Services,"Environmental, Safety and Routine Maintenance",Roads maintenance,Payments to Private Contractors - Private Contractor,14/08/2019,5279701,640.79,INSIGHT DIRECT (UK) LTD
Place,Environmental and Regulatory Services,Regulatory Services,"Health & Safety at Work (Enforcement)		",Fixtures and Fittings - Purchases - Security,28/08/2019,5274363,260.00,SoloProtect Ltd
Place,Environmental and Regulatory Services,Regulatory Services,"Health & Safety at Work (Enforcement)		",Services - Professional Fees - Legal Fees/Expenses,14/08/2019,5279613,300.00,Oval Space Ltd
Place,Environmental and Regulatory Services,Regulatory Services,Pollution Team,Services - Professional Fees - Environmental Services Fees,30/08/2019,5282204,"1,838.75",Enviro Technology Services Plc
Place,Environmental and Regulatory Services,Regulatory Services,Pollution Team,Computing - Purchase of Software,28/08/2019,5271651,311.96,Specialist Computer Centres PLC
Place,Environmental and Regulatory Services,Regulatory Services,Pollution Team,Education & Training - Non Staff Tuition Fees,09/08/2019,5257751,400.00,Kings College London
Place,Environmental and Regulatory Services,"Cemetery, Cremation and Mortuary Services",Parish Funeral Service,Services - Professional Fees - Burial Fees,30/08/2019,5282465,"1,237.00",T Cribb & Sons
Place,Environmental and Regulatory Services,"Cemetery, Cremation and Mortuary Services",Poplar Mortuary,Services - Professional Fees - Consultants Fees,07/08/2019,5267049,"1,231.25",Agilisys Professional Services
Place,Environmental and Regulatory Services,"Cemetery, Cremation and Mortuary Services",Poplar Mortuary,Services - Professional Fees - Consultants Fees,30/08/2019,5279275,"1,652.75",Agilisys Professional Services
Place,Environmental and Regulatory Services,Regulatory Services,Pest Control,Environmental Health Supplies - Baits and Poisons,23/08/2019,5271317,"1,352.62",Barrettine Environmental Health
Place,Environmental and Regulatory Services,Regulatory Services,Pest Control,Environmental Health Supplies - Baits and Poisons,21/08/2019,5271650,"1,044.40",KillGerm Chemicals
Place,Environmental and Regulatory Services,Regulatory Services,Health & Housing,Services - Professional Fees - Consultants Fees,07/08/2019,5267048,591.00,Agilisys Professional Services
Place,Environmental and Regulatory Services,Regulatory Services,Health & Housing,Services - Professional Fees - Consultants Fees,07/08/2019,5267058,788.00,Agilisys Professional Services
Place,Environmental and Regulatory Services,Regulatory Services,Health & Housing,Services - Professional Fees - Counsel's Fees,23/08/2019,5286280,"3,583.33",GRAYS INN SQUARE BARRISTERS CHAMBERS
Place,Other Operating Income and Expenditure,Trading Account Surpluses and Deficits,Markets Management A/c,Property Leases - Buildings,09/08/2019,5267244,295.00,Portable Toilet Hire London Ltd
Place,Other Operating Income and Expenditure,Trading Account Surpluses and Deficits,Markets Management A/c,Property Leases - Buildings,09/08/2019,5267581,295.00,Portable Toilet Hire London Ltd
Place,Other Operating Income and Expenditure,Trading Account Surpluses and Deficits,Markets Management A/c,Storage Costs,09/08/2019,5267553,292.50,Bullman Marine Supplies & Continers LTD
Place,Other Operating Income and Expenditure,Trading Account Surpluses and Deficits,Markets Management A/c,Comms - Purchase of Equipment,28/08/2019,5212914,"1,251.43",Agilisys Professional Services
Place,Other Operating Income and Expenditure,Trading Account Surpluses and Deficits,Markets Management A/c,Comms - Purchase of Equipment,23/08/2019,5230405,908.06,Agilisys Professional Services
Place,Other Operating Income and Expenditure,Trading Account Surpluses and Deficits,Markets Management A/c,Comms - Purchase of Equipment,23/08/2019,5250090,"3,100.00",Agilisys Professional Services
Place,Other Operating Income and Expenditure,Trading Account Surpluses and Deficits,Markets Management A/c,Comms - Purchase of Equipment,28/08/2019,5267057,"3,269.56",Agilisys Professional Services
Place,Other Operating Income and Expenditure,Trading Account Surpluses and Deficits,Markets Management A/c,Comms - Purchase of Equipment,30/08/2019,5279267,"3,547.47",Agilisys Professional Services
Place,Environmental and Regulatory Services,Regulatory Services,Trading Standards,Services - Professional Fees - Counsel's Fees,12/08/2019,5279574,450.00,5 Paper Buildings
Place,Environmental and Regulatory Services,Regulatory Services,Trading Standards,Services - Professional Fees - Environmental Services Fees,30/08/2019,5279481,934.30,Wagtail Uk Ltd
Place,Environmental and Regulatory Services,Regulatory Services,Trading Standards,Computing - Purchase of Software,28/08/2019,5274805,"1,815.00",Altia-ABM
Place,Environmental and Regulatory Services,Regulatory Services,Trading Standards,Subscriptions - Associations,16/08/2019,5267274,327.00,London Trading Standards
Place,Environmental and Regulatory Services,Regulatory Services,Licensing Administration,Services - Professional Fees - Consultants Fees,12/08/2019,5267579,"7,147.00",The Surveillance Group Ltd
Place,Environmental and Regulatory Services,Regulatory Services,Licensing Administration,Services - Professional Fees - Counsel's Fees,16/08/2019,5282647,625.00,Drystone Chambers
Place,Environmental and Regulatory Services,Regulatory Services,Licensing Administration,Services - Professional Fees - Financial Services Fees,21/08/2019,5283064,400.00,London Borough of Waltham Forest
Place,Planning Services,Development Control,Development Management,Non Staff Advertising - Public Notices,07/08/2019,5267242,"1,013.00",TMP UK Ltd
Place,Planning Services,Development Control,Development Management,Non Staff Advertising - Public Notices,14/08/2019,5271600,365.00,TMP UK Ltd
Place,Planning Services,Development Control,Development Management,Non Staff Advertising - Public Notices,21/08/2019,5274351,"2,093.00",TMP UK Ltd
Place,Planning Services,Development Control,Development Management,Non Staff Advertising - Public Notices,28/08/2019,5278647,797.00,TMP UK Ltd
Place,Planning Services,Development Control,Development Management,Services - Professional Fees - Consultants Fees,14/08/2019,5266455,"4,182.50",Temple Group Ltd
Place,Planning Services,Development Control,Development Management,Services - Professional Fees - Consultants Fees,02/08/2019,5270195,947.85,Heritage Collective UK Ltd
Place,Planning Services,Development Control,Development Management,Services - Professional Fees - Consultants Fees,14/08/2019,5271047,"4,822.50",SQW Ltd
Place,Planning Services,Development Control,Development Management,Services - Professional Fees - Consultants Fees,28/08/2019,5274790,"8,173.50",Heritage Collective UK Ltd
Place,Planning Services,Development Control,Development Management,Services - Professional Fees - Counsel's Fees,16/08/2019,5282179,"8,000.00",Landmark Chambers
Place,Planning Services,Development Control,Development Management,Services - Professional Fees - Counsel's Fees,16/08/2019,5282180,"3,050.00",Landmark Chambers
Place,Planning Services,Development Control,Development Management,Services - Professional Fees - Counsel's Fees,16/08/2019,5282181,"1,900.00",Landmark Chambers
Place,Planning Services,Development Control,Development Management,Services - Professional Fees - Counsel's Fees,16/08/2019,5282182,"5,366.67",Landmark Chambers
Place,Planning Services,Development Control,Development Management,Services - Professional Fees - Viability Advice,28/08/2019,5275353,"6,000.00",GVA T/A Avison Young
Place,Planning Services,Development Control,Development Management,Services - Professional Fees - Daylight/Sunlight Reviews,12/08/2019,5266447,780.00,Building Resarch Establishment Ltd
Place,Planning Services,Development Control,Development Management,Services - Professional Fees - Daylight/Sunlight Reviews,09/08/2019,5274449,"1,800.00",Anstey Horne & Co Ltd
Place,Planning Services,Development Control,Development Management,Services - Professional Fees - Daylight/Sunlight Reviews,09/08/2019,5279202,"1,000.00",Delva Patman Redler LLP
Place,Planning Services,Development Control,Development Management,Services - Professional Fees - Daylight/Sunlight Reviews,30/08/2019,5282731,"1,310.00",Delva Patman Redler LLP
Place,Planning Services,Development Control,Development Management,Services - Professional Fees - Daylight/Sunlight Reviews,28/08/2019,5282822,"2,504.80",GVA T/A Avison Young
Place,Planning Services,Development Control,Development Management,Subscriptions - Subscriptions to Associations,09/08/2019,5277701,400.00,The Planning Officers Society
Place,Planning Services,Development Control,Development Management,Planning Fees - Statutory Planning Fees,16/08/2019,5279813,924.00,PORTALPLANQUEST LIMITED
Place,Planning Services,Planning Policy,Application Support,Comms - R & M of Equipment,16/08/2019,5282198,750.76,Neopost Ltd
Place,Cultural and Related Services,Open Spaces,Aboriculture Management,Grounds Maintenance - Contract - Horticultural Maintenance,12/08/2019,5262945,"1,127.50",CITY SUBURBAN TREE SURGEONS
Place,Cultural and Related Services,Open Spaces,Aboriculture Management,Grounds Maintenance - Contract - Routine Works,19/08/2019,5270980,261.80,Barcham Trees
Place,Cultural and Related Services,Open Spaces,Aboriculture Management,Grounds Maintenance - Contract - Trees & Shrubs,16/08/2019,5267074,"1,213.00",CITY SUBURBAN TREE SURGEONS
Place,Cultural and Related Services,Open Spaces,Aboriculture Management,Grounds Maintenance - Contract - Trees & Shrubs,16/08/2019,5267075,"2,981.00",CITY SUBURBAN TREE SURGEONS
Place,Cultural and Related Services,Open Spaces,Aboriculture Management,Grounds Maintenance - Contract - Trees & Shrubs,19/08/2019,5267632,"6,480.64",CITY SUBURBAN TREE SURGEONS
Place,Cultural and Related Services,Open Spaces,Aboriculture Management,Grounds Maintenance - Contract - Highways Trees,14/08/2019,5266468,"1,810.00",CITY SUBURBAN TREE SURGEONS
Place,Cultural and Related Services,Open Spaces,Aboriculture Management,Grounds Maintenance - Contract - Highways Trees,16/08/2019,5267076,295.00,CITY SUBURBAN TREE SURGEONS
Place,Cultural and Related Services,Open Spaces,Aboriculture Management,Grounds Maintenance - Contract - Highways Trees,16/08/2019,5267077,"3,550.00",CITY SUBURBAN TREE SURGEONS
Place,No Service Specified,No Division Specified,Arts-Park Events,Rechargeable Works WIP,19/08/2019,5267634,"1,530.00",CITY SUBURBAN TREE SURGEONS
Place,No Service Specified,No Division Specified,Capital Works - P&E,Acquisition of Equipment,19/08/2019,5282664,"5,000.00",MILE END OLD TOWN RESIDENTS ASSOCIATION
Place,No Service Specified,No Division Specified,Capital Works - P&E,Acquisition of Equipment,30/08/2019,5282882,"5,000.00",CWC Environmental
Place,Highways and Transport Services,Management and Support Services,Piped Subways Holding Ac,Payments to Private Contractors - Private Contractor,05/08/2019,5275051,"1,285.00",London Bridges Engineering Group
Place,Other Operating Income and Expenditure,Trading Account Surpluses and Deficits,Passenger Transport,Contract Cleaning,28/08/2019,5275344,705.88,Wetton Cleaning Services LTD
Place,Other Operating Income and Expenditure,Trading Account Surpluses and Deficits,Passenger Transport,Spare Parts,14/08/2019,5271326,338.12,VALLEY INDUSTRIAL PRODUCTS
Place,Other Operating Income and Expenditure,Trading Account Surpluses and Deficits,Passenger Transport,Vehicle Maintenance - Repairs,28/08/2019,5250999,"1,790.00",Q'Straint
Place,Other Operating Income and Expenditure,Trading Account Surpluses and Deficits,Passenger Transport,Non Staff Transport Costs - Reimbursement,14/08/2019,5242126,"29,845.50",Healthcare and Transport Services Group Ltd
Place,Other Operating Income and Expenditure,Trading Account Surpluses and Deficits,Passenger Transport,Non Staff Transport Costs - Reimbursement,14/08/2019,5257749,"21,557.74",Healthcare and Transport Services Group Ltd
Place,Other Operating Income and Expenditure,Trading Account Surpluses and Deficits,Passenger Transport,Non Staff Transport Costs - Reimbursement,14/08/2019,5257750,"25,008.94",Healthcare and Transport Services Group Ltd
Place,Other Operating Income and Expenditure,Trading Account Surpluses and Deficits,Passenger Transport,Non Staff Transport Costs - Reimbursement,14/08/2019,5262894,-514.08,Healthcare and Transport Services Group Ltd
Place,Other Operating Income and Expenditure,Trading Account Surpluses and Deficits,Passenger Transport,Non Staff Transport Costs - Reimbursement,14/08/2019,5265632,"25,280.24",Healthcare and Transport Services Group Ltd
Place,Other Operating Income and Expenditure,Trading Account Surpluses and Deficits,Vehicle Maintenance Operation,Spare Parts,09/08/2019,5277476,258.67,e one motor factors ltd
Place,Other Operating Income and Expenditure,Trading Account Surpluses and Deficits,Vehicle Maintenance Operation,Spare Parts,09/08/2019,5277494,312.50,e one motor factors ltd
Place,Other Operating Income and Expenditure,Trading Account Surpluses and Deficits,Vehicle Maintenance Operation,Spare Parts,19/08/2019,5277674,301.10,Leighway Auto Electrics LTD
Place,Other Operating Income and Expenditure,Trading Account Surpluses and Deficits,Vehicle Maintenance Operation,Spare Parts,19/08/2019,5277675,743.50,Leighway Auto Electrics LTD
Place,Other Operating Income and Expenditure,Trading Account Surpluses and Deficits,Vehicle Maintenance Operation,Spare Parts,19/08/2019,5279995,301.10,Leighway Auto Electrics LTD
Place,Other Operating Income and Expenditure,Trading Account Surpluses and Deficits,Vehicle Maintenance Operation,Vehicle Maintenance - Repairs,16/08/2019,5271131,494.07,Harris Commercial Repairs Ltd
Place,Other Operating Income and Expenditure,Trading Account Surpluses and Deficits,Vehicle Maintenance Operation,Vehicle Maintenance - Repairs,23/08/2019,5274750,800.00,United Lifting Technology Ltd
Place,Other Operating Income and Expenditure,Trading Account Surpluses and Deficits,Vehicle Maintenance Operation,Vehicle Maintenance - Repairs,21/08/2019,5283278,403.74,TLS - Tail Lift Services
Place,Other Operating Income and Expenditure,Trading Account Surpluses and Deficits,Vehicle Maintenance Operation,Vehicle Maintenance - Repairs,23/08/2019,5286097,358.34,Autosmart International Ltd
Place,Other Operating Income and Expenditure,Trading Account Surpluses and Deficits,Vehicle Maintenance Operation,Vehicle Maintenance - Repairs,23/08/2019,5286098,550.00,Autosmart International Ltd
Place,Other Operating Income and Expenditure,Trading Account Surpluses and Deficits,Vehicle Maintenance Operation,Transport Dept Charges,02/08/2019,5265165,902.40,R A Commercial Components
Place,Other Operating Income and Expenditure,Trading Account Surpluses and Deficits,Vehicle Maintenance Operation,Transport Dept Charges,23/08/2019,5277530,"1,440.25",R A Commercial Components
Place,Other Operating Income and Expenditure,Trading Account Surpluses and Deficits,Vehicle Maintenance Operation,Transport Dept Charges,16/08/2019,5279885,737.30,R A Commercial Components
Place,Other Operating Income and Expenditure,Trading Account Surpluses and Deficits,Vehicle Maintenance Operation,Transport Dept Charges,23/08/2019,5282194,400.20,Safety-Kleen UK LTD
Place,Corporate & Democratic Core,Corporate Management,D&R Director,Photocopier Charges - Consumables,16/08/2019,5270992,"1,196.00",CCS Media Ltd
Place,Corporate & Democratic Core,Corporate Management,D&R Director,Office Furniture/Equipment,14/08/2019,5270231,595.00,Unique Office Solutions
Place,Corporate & Democratic Core,Corporate Management,D&R Director,Services - Professional Fees - Consultants Fees,28/08/2019,5277569,500.00,Nicholson McBride Ltd
Place,Planning Services,Planning Policy,Plan Making,Non Staff Advertising - Public Notices,16/08/2019,5271601,317.00,TMP UK Ltd
Place,Planning Services,Planning Policy,Plan Making,Comms - Courier,05/08/2019,5259004,281.85,Churchills Ltd
Place,Planning Services,Planning Policy,Plan Making,Subscriptions - Subscriptions to Associations,14/08/2019,5279490,"2,300.00",Emapsite.com Ltd
Place,Planning Services,Planning Policy,Sustainable Development,Services - Professional Fees - Consultants Fees,30/08/2019,5275263,"5,000.00",Etude
Place,General Fund/Council Fund,Housing Strategy,ALMO Client Team,Training Expenses - Staff External Training (UK Based),02/08/2019,5265211,445.00,GovNet Communications
Place,General Fund/Council Fund,Housing Strategy,ALMO Client Team,Subscriptions - Subscriptions to Associations,30/08/2019,5280039,"1,700.00",MANCHESTER CITY COUNCIL
Place,Planning Services,Community Development,Regeneration Vision,Services - Professional Fees - Consultants Fees,02/08/2019,5274791,"19,175.31",Bloom Procurement Services Limited
Place,Planning Services,Community Development,Regeneration Vision,Services - Professional Fees - Consultants Fees,05/08/2019,5274792,"1,087.59",Bloom Procurement Services Limited
Place,Planning Services,Planning Policy,Planning and Building Control - Management,Computing - Purchase of Software,30/08/2019,5290488,379.20,Global ECM Solutions Ltd
Place,Planning Services,Community Development,Harford St Community Centre,Contract Cleaning,28/08/2019,5275348,688.25,Wetton Cleaning Services LTD
Place,Planning Services,Community Development,THCIL Revenue,Services - Professional Fees - Legal Fees/Expenses,28/08/2019,5279458,"2,124.00",Sharpe Pritchard
Place,Planning Services,Community Development,"Strategy, Partnerships & Private Sector Housing",Subscriptions - Subscriptions to Associations,28/08/2019,5275352,"10,000.00",London Councils
Place,Planning Services,Community Development,Barkentine,Third Party Payments - Other Agencies,21/08/2019,5274368,"230,325.00",Barkantine Heat & Power Company LTD
Place,Planning Services,Community Development,Barkentine,Third Party Payments - Other Agencies,21/08/2019,5274369,"76,775.00",Barkantine Heat & Power Company LTD
Place,General Fund/Council Fund,Enabling,Lettings Management,Medical Requisites,05/08/2019,5258502,"1,150.00",NOW MEDICAL CONSULTANCY
Place,General Fund/Council Fund,Enabling,Lettings Management,Medical Requisites,05/08/2019,5258503,"1,270.00",NOW MEDICAL CONSULTANCY
Place,General Fund/Council Fund,Enabling,Lettings Management,Medical Requisites,30/08/2019,5278668,"1,530.00",NOW MEDICAL CONSULTANCY
Place,General Fund/Council Fund,Enabling,Lettings Management,Medical Requisites,30/08/2019,5278669,"1,460.00",NOW MEDICAL CONSULTANCY
Place,Planning Services,Economic Development,Economic Programme,Other Sales and Fees - Other Services Supplied,07/08/2019,5267266,"5,000.00",Circle Collective
Place,No Service Specified,No Division Specified,Purchase of Accomm for TA 1-4-1 receipts,Acquisition of Land/Buildings - Buybacks,07/08/2019,5270276,"395,000.00",Foot Anstey
Place,No Service Specified,No Division Specified,Purchase of Accomm for TA 1-4-1 receipts,Acquisition of Land/Buildings - Buybacks,07/08/2019,5270277,"390,000.00",Foot Anstey
Place,No Service Specified,No Division Specified,Purchase of Accomm for TA 1-4-1 receipts,Acquisition of Land/Buildings - Buybacks,07/08/2019,5274279,"395,000.00",Foot Anstey
Place,No Service Specified,No Division Specified,Purchase of Accomm for TA 1-4-1 receipts,Acquisition of Land/Buildings - Buybacks,07/08/2019,5274282,"430,000.00",Foot Anstey
Place,No Service Specified,No Division Specified,Purchase of Accomm for TA 1-4-1 receipts,Acquisition of Land/Buildings - Buybacks,16/08/2019,5282321,"44,000.00",Foot Anstey
Place,No Service Specified,No Division Specified,Purchase of Accomm for TA 1-4-1 receipts,Acquisition of Land/Buildings - Buybacks,16/08/2019,5282323,"290,000.00",Foot Anstey
Place,No Service Specified,No Division Specified,Purchase of Accomm for TA 1-4-1 receipts,Acquisition of Land/Buildings - Stamp Duty,07/08/2019,5270276,"21,600.00",Foot Anstey
Place,No Service Specified,No Division Specified,Purchase of Accomm for TA 1-4-1 receipts,Acquisition of Land/Buildings - Stamp Duty,07/08/2019,5270277,"21,200.00",Foot Anstey
Place,No Service Specified,No Division Specified,Purchase of Accomm for TA 1-4-1 receipts,Acquisition of Land/Buildings - Stamp Duty,07/08/2019,5274279,"21,600.00",Foot Anstey
Place,No Service Specified,No Division Specified,Purchase of Accomm for TA 1-4-1 receipts,Acquisition of Land/Buildings - Stamp Duty,07/08/2019,5274282,"24,400.00",Foot Anstey
Place,No Service Specified,No Division Specified,Purchase of Accomm for TA 1-4-1 receipts,Acquisition of Land/Buildings - Stamp Duty,16/08/2019,5282323,"13,200.00",Foot Anstey
Place,No Service Specified,No Division Specified,Purchase of Accomm for TA 1-4-1 receipts,Legal Fees,09/08/2019,5278614,"1,257.17",Foot Anstey
Place,No Service Specified,No Division Specified,Purchase of Accomm for TA 1-4-1 receipts,Legal Fees,09/08/2019,5278615,"1,257.17",Foot Anstey
Place,No Service Specified,No Division Specified,Purchase of Accomm for TA 1-4-1 receipts,Legal Fees,09/08/2019,5278616,"1,257.17",Foot Anstey
Place,No Service Specified,No Division Specified,Purchase of Accomm for TA 1-4-1 receipts,Legal Fees,09/08/2019,5278617,"1,257.17",Foot Anstey
Place,No Service Specified,No Division Specified,Purchase of Accomm for TA 1-4-1 receipts,Legal Fees,09/08/2019,5278618,"1,264.17",Foot Anstey
Place,No Service Specified,No Division Specified,Purchase of Accomm for TA 1-4-1 receipts,Legal Fees,09/08/2019,5278619,"1,264.17",Foot Anstey
Place,No Service Specified,No Division Specified,Purchase of Accomm for TA 1-4-1 receipts,Legal Fees,09/08/2019,5278620,"1,264.17",Foot Anstey
Place,No Service Specified,No Division Specified,Purchase of Accomm for TA 1-4-1 receipts,Legal Fees,09/08/2019,5278621,"1,264.17",Foot Anstey
Place,No Service Specified,No Division Specified,Purchase of Accomm for TA 1-4-1 receipts,Legal Fees,14/08/2019,5279892,"1,264.17",Foot Anstey
Place,No Service Specified,No Division Specified,Purchase of Accomm for TA 1-4-1 receipts,Legal Fees,14/08/2019,5279893,"1,264.17",Foot Anstey
Place,No Service Specified,No Division Specified,Purchase of Accomm for TA 1-4-1 receipts,Legal Fees,21/08/2019,5282702,"1,264.17",Foot Anstey
Place,No Service Specified,No Division Specified,Purchase of Accomm for TA 1-4-1 receipts,Legal Fees,28/08/2019,5286013,"1,264.17",Foot Anstey
Place,No Service Specified,No Division Specified,Investments works - LBTH Assets,Building Works - Main Works,05/08/2019,5256334,"2,671.00",Controlcare Ltd
Place,No Service Specified,No Division Specified,Investments works - LBTH Assets,Building Works - Main Works,09/08/2019,5271377,"1,120.00",Controlcare Ltd
Place,No Service Specified,No Division Specified,THCIL Capital Projects,Capital Budgets (Expenditure) - Consultants Fees,12/08/2019,5266812,"25,000.00",Arcadis Consulting (UK) Ltd
Place,No Service Specified,No Division Specified,THCIL Capital Projects,Capital Budgets (Expenditure) - Consultants Fees,21/08/2019,5277632,"33,600.00",Arcadis Consulting (UK) Ltd
Place,No Service Specified,No Division Specified,THCIL Capital Projects,Capital Budgets (Expenditure) - Consultants Fees,21/08/2019,5282789,"6,250.00",Phar Partnerships Ltd
Place,No Service Specified,No Division Specified,Angela Court Burdett Road,Other External Fees - Consultants Fees,12/08/2019,5279304,"1,500.00",GERALD EVE LLP
Place,No Service Specified,No Division Specified,Angela Court Burdett Road,Other External Fees - Consultants Fees,12/08/2019,5279305,"3,000.00",GERALD EVE LLP
Place,Planning Services,Community Development,Property Maintenance Team,Agency Staff,02/08/2019,5256826,967.28,Hays Specialist Recruitment Ltd
Place,Planning Services,Community Development,Property Maintenance Team,Agency Staff - Staff External Training (UK Based),02/08/2019,5262899,"1,723.60",Hays Specialist Recruitment Ltd
Governance,Planning Services,Community Development,SPP - Place,Staff Advertising,16/08/2019,5279826,995.00,Ocean Media Group LTD
Governance,Planning Services,Community Development,SPP - Place,Events & Exhibition Supplies,02/08/2019,5267160,946.50,Curators Coffee
Governance,Planning Services,Community Development,SPP - IPP Corporate,Services - Professional Fees - Consultants Fees,21/08/2019,5271333,"13,552.50",Westco Trading Ltd
Governance,Corporate & Democratic Core,Democratic Representation & Management,Improvement Budget,Computing - Purchase of Hardware,28/08/2019,5279496,"1,643.00",Philip Stannard Associates ltd
Governance,Corporate & Democratic Core,Democratic Representation & Management,Democratic Services Team,Computing - Purchase of Software,16/08/2019,5271085,"3,000.00",CIVICA UK LTD
Governance,Corporate & Democratic Core,Democratic Representation & Management,Community Grant,Third Party Payments - Voluntary Associations,09/08/2019,5255819,"2,572.91",Toyhouse
Governance,Corporate & Democratic Core,Democratic Representation & Management,Community Grant,Third Party Payments - Voluntary Associations,09/08/2019,5256158,"8,357.60",Friends of Tower Hamlets Cemetery Park
Governance,Corporate & Democratic Core,Democratic Representation & Management,Community Grant,Third Party Payments - Voluntary Associations,09/08/2019,5256159,"7,828.00",Friends of Tower Hamlets Cemetery Park
Governance,Corporate & Democratic Core,Democratic Representation & Management,Community Grant,Third Party Payments - Voluntary Associations,09/08/2019,5257920,"5,000.00",YTKO LTD
Governance,Corporate & Democratic Core,Democratic Representation & Management,Community Grant,Third Party Payments - Voluntary Associations,09/08/2019,5265400,"6,964.67",FOUR CORNERS LTD
Governance,Corporate & Democratic Core,Democratic Representation & Management,Members Allowances/Facilities,Panel & Conference Expenses - Conference - UK Based,16/08/2019,5274403,"1,000.00",Improvement and Development Agency
Governance,Corporate & Democratic Core,Democratic Representation & Management,Members Allowances/Facilities,Training Expenses - Staff External Training (UK Based),09/08/2019,5279203,600.00,Elder Learning Ltd
Governance,Corporate & Democratic Core,Democratic Representation & Management,Members Allowances/Facilities,Training Expenses - Staff External Training (UK Based),19/08/2019,5279204,"1,200.00",Elder Learning Ltd
Governance,Central Services to the Public,Elections,Elections,Comms - Postages,02/08/2019,5274757,"1,483.80",ROYAL MAIL
Governance,Central Services to the Public,Elections,Elections,Comms - Postages,28/08/2019,5282691,"2,511.61",Financial Data Management
Governance,Central Services to the Public,Elections,Elections,Comms - Postages,28/08/2019,5282694,837.90,Financial Data Management
Governance,Central Services to the Public,Elections,Elections,Third Party Payments - Service Charges for Private Licenced Accommodation (PLA),14/08/2019,5274933,250.00,Chisenhale Primary School
Governance,Central Services to the Public,Elections,Elections,Third Party Payments - Service Charges for Private Licenced Accommodation (PLA),14/08/2019,5274934,250.00,Seven Mills Primary School
Governance,Central Services to the Public,Elections,Elections,Third Party Payments - Service Charges for Private Licenced Accommodation (PLA),14/08/2019,5274935,250.00,Lawdale Junior School
Governance,Central Services to the Public,Elections,Elections,Third Party Payments - Service Charges for Private Licenced Accommodation (PLA),14/08/2019,5274936,250.00,Bigland Green Primary School
Governance,Central Services to the Public,Elections,Elections,Third Party Payments - Service Charges for Private Licenced Accommodation (PLA),07/08/2019,5274941,250.00,ST PETERS LONDON DOCKS
Governance,Central Services to the Public,Elections,Elections,Third Party Payments - Service Charges for Private Licenced Accommodation (PLA),16/08/2019,5274957,250.00,Culloden Primary School
Governance,Central Services to the Public,Elections,Elections,Third Party Payments - Service Charges for Private Licenced Accommodation (PLA),16/08/2019,5274968,250.00,Mowlem Primary School
Governance,Central Services to the Public,Elections,Elections,Third Party Payments - Service Charges for Private Licenced Accommodation (PLA),19/08/2019,5274987,250.00,Ben Jonson School
Governance,Central Services to the Public,Elections,Elections,Third Party Payments - Service Charges for Private Licenced Accommodation (PLA),07/08/2019,5274988,300.00,BYGROVE SCHOOL
Governance,Central Services to the Public,Elections,Elections,Third Party Payments - Service Charges for Private Licenced Accommodation (PLA),07/08/2019,5275084,250.00,HERMITAGE PRIMARY SCHOOL
Governance,Central Services to the Public,Elections,Elections,Third Party Payments - Service Charges for Private Licenced Accommodation (PLA),07/08/2019,5275205,"4,250.00",STOUR SPACE
Governance,Central Services to the Public,Elections,Elections,Third Party Payments - Service Charges for Private Licenced Accommodation (PLA),09/08/2019,5278813,250.00,English Martyrs School Disbursement
Governance,Central Services to the Public,Elections,Electoral Registration,Training Expenses - Staff External Training (UK Based),14/08/2019,5267336,"1,585.00",Association of Electoral Administrators
Governance,Central Services to the Public,Elections,Electoral Registration,Comms - Postages,02/08/2019,5274321,"1,203.36",ROYAL MAIL
Governance,Central Services to the Public,Elections,Individual Electoral Reg. Funding,Printing - External,28/08/2019,5282690,"3,249.08",Financial Data Management
Governance,Central Services to the Public,Elections,Individual Electoral Reg. Funding,Printing - External,28/08/2019,5282695,"1,061.03",Financial Data Management
Governance,Central Services to the Public,Elections,Individual Electoral Reg. Funding,Printing - External,28/08/2019,5282696,"2,515.02",Financial Data Management
Governance,Central Services to the Public,Registration of Births Deaths & Marriages,Registrars,Photocopier Charges - Consumables,12/08/2019,5238687,327.00,Office Depot (Catalogue)
Governance,Central Services to the Public,Elections,Local Elections,Comms - Postages,02/08/2019,5274757,"1,451.71",ROYAL MAIL
Governance,Central Services to the Public,Elections,Local Elections,Comms - Postages,28/08/2019,5282692,"3,634.73",Financial Data Management
Governance,Central Services to the Public,Elections,Local Elections,Comms - Postages,28/08/2019,5282693,"1,052.10",Financial Data Management
Governance,Corporate & Democratic Core,Corporate Management,Corporate Campaigns,Staff Advertising,28/08/2019,5286527,"14,764.75",McConnells (Midlands) Ltd
Governance,Corporate & Democratic Core,Corporate Management,Corporate Campaigns,Staff Advertising,28/08/2019,5286528,"3,348.35",McConnells (Midlands) Ltd
Governance,Corporate & Democratic Core,Corporate Management,Corporate Campaigns,Staff Advertising,28/08/2019,5286529,"13,305.29",McConnells (Midlands) Ltd
Governance,Corporate & Democratic Core,Corporate Management,Corporate Campaigns,Printing - External,28/08/2019,5275298,"3,630.00",MORGARD COURT LTD T/A GARDNERS
Governance,Corporate & Democratic Core,Corporate Management,Corporate Campaigns,Events & Exhibition Supplies,14/08/2019,5266500,300.00,Carmen Valino
Governance,Corporate & Democratic Core,Corporate Management,Corporate Campaigns,Events & Exhibition Supplies,30/08/2019,5277619,300.00,Kois Miah Photography
Governance,Corporate & Democratic Core,Corporate Management,Corporate Campaigns,Events & Exhibition Supplies,30/08/2019,5277619,"2,000.00",Kois Miah Photography
Governance,Corporate & Democratic Core,Corporate Management,Corporate Campaigns,Events & Exhibition Supplies,30/08/2019,5277619,"5,900.00",Kois Miah Photography
Governance,Corporate & Democratic Core,Corporate Management,Corporate Campaigns,Events & Exhibition Supplies,30/08/2019,5277619,300.00,Kois Miah Photography
Governance,Corporate & Democratic Core,Corporate Management,Corporate Campaigns,Events & Exhibition Supplies,30/08/2019,5277619,300.00,Kois Miah Photography
Governance,Corporate & Democratic Core,Corporate Management,Corporate Campaigns,Services - Professional Fees - Consultants Fees,30/08/2019,5286161,"9,937.50",The Campaign Company
Governance,Corporate & Democratic Core,Corporate Management,Corporate Campaigns,Services - Professional Fees - Design Fees,21/08/2019,5283006,"2,920.00",Kartoffel Films
Governance,Corporate & Democratic Core,Corporate Management,External Communications,Panel & Conference Expenses - Conference - UK Based,16/08/2019,5279824,693.00,LGcomms
Governance,Corporate & Democratic Core,Corporate Management,External Communications,Panel & Conference Expenses - Conference - UK Based,16/08/2019,5279825,"1,850.00",LGcomms
Governance,Corporate & Democratic Core,Corporate Management,External Communications,Subscriptions - Associations,14/08/2019,5279610,250.00,LGcomms
Governance,Corporate & Democratic Core,Corporate Management,External Communications,Subscriptions - Subscriptions to Associations,23/08/2019,5275306,500.00,Access Intelligence Media and Communications Limited
Governance,Corporate & Democratic Core,Corporate Management,External Communications,Subscriptions - Subscriptions to Associations,23/08/2019,5275307,500.00,Access Intelligence Media and Communications Limited
Governance,Corporate & Democratic Core,Corporate Management,External Communications,Subscriptions - Subscriptions to Associations,23/08/2019,5275308,500.00,Access Intelligence Media and Communications Limited
Governance,Corporate & Democratic Core,Corporate Management,External Communications,Subscriptions - Subscriptions to Associations,23/08/2019,5282987,500.00,Access Intelligence Media and Communications Limited
Governance,Corporate & Democratic Core,Corporate Management,External Communications,Subscriptions - Subscriptions to Associations,30/08/2019,5286556,"1,343.34",Precise Media Monitoring LTD
Governance,Corporate & Democratic Core,Corporate Management,External Communications,Subscriptions - Subscriptions to Associations,30/08/2019,5286557,"1,443.34",Precise Media Monitoring LTD
Governance,Corporate & Democratic Core,Corporate Management,External Communications,Subscriptions - Subscriptions to Associations,30/08/2019,5286558,"1,593.34",Precise Media Monitoring LTD
Governance,Corporate & Democratic Core,Corporate Management,"Digital Communications				",Communications,19/08/2019,5279961,"1,093.00",Granicus LLC
Governance,Corporate & Democratic Core,Corporate Management,"Digital Communications				",Communications,14/08/2019,5279962,"1,093.00",Granicus LLC
Governance,Corporate & Democratic Core,Corporate Management,"Digital Communications				",Communications,14/08/2019,5279963,"1,093.00",Granicus LLC
Governance,Corporate & Democratic Core,Corporate Management,"Digital Communications				",Communications,19/08/2019,5279964,"18,362.40",Granicus LLC
Governance,Corporate & Democratic Core,Corporate Management,"Digital Communications				",Communications,14/08/2019,5279965,"1,093.00",Granicus LLC
Governance,Corporate & Democratic Core,Corporate Management,"Digital Communications				",Communications,14/08/2019,5279966,"1,093.00",Granicus LLC
Governance,Corporate & Democratic Core,Corporate Management,"Digital Communications				",Communications,14/08/2019,5279967,"1,093.00",Granicus LLC
Governance,Corporate & Democratic Core,Corporate Management,"Digital Communications				",Communications,14/08/2019,5279968,"1,093.00",Granicus LLC
Governance,Corporate & Democratic Core,Corporate Management,"Digital Communications				",Computing - Purchase of Software,02/08/2019,5274306,"3,000.00",Texthelp Ltd
Governance,Corporate & Democratic Core,Corporate Management,"Our East End						",Services - Professional Fees - Design Fees,05/08/2019,5274798,"1,275.00",Gale + Hayes
Governance,Planning Services,Community Development,Controlling Migration Fund (CMF),Third Party Payments - Voluntary Associations,14/08/2019,5267515,"5,155.55",Account 3 Ltd
Governance,Planning Services,Community Development,Controlling Migration Fund (CMF),Third Party Payments - Voluntary Associations,14/08/2019,5271185,"5,155.55",Account 3 Ltd
Governance,Planning Services,Community Development,Controlling Migration Fund (CMF),Third Party Payments - Voluntary Associations,14/08/2019,5271186,"5,155.55",Account 3 Ltd
Governance,Corporate & Democratic Core,Corporate Management,Business Team,Books - General Purchases,02/08/2019,5271262,"1,353.08",Thomson Reuters
Governance,Corporate & Democratic Core,Corporate Management,Business Team,Books - General Purchases,02/08/2019,5271264,"14,000.00",Thomson Reuters
Governance,Corporate & Democratic Core,Corporate Management,Business Team,Books - General Purchases,28/08/2019,5286567,401.00,Thomson Reuters
Governance,Corporate & Democratic Core,Corporate Management,Business Team,Books - General Purchases,28/08/2019,5286568,401.00,Thomson Reuters
Governance,Corporate & Democratic Core,Corporate Management,Business Team,Services - Professional Fees - Bailiff Fees,12/08/2019,5279585,258.50,P G ASHTON & SONS
Governance,Corporate & Democratic Core,Corporate Management,Business Team,Services - Professional Fees - Bailiff Fees,19/08/2019,5282862,600.00,Masters Legal Costs Services LLP
Governance,Corporate & Democratic Core,Corporate Management,Business Team,Comms - Courier,14/08/2019,5279456,405.00,DX Network Services LTD
Governance,Corporate & Democratic Core,Democratic Representation & Management,Monitoring Officer,Services - Professional Fees - Counsel's Fees,28/08/2019,5286613,"1,500.00",GRAYS INN SQUARE BARRISTERS CHAMBERS
Governance,Corporate & Democratic Core,Democratic Representation & Management,Monitoring Officer,Services - Professional Fees - Legal Fees/Expenses,07/08/2019,5275305,"4,750.00",Anthony Collins Solicitors LLP
Governance,Children's Social Care,Other Children's and Family Services,Social Care Team,Services - Professional Fees - Consultants Fees,23/08/2019,5282801,"2,564.70",Carter Brown - The Expert Service Limited
Governance,Children's Social Care,Other Children's and Family Services,Social Care Team,Services - Professional Fees - Consultants Fees,30/08/2019,5289878,"1,682.55",Carter Brown - The Expert Service Limited
Governance,Children's Social Care,Other Children's and Family Services,Social Care Team,Services - Professional Fees - Counsel's Fees,05/08/2019,5274453,685.00,5 Pump Court CDS
Governance,Children's Social Care,Other Children's and Family Services,Social Care Team,Services - Professional Fees - Counsel's Fees,05/08/2019,5274460,600.00,33 Bedford Row Chambers
Governance,Children's Social Care,Other Children's and Family Services,Social Care Team,Services - Professional Fees - Counsel's Fees,07/08/2019,5277798,375.00,33 Bedford Row Chambers
Governance,Children's Social Care,Other Children's and Family Services,Social Care Team,Services - Professional Fees - Counsel's Fees,09/08/2019,5278783,450.00,5 Pump Court CDS
Governance,Children's Social Care,Other Children's and Family Services,Social Care Team,Services - Professional Fees - Counsel's Fees,12/08/2019,5279348,"1,060.00",5 Pump Court CDS
Governance,Children's Social Care,Other Children's and Family Services,Social Care Team,Services - Professional Fees - Counsel's Fees,12/08/2019,5279350,"1,150.00",CORAM CHAMBERS LTD
Governance,Children's Social Care,Other Children's and Family Services,Social Care Team,Services - Professional Fees - Counsel's Fees,12/08/2019,5279573,"4,050.00",GRAYS INN SQUARE BARRISTERS CHAMBERS
Governance,Children's Social Care,Other Children's and Family Services,Social Care Team,Services - Professional Fees - Counsel's Fees,12/08/2019,5279577,"1,745.00",5 Pump Court CDS
Governance,Children's Social Care,Other Children's and Family Services,Social Care Team,Services - Professional Fees - Counsel's Fees,12/08/2019,5279578,375.00,5 Pump Court CDS
Governance,Children's Social Care,Other Children's and Family Services,Social Care Team,Services - Professional Fees - Counsel's Fees,12/08/2019,5279579,810.00,5 Pump Court CDS
Governance,Children's Social Care,Other Children's and Family Services,Social Care Team,Services - Professional Fees - Counsel's Fees,12/08/2019,5279580,982.50,5 Pump Court CDS
Governance,Children's Social Care,Other Children's and Family Services,Social Care Team,Services - Professional Fees - Counsel's Fees,12/08/2019,5279581,872.50,5 Pump Court CDS
Governance,Children's Social Care,Other Children's and Family Services,Social Care Team,Services - Professional Fees - Counsel's Fees,12/08/2019,5279582,"4,685.00",5 Pump Court CDS
Governance,Children's Social Care,Other Children's and Family Services,Social Care Team,Services - Professional Fees - Counsel's Fees,19/08/2019,5282654,"4,860.00",GRAYS INN SQUARE BARRISTERS CHAMBERS
Governance,Children's Social Care,Other Children's and Family Services,Social Care Team,Services - Professional Fees - Counsel's Fees,19/08/2019,5282898,350.00,5 Pump Court CDS
Governance,Children's Social Care,Other Children's and Family Services,Social Care Team,Services - Professional Fees - Counsel's Fees,23/08/2019,5282907,685.00,5 Pump Court CDS
Governance,Children's Social Care,Other Children's and Family Services,Social Care Team,Services - Professional Fees - Counsel's Fees,23/08/2019,5282908,685.00,5 Pump Court CDS
Governance,Children's Social Care,Other Children's and Family Services,Social Care Team,Services - Professional Fees - Counsel's Fees,23/08/2019,5282911,560.00,5 Pump Court CDS
Governance,Children's Social Care,Other Children's and Family Services,Social Care Team,Services - Professional Fees - Counsel's Fees,23/08/2019,5282914,"1,260.00",IGC Family Law
Governance,Children's Social Care,Other Children's and Family Services,Social Care Team,Services - Professional Fees - Counsel's Fees,23/08/2019,5282916,270.00,5 Pump Court CDS
Governance,Children's Social Care,Other Children's and Family Services,Social Care Team,Services - Professional Fees - Counsel's Fees,23/08/2019,5282917,300.00,5 Pump Court CDS
Governance,Children's Social Care,Other Children's and Family Services,Social Care Team,Services - Professional Fees - Counsel's Fees,23/08/2019,5283076,730.00,CORAM CHAMBERS LTD
Governance,Children's Social Care,Other Children's and Family Services,Social Care Team,Services - Professional Fees - Counsel's Fees,23/08/2019,5283082,560.00,5 Pump Court CDS
Governance,Children's Social Care,Other Children's and Family Services,Social Care Team,Services - Professional Fees - Counsel's Fees,23/08/2019,5283083,"2,365.00",5 Pump Court CDS
Governance,Children's Social Care,Other Children's and Family Services,Social Care Team,Services - Professional Fees - Counsel's Fees,23/08/2019,5283086,"2,125.00",5 Pump Court CDS
Governance,Children's Social Care,Other Children's and Family Services,Social Care Team,Services - Professional Fees - Counsel's Fees,23/08/2019,5283829,"3,336.00",5 Pump Court CDS
Governance,Children's Social Care,Other Children's and Family Services,Social Care Team,Services - Professional Fees - Counsel's Fees,28/08/2019,5286279,750.00,33 Bedford Row Chambers
Governance,Children's Social Care,Other Children's and Family Services,Social Care Team,Services - Professional Fees - Counsel's Fees,28/08/2019,5286589,685.00,5 Pump Court CDS
Governance,Children's Social Care,Other Children's and Family Services,Social Care Team,Services - Professional Fees - Counsel's Fees,28/08/2019,5286590,900.00,33 Bedford Row Chambers
Governance,Children's Social Care,Other Children's and Family Services,Social Care Team,Services - Professional Fees - Counsel's Fees,28/08/2019,5286593,700.00,33 Bedford Row Chambers
Governance,Children's Social Care,Other Children's and Family Services,Social Care Team,Services - Professional Fees - Counsel's Fees,28/08/2019,5286594,975.00,CORAM CHAMBERS LTD
Governance,Children's Social Care,Other Children's and Family Services,Social Care Team,Services - Professional Fees - Counsel's Fees,28/08/2019,5286595,"1,300.00",CORAM CHAMBERS LTD
Governance,Children's Social Care,Other Children's and Family Services,Social Care Team,Services - Professional Fees - Counsel's Fees,28/08/2019,5286596,"1,208.33",CORAM CHAMBERS LTD
Governance,Children's Social Care,Other Children's and Family Services,Social Care Team,Services - Professional Fees - Counsel's Fees,28/08/2019,5286597,725.00,CORAM CHAMBERS LTD
Governance,Children's Social Care,Other Children's and Family Services,Social Care Team,Services - Professional Fees - Counsel's Fees,28/08/2019,5286598,750.00,CORAM CHAMBERS LTD
Governance,Children's Social Care,Other Children's and Family Services,Social Care Team,Services - Professional Fees - Counsel's Fees,28/08/2019,5286599,550.00,CORAM CHAMBERS LTD
Governance,Children's Social Care,Other Children's and Family Services,Social Care Team,Services - Professional Fees - Counsel's Fees,28/08/2019,5286600,813.33,CORAM CHAMBERS LTD
Governance,Children's Social Care,Other Children's and Family Services,Social Care Team,Services - Professional Fees - Counsel's Fees,28/08/2019,5286610,750.00,CORAM CHAMBERS LTD
Governance,Children's Social Care,Other Children's and Family Services,Social Care Team,Services - Professional Fees - Counsel's Fees,28/08/2019,5286612,560.00,5 Pump Court CDS
Governance,Children's Social Care,Other Children's and Family Services,Social Care Team,Services - Professional Fees - Counsel's Fees,28/08/2019,5286804,"1,791.67",CORAM CHAMBERS LTD
Governance,Children's Social Care,Other Children's and Family Services,Social Care Team,Services - Professional Fees - Counsel's Fees,28/08/2019,5286805,700.00,CORAM CHAMBERS LTD
Governance,Children's Social Care,Other Children's and Family Services,Social Care Team,Services - Professional Fees - Counsel's Fees,28/08/2019,5286807,650.00,CORAM CHAMBERS LTD
Governance,Children's Social Care,Other Children's and Family Services,Social Care Team,Services - Professional Fees - Counsel's Fees,28/08/2019,5286809,"3,950.00",CORAM CHAMBERS LTD
Governance,Children's Social Care,Other Children's and Family Services,Social Care Team,Services - Professional Fees - Counsel's Fees,28/08/2019,5286811,600.00,CORAM CHAMBERS LTD
Governance,Children's Social Care,Other Children's and Family Services,Social Care Team,Services - Professional Fees - Counsel's Fees,28/08/2019,5286814,"1,245.00",5 Pump Court CDS
Governance,Children's Social Care,Other Children's and Family Services,Social Care Team,Services - Professional Fees - Counsel's Fees,28/08/2019,5286815,"6,060.00",5 Pump Court CDS
Governance,Children's Social Care,Other Children's and Family Services,Social Care Team,Services - Professional Fees - Counsel's Fees,28/08/2019,5289148,"2,195.00",CORAM CHAMBERS LTD
Governance,Children's Social Care,Other Children's and Family Services,Social Care Team,Services - Professional Fees - Counsel's Fees,28/08/2019,5289149,"1,025.00",CORAM CHAMBERS LTD
Governance,Children's Social Care,Other Children's and Family Services,Social Care Team,Services - Professional Fees - Counsel's Fees,28/08/2019,5289150,300.00,CORAM CHAMBERS LTD
Governance,Children's Social Care,Other Children's and Family Services,Social Care Team,Services - Professional Fees - Counsel's Fees,28/08/2019,5289151,"1,925.00",CORAM CHAMBERS LTD
Governance,Children's Social Care,Other Children's and Family Services,Social Care Team,Services - Professional Fees - Counsel's Fees,28/08/2019,5289153,"1,696.00",CORAM CHAMBERS LTD
Governance,Children's Social Care,Other Children's and Family Services,Social Care Team,Services - Professional Fees - Counsel's Fees,28/08/2019,5289154,550.00,CORAM CHAMBERS LTD
Governance,Children's Social Care,Other Children's and Family Services,Social Care Team,Services - Professional Fees - Counsel's Fees,28/08/2019,5289155,"5,075.00",GARDEN COURT CHAMBERS
Governance,Children's Social Care,Other Children's and Family Services,Social Care Team,Services - Professional Fees - Counsel's Fees,28/08/2019,5289157,825.00,CORAM CHAMBERS LTD
Governance,Children's Social Care,Other Children's and Family Services,Social Care Team,Services - Professional Fees - Counsel's Fees,30/08/2019,5289872,850.00,CORAM CHAMBERS LTD
Governance,Children's Social Care,Other Children's and Family Services,Social Care Team,Services - Professional Fees - Counsel's Fees,30/08/2019,5289873,700.00,CORAM CHAMBERS LTD
Governance,Children's Social Care,Other Children's and Family Services,Social Care Team,Services - Professional Fees - Counsel's Fees,30/08/2019,5289874,"1,100.00",CORAM CHAMBERS LTD
Governance,Children's Social Care,Other Children's and Family Services,Social Care Team,Services - Professional Fees - Counsel's Fees,30/08/2019,5289875,500.00,CORAM CHAMBERS LTD
Governance,Children's Social Care,Other Children's and Family Services,Social Care Team,Services - Professional Fees - Counsel's Fees,30/08/2019,5289876,"2,200.00",CORAM CHAMBERS LTD
Governance,Children's Social Care,Other Children's and Family Services,Social Care Team,Services - Professional Fees - Counsel's Fees,30/08/2019,5289877,550.00,CORAM CHAMBERS LTD
Governance,Children's Social Care,Other Children's and Family Services,Social Care Team,Services - Professional Fees - Legal Fees/Expenses,05/08/2019,5274485,"1,189.06",Ward Andrews Centre for Children & their Families
Governance,Children's Social Care,Other Children's and Family Services,Social Care Team,Services - Professional Fees - Legal Fees/Expenses,05/08/2019,5274486,520.35,Ward Andrews Centre for Children & their Families
Governance,Children's Social Care,Other Children's and Family Services,Social Care Team,Services - Professional Fees - Legal Fees/Expenses,05/08/2019,5274897,"1,760.75",Sundance House Psychology Services
Governance,Children's Social Care,Other Children's and Family Services,Social Care Team,Services - Professional Fees - Legal Fees/Expenses,14/08/2019,5279819,680.00,5 Pump Court CDS
Governance,Children's Social Care,Other Children's and Family Services,Social Care Team,Services - Professional Fees - Legal Fees/Expenses,14/08/2019,5279822,380.00,5 Pump Court CDS
Governance,Children's Social Care,Other Children's and Family Services,Social Care Team,Services - Professional Fees - Legal Fees/Expenses,14/08/2019,5279827,350.00,5 Pump Court CDS
Governance,Children's Social Care,Other Children's and Family Services,Social Care Team,Services - Professional Fees - Legal Fees/Expenses,14/08/2019,5279829,380.00,5 Pump Court CDS
Governance,Children's Social Care,Other Children's and Family Services,Social Care Team,Services - Professional Fees - Legal Fees/Expenses,14/08/2019,5279830,650.00,5 Pump Court CDS
Governance,Children's Social Care,Other Children's and Family Services,Social Care Team,Services - Professional Fees - Legal Fees/Expenses,14/08/2019,5279831,785.00,5 Pump Court CDS
Governance,Children's Social Care,Other Children's and Family Services,Social Care Team,Services - Professional Fees - Legal Fees/Expenses,14/08/2019,5279832,450.00,5 Pump Court CDS
Governance,Children's Social Care,Other Children's and Family Services,Social Care Team,Services - Professional Fees - Legal Fees/Expenses,14/08/2019,5279833,450.00,5 Pump Court CDS
Governance,Children's Social Care,Other Children's and Family Services,Social Care Team,Services - Professional Fees - Legal Fees/Expenses,14/08/2019,5279834,560.00,5 Pump Court CDS
Governance,Children's Social Care,Other Children's and Family Services,Social Care Team,Services - Professional Fees - Legal Fees/Expenses,14/08/2019,5279835,450.00,5 Pump Court CDS
Governance,Children's Social Care,Other Children's and Family Services,Social Care Team,Services - Professional Fees - Legal Fees/Expenses,14/08/2019,5279836,"3,150.00",5 Pump Court CDS
Governance,Children's Social Care,Other Children's and Family Services,Social Care Team,Services - Professional Fees - Legal Fees/Expenses,14/08/2019,5279837,450.00,5 Pump Court CDS
Governance,Children's Social Care,Other Children's and Family Services,Social Care Team,Services - Professional Fees - Legal Fees/Expenses,14/08/2019,5279839,660.00,5 Pump Court CDS
Governance,Children's Social Care,Other Children's and Family Services,Social Care Team,Services - Professional Fees - Legal Fees/Expenses,14/08/2019,5279840,450.00,5 Pump Court CDS
Governance,Children's Social Care,Other Children's and Family Services,Social Care Team,Services - Professional Fees - Legal Fees/Expenses,14/08/2019,5279841,750.00,5 Pump Court CDS
Governance,Children's Social Care,Other Children's and Family Services,Social Care Team,Services - Professional Fees - Legal Fees/Expenses,16/08/2019,5279842,750.00,5 Pump Court CDS
Governance,Children's Social Care,Other Children's and Family Services,Social Care Team,Services - Professional Fees - Legal Fees/Expenses,16/08/2019,5282184,"1,460.00",5 Pump Court CDS
Governance,Children's Social Care,Other Children's and Family Services,Social Care Team,Services - Professional Fees - Legal Fees/Expenses,16/08/2019,5282185,450.00,5 Pump Court CDS
Governance,Children's Social Care,Other Children's and Family Services,Social Care Team,Services - Professional Fees - Legal Fees/Expenses,19/08/2019,5282881,461.20,Dr Bradley Mann Psychological Services Ltd
Governance,Children's Social Care,Other Children's and Family Services,Social Care Team,Services - Professional Fees - Legal Fees/Expenses,23/08/2019,5283080,"3,291.52",EXPERT IN MIND LIMITED
Governance,Children's Social Care,Other Children's and Family Services,Social Care Team,Services - Professional Fees - Legal Fees/Expenses,23/08/2019,5283081,256.50,EXPERT IN MIND LIMITED
Governance,Children's Social Care,Other Children's and Family Services,Social Care Team,Services - Professional Fees - Legal Fees/Expenses,30/08/2019,5289171,518.40,Sumi Ratnam & Co Ltd
Governance,Corporate & Democratic Core,Corporate Management,Employment & Education Team,Services - Professional Fees - Counsel's Fees,28/08/2019,5271165,"12,250.00",Old Square Chambers
Governance,General Fund/Council Fund,Housing Strategy,Housing Services,Services - Professional Fees - Legal Fees/Expenses,30/08/2019,5289179,"18,740.00",Alan Taylor & Co
Governance,Planning Services,Community Development,Ch Exec Mainstream Grants,Third Party Payments - Other Establishments,28/08/2019,5286817,"37,800.82",Stifford Centre
Governance,Planning Services,Community Development,Ch Exec Mainstream Grants,Third Party Payments - Voluntary Associations,02/08/2019,5274502,"8,750.00",AGE UK EAST LONDON
Governance,Planning Services,Community Development,Ch Exec Mainstream Grants,Third Party Payments - Voluntary Associations,05/08/2019,5274503,"7,905.00",AGE UK EAST LONDON
Governance,Planning Services,Community Development,Ch Exec Mainstream Grants,Third Party Payments - Voluntary Associations,05/08/2019,5274504,"5,100.00",Bangladesh Youth Movement
Governance,Planning Services,Community Development,Ch Exec Mainstream Grants,Third Party Payments - Voluntary Associations,05/08/2019,5274505,"3,750.00",London Buddhist Centre
Governance,Planning Services,Community Development,Ch Exec Mainstream Grants,Third Party Payments - Voluntary Associations,05/08/2019,5274506,"12,500.00",The Bromley by Bow Centre
Governance,Planning Services,Community Development,Ch Exec Mainstream Grants,Third Party Payments - Voluntary Associations,05/08/2019,5274507,"2,550.00",CATH (Chinese Association TH)
Governance,Planning Services,Community Development,Ch Exec Mainstream Grants,Third Party Payments - Voluntary Associations,05/08/2019,5274508,"2,280.00",Ensign Youth Club
Governance,Planning Services,Community Development,Ch Exec Mainstream Grants,Third Party Payments - Voluntary Associations,05/08/2019,5274509,"8,681.00",FOUR CORNERS LTD
Governance,Planning Services,Community Development,Ch Exec Mainstream Grants,Third Party Payments - Voluntary Associations,02/08/2019,5274510,"2,100.00",Green Candle Dance Company
Governance,Planning Services,Community Development,Ch Exec Mainstream Grants,Third Party Payments - Voluntary Associations,02/08/2019,5274511,"7,260.00",Island House Community Centre
Governance,Planning Services,Community Development,Ch Exec Mainstream Grants,Third Party Payments - Voluntary Associations,05/08/2019,5274512,"7,650.00",Mind in Tower Hamlets and Newham
Governance,Planning Services,Community Development,Ch Exec Mainstream Grants,Third Party Payments - Voluntary Associations,05/08/2019,5274513,"9,179.00",THE PRINCES TRUST ACTION
Governance,Planning Services,Community Development,Ch Exec Mainstream Grants,Third Party Payments - Voluntary Associations,05/08/2019,5274514,"4,200.00",St Hilda's East Community Centre
Governance,Planning Services,Community Development,Ch Exec Mainstream Grants,Third Party Payments - Voluntary Associations,05/08/2019,5274515,"1,713.00",Tower Hamlets Parents Centre
Governance,Planning Services,Community Development,Ch Exec Mainstream Grants,Third Party Payments - Voluntary Associations,05/08/2019,5274516,"7,500.00",Vallance Community Sports Association
Governance,Planning Services,Community Development,Ch Exec Mainstream Grants,Third Party Payments - Voluntary Associations,05/08/2019,5274517,"3,900.00",WAPPING BANGLADESH ASSOCIATION
Governance,Planning Services,Community Development,Ch Exec Mainstream Grants,Third Party Payments - Voluntary Associations,05/08/2019,5274520,"7,286.00",Deaf Plus London
Governance,Planning Services,Community Development,Ch Exec Mainstream Grants,Third Party Payments - Voluntary Associations,12/08/2019,5279368,"12,500.00",Account 3 Ltd
Governance,Planning Services,Community Development,Ch Exec Mainstream Grants,Third Party Payments - Voluntary Associations,21/08/2019,5279369,"3,250.00",Bangladesh Youth Movement
Governance,Planning Services,Community Development,Ch Exec Mainstream Grants,Third Party Payments - Voluntary Associations,12/08/2019,5279370,"3,445.00",Bethnal Green Weightlifting Club
Governance,Planning Services,Community Development,Ch Exec Mainstream Grants,Third Party Payments - Voluntary Associations,12/08/2019,5279371,"3,150.00",Black Women's Health & Family Support
Governance,Planning Services,Community Development,Ch Exec Mainstream Grants,Third Party Payments - Voluntary Associations,12/08/2019,5279372,750.00,Black Women's Health & Family Support
Governance,Planning Services,Community Development,Ch Exec Mainstream Grants,Third Party Payments - Voluntary Associations,12/08/2019,5279373,"1,050.00",Black Women's Health & Family Support
Governance,Planning Services,Community Development,Ch Exec Mainstream Grants,Third Party Payments - Voluntary Associations,16/08/2019,5279374,"1,000.00",Boundary Community School
Governance,Planning Services,Community Development,Ch Exec Mainstream Grants,Third Party Payments - Voluntary Associations,12/08/2019,5279375,"6,420.00",The Bromley by Bow Centre
Governance,Planning Services,Community Development,Ch Exec Mainstream Grants,Third Party Payments - Voluntary Associations,16/08/2019,5279376,339.00,CATH (Chinese Association TH)
Governance,Planning Services,Community Development,Ch Exec Mainstream Grants,Third Party Payments - Voluntary Associations,16/08/2019,5279377,702.00,CATH (Chinese Association TH)
Governance,Planning Services,Community Development,Ch Exec Mainstream Grants,Third Party Payments - Voluntary Associations,21/08/2019,5279378,"61,250.00",East End Citizens Advice Bureau
Governance,Planning Services,Community Development,Ch Exec Mainstream Grants,Third Party Payments - Voluntary Associations,16/08/2019,5279379,"4,290.00",COMMUNITY OF REFUGEES FROM VIETNAM -
Governance,Planning Services,Community Development,Ch Exec Mainstream Grants,Third Party Payments - Voluntary Associations,16/08/2019,5279380,"1,050.00",COMMUNITY OF REFUGEES FROM VIETNAM -
Governance,Planning Services,Community Development,Ch Exec Mainstream Grants,Third Party Payments - Voluntary Associations,16/08/2019,5279381,497.00,CULLODEN BANGLADESHI PARENTS ASSOCIATION
Governance,Planning Services,Community Development,Ch Exec Mainstream Grants,Third Party Payments - Voluntary Associations,16/08/2019,5279382,"2,210.00",CULLODEN BANGLADESHI PARENTS ASSOCIATION
Governance,Planning Services,Community Development,Ch Exec Mainstream Grants,Third Party Payments - Voluntary Associations,16/08/2019,5279383,"7,286.00",Deaf Plus London
Governance,Planning Services,Community Development,Ch Exec Mainstream Grants,Third Party Payments - Voluntary Associations,16/08/2019,5279384,"8,250.00",Deaf Plus London
Governance,Planning Services,Community Development,Ch Exec Mainstream Grants,Third Party Payments - Voluntary Associations,12/08/2019,5279385,531.00,EC LIGHTHOUSE LIMITED
Governance,Planning Services,Community Development,Ch Exec Mainstream Grants,Third Party Payments - Voluntary Associations,16/08/2019,5279386,"2,000.00",East London Tabernacle Baptist Church
Governance,Planning Services,Community Development,Ch Exec Mainstream Grants,Third Party Payments - Voluntary Associations,21/08/2019,5279387,"1,250.00",GRADUATE FORUM
Governance,Planning Services,Community Development,Ch Exec Mainstream Grants,Third Party Payments - Voluntary Associations,12/08/2019,5279388,"1,640.00",Green Candle Dance Company
Governance,Planning Services,Community Development,Ch Exec Mainstream Grants,Third Party Payments - Voluntary Associations,12/08/2019,5279389,"5,114.00",Half Moon Young People's Theatre
Governance,Planning Services,Community Development,Ch Exec Mainstream Grants,Third Party Payments - Voluntary Associations,21/08/2019,5279390,"3,671.00",Headliners UK
Governance,Planning Services,Community Development,Ch Exec Mainstream Grants,Third Party Payments - Voluntary Associations,14/08/2019,5279391,"12,500.00",ISLAND ADVICE CENTRE
Governance,Planning Services,Community Development,Ch Exec Mainstream Grants,Third Party Payments - Voluntary Associations,14/08/2019,5279392,"11,500.00",ISLAND ADVICE CENTRE
Governance,Planning Services,Community Development,Ch Exec Mainstream Grants,Third Party Payments - Voluntary Associations,14/08/2019,5279393,"7,500.00",Island House Community Centre
Governance,Planning Services,Community Development,Ch Exec Mainstream Grants,Third Party Payments - Voluntary Associations,16/08/2019,5279394,"3,750.00",Island House Community Centre
Governance,Planning Services,Community Development,Ch Exec Mainstream Grants,Third Party Payments - Voluntary Associations,21/08/2019,5279395,"25,000.00",Legal Advice Centre
Governance,Planning Services,Community Development,Ch Exec Mainstream Grants,Third Party Payments - Voluntary Associations,16/08/2019,5279396,"13,750.00",Limehouse Project
Governance,Planning Services,Community Development,Ch Exec Mainstream Grants,Third Party Payments - Voluntary Associations,14/08/2019,5279397,"2,640.00",Limehouse Project
Governance,Planning Services,Community Development,Ch Exec Mainstream Grants,Third Party Payments - Voluntary Associations,14/08/2019,5279398,"3,510.00",Limehouse Project
Governance,Planning Services,Community Development,Ch Exec Mainstream Grants,Third Party Payments - Voluntary Associations,14/08/2019,5279399,"15,000.00",Limehouse Project
Governance,Planning Services,Community Development,Ch Exec Mainstream Grants,Third Party Payments - Voluntary Associations,14/08/2019,5279400,"5,220.00",Limehouse Project
Governance,Planning Services,Community Development,Ch Exec Mainstream Grants,Third Party Payments - Voluntary Associations,14/08/2019,5279401,"11,571.00",Limehouse Project
Governance,Planning Services,Community Development,Ch Exec Mainstream Grants,Third Party Payments - Voluntary Associations,14/08/2019,5279402,"10,500.00",London Tigers
Governance,Planning Services,Community Development,Ch Exec Mainstream Grants,Third Party Payments - Voluntary Associations,14/08/2019,5279403,"2,000.00",Lord's Taverners
Governance,Planning Services,Community Development,Ch Exec Mainstream Grants,Third Party Payments - Voluntary Associations,14/08/2019,5279404,"3,870.00",Magic Me
Governance,Planning Services,Community Development,Ch Exec Mainstream Grants,Third Party Payments - Voluntary Associations,14/08/2019,5279405,"17,292.00",Mind in Tower Hamlets and Newham
Governance,Planning Services,Community Development,Ch Exec Mainstream Grants,Third Party Payments - Voluntary Associations,16/08/2019,5279406,990.00,NEWARK YOUTH LONDON
Governance,Planning Services,Community Development,Ch Exec Mainstream Grants,Third Party Payments - Voluntary Associations,16/08/2019,5279407,"4,869.00",NEWARK YOUTH LONDON
Governance,Planning Services,Community Development,Ch Exec Mainstream Grants,Third Party Payments - Voluntary Associations,21/08/2019,5279408,"3,750.00",NEWARK YOUTH LONDON
Governance,Planning Services,Community Development,Ch Exec Mainstream Grants,Third Party Payments - Voluntary Associations,21/08/2019,5279409,"3,750.00",Ocean Youth Connexions
Governance,Planning Services,Community Development,Ch Exec Mainstream Grants,Third Party Payments - Voluntary Associations,14/08/2019,5279410,"8,250.00",Osmani Trust
Governance,Planning Services,Community Development,Ch Exec Mainstream Grants,Third Party Payments - Voluntary Associations,14/08/2019,5279411,"7,524.00",Osmani Trust
Governance,Planning Services,Community Development,Ch Exec Mainstream Grants,Third Party Payments - Voluntary Associations,21/08/2019,5279412,"3,750.00",Osmani Trust
Governance,Planning Services,Community Development,Ch Exec Mainstream Grants,Third Party Payments - Voluntary Associations,14/08/2019,5279413,"6,000.00",Praxis Community Project
Governance,Planning Services,Community Development,Ch Exec Mainstream Grants,Third Party Payments - Voluntary Associations,14/08/2019,5279414,"1,500.00",Ragged School Museum Trust
Governance,Planning Services,Community Development,Ch Exec Mainstream Grants,Third Party Payments - Voluntary Associations,21/08/2019,5279415,"3,750.00",The Rooted Forum
Governance,Planning Services,Community Development,Ch Exec Mainstream Grants,Third Party Payments - Voluntary Associations,14/08/2019,5279416,"4,500.00",The Rooted Forum
Governance,Planning Services,Community Development,Ch Exec Mainstream Grants,Third Party Payments - Voluntary Associations,14/08/2019,5279417,"4,080.00",Royal London Society for Blind People
Governance,Planning Services,Community Development,Ch Exec Mainstream Grants,Third Party Payments - Voluntary Associations,21/08/2019,5279418,"1,050.00",Society Links
Governance,Planning Services,Community Development,Ch Exec Mainstream Grants,Third Party Payments - Voluntary Associations,16/08/2019,5279419,"3,750.00",Society Links
Governance,Planning Services,Community Development,Ch Exec Mainstream Grants,Third Party Payments - Voluntary Associations,12/08/2019,5279420,"8,130.00",SOMALI SENIOR CITIZENS CLUB
Governance,Planning Services,Community Development,Ch Exec Mainstream Grants,Third Party Payments - Voluntary Associations,12/08/2019,5279421,"5,800.00",Splash Play
Governance,Planning Services,Community Development,Ch Exec Mainstream Grants,Third Party Payments - Voluntary Associations,16/08/2019,5279422,"3,250.00",St Hilda's East Community Centre
Governance,Planning Services,Community Development,Ch Exec Mainstream Grants,Third Party Payments - Voluntary Associations,21/08/2019,5279423,"1,257.50",Stifford Centre
Governance,Planning Services,Community Development,Ch Exec Mainstream Grants,Third Party Payments - Voluntary Associations,12/08/2019,5279425,"13,900.00",TOWER HAMLETS COUNCIL FOR VOLUNTARY SERV
Governance,Planning Services,Community Development,Ch Exec Mainstream Grants,Third Party Payments - Voluntary Associations,21/08/2019,5279426,"28,600.00",TOWER HAMLETS COUNCIL FOR VOLUNTARY SERV
Governance,Planning Services,Community Development,Ch Exec Mainstream Grants,Third Party Payments - Voluntary Associations,14/08/2019,5279427,"22,500.00",TOWER HAMLETS COUNCIL FOR VOLUNTARY SERV
Governance,Planning Services,Community Development,Ch Exec Mainstream Grants,Third Party Payments - Voluntary Associations,14/08/2019,5279428,"8,750.00",TOWER HAMLETS FRIENDS AND NEIGHBOOURS
Governance,Planning Services,Community Development,Ch Exec Mainstream Grants,Third Party Payments - Voluntary Associations,21/08/2019,5279429,"36,148.00",TOWER HAMLETS LAW CENTRE
Governance,Planning Services,Community Development,Ch Exec Mainstream Grants,Third Party Payments - Voluntary Associations,14/08/2019,5279430,"1,050.00",Tower Hamlets Parents Centre
Governance,Planning Services,Community Development,Ch Exec Mainstream Grants,Third Party Payments - Voluntary Associations,12/08/2019,5279431,"4,206.00",Toyhouse
Governance,Planning Services,Community Development,Ch Exec Mainstream Grants,Third Party Payments - Voluntary Associations,12/08/2019,5279432,"1,660.00",Toynbee Hall
Governance,Planning Services,Community Development,Ch Exec Mainstream Grants,Third Party Payments - Voluntary Associations,12/08/2019,5279433,"3,510.00",Toynbee Hall
Governance,Planning Services,Community Development,Ch Exec Mainstream Grants,Third Party Payments - Voluntary Associations,12/08/2019,5279434,"10,000.00",Toynbee Hall
Governance,Planning Services,Community Development,Ch Exec Mainstream Grants,Third Party Payments - Voluntary Associations,12/08/2019,5279435,"6,776.00",Vallance Community Sports Association
Governance,Planning Services,Community Development,Ch Exec Mainstream Grants,Third Party Payments - Voluntary Associations,16/08/2019,5279436,"3,250.00",WADAJIR SOMALI COMMUNITY
Governance,Planning Services,Community Development,Ch Exec Mainstream Grants,Third Party Payments - Voluntary Associations,12/08/2019,5279437,"4,680.00",WADAJIR SOMALI COMMUNITY
Governance,Planning Services,Community Development,Ch Exec Mainstream Grants,Third Party Payments - Voluntary Associations,16/08/2019,5279438,"1,000.00",WAPPING BANGLADESH ASSOCIATION
Governance,Planning Services,Community Development,Ch Exec Mainstream Grants,Third Party Payments - Voluntary Associations,12/08/2019,5279439,750.00,WAPPING BANGLADESH ASSOCIATION
Governance,Planning Services,Community Development,Ch Exec Mainstream Grants,Third Party Payments - Voluntary Associations,12/08/2019,5279440,"4,698.00",Weavers Adventure Playground
Governance,Planning Services,Community Development,Ch Exec Mainstream Grants,Third Party Payments - Voluntary Associations,16/08/2019,5279441,"3,750.00",Weavers Community Forum
Governance,Planning Services,Community Development,Ch Exec Mainstream Grants,Third Party Payments - Voluntary Associations,21/08/2019,5279443,"1,500.00",The Rooted Forum
Governance,Planning Services,Community Development,Ch Exec Mainstream Grants,Third Party Payments - Voluntary Associations,21/08/2019,5279445,"1,250.00",The Rooted Forum
Governance,Planning Services,Community Development,Ch Exec Mainstream Grants,Third Party Payments - Voluntary Associations,16/08/2019,5279446,"3,750.00",YOUNG AND TALENTED LTD
Governance,Planning Services,Community Development,Ch Exec Mainstream Grants,Third Party Payments - Voluntary Associations,28/08/2019,5286818,"5,148.00",The Attlee Foundation
Governance,Planning Services,Community Development,Ch Exec Mainstream Grants,Third Party Payments - Voluntary Associations,28/08/2019,5286820,647.00,LIMEHOUSE WELFARE ASSOCIATION
Governance,Planning Services,Community Development,Ch Exec Mainstream Grants,Third Party Payments - Voluntary Associations,28/08/2019,5286822,"1,250.00",ELMV SHADWELL BASIN PROJECT
Governance,Planning Services,Community Development,Ch Exec Mainstream Grants,Third Party Payments - Voluntary Associations,28/08/2019,5286823,"2,083.00",Glamis adventure playground
Governance,Planning Services,Community Development,Ch Exec Mainstream Grants,Third Party Payments - Voluntary Associations,28/08/2019,5286824,"2,917.00",SOMALI PARENT & CHILDREN PLAY ASS
Governance,Planning Services,Community Development,Ch Exec Mainstream Grants,Third Party Payments - Voluntary Associations,28/08/2019,5286825,"12,500.00",Step Forward (Tower Hamlets)
Governance,Planning Services,Community Development,Ch Exec Mainstream Grants,Third Party Payments - Voluntary Associations,28/08/2019,5286826,"1,250.00",ELMV SHADWELL BASIN PROJECT
Governance,Planning Services,Community Development,Match Funding Schemes,Events & Exhibition Supplies,23/08/2019,5282977,"9,300.00",Kois Miah Photography
Governance,Planning Services,Community Development,Third Sector,Third Party Payments - Other Establishments,05/08/2019,5274519,"13,337.25",Limehouse Project
Governance,Planning Services,Community Development,Third Sector,Third Party Payments - Other Establishments,16/08/2019,5279366,"13,337.25",Limehouse Project
Governance,Corporate & Democratic Core,Corporate Management,Tower Design,Printing - External,12/08/2019,5256257,"7,943.33",Good Impressions
Governance,Corporate & Democratic Core,Corporate Management,Tower Design,Printing - External,02/08/2019,5265177,"1,360.00",Promo2u Ltd
Governance,Corporate & Democratic Core,Corporate Management,Tower Design,Printing - External,09/08/2019,5265178,651.00,Promo2u Ltd
Governance,Corporate & Democratic Core,Corporate Management,Tower Design,Printing - External,02/08/2019,5265626,"1,133.20",Financial Data Management
Governance,Corporate & Democratic Core,Corporate Management,Tower Design,Printing - External,16/08/2019,5266793,404.52,Cubiquity Ltd
Governance,Corporate & Democratic Core,Corporate Management,Tower Design,Printing - External,14/08/2019,5266798,"3,300.00",Good Impressions
Governance,Corporate & Democratic Core,Corporate Management,Tower Design,Printing - External,14/08/2019,5266799,"26,670.00",Good Impressions
Governance,Corporate & Democratic Core,Corporate Management,Tower Design,Printing - External,16/08/2019,5266988,"1,085.00",Good Impressions
Governance,Corporate & Democratic Core,Corporate Management,Tower Design,Printing - External,16/08/2019,5266990,485.00,Good Impressions
Governance,Corporate & Democratic Core,Corporate Management,Tower Design,Printing - External,21/08/2019,5267238,255.00,Promo2u Ltd
Governance,Corporate & Democratic Core,Corporate Management,Tower Design,Printing - External,30/08/2019,5274340,"1,036.00",Cubiquity Ltd
Governance,Corporate & Democratic Core,Corporate Management,Tower Design,Printing - External,30/08/2019,5274341,645.00,Cubiquity Ltd
Governance,Corporate & Democratic Core,Corporate Management,Tower Design,Printing - External,30/08/2019,5274343,"1,433.00",Cubiquity Ltd
Governance,Corporate & Democratic Core,Corporate Management,Tower Design,Printing - External,21/08/2019,5277554,516.00,Cubiquity Ltd
Governance,Corporate & Democratic Core,Corporate Management,Tower Design,Printing - External,21/08/2019,5277556,791.45,Cubiquity Ltd
Governance,Corporate & Democratic Core,Corporate Management,Tower Design,Services - Professional Fees - Design Fees,12/08/2019,5270198,"1,666.67",Gale + Hayes
Governance,Corporate & Democratic Core,Corporate Management,Tower Design,Services - Professional Fees - Design Fees,14/08/2019,5279505,880.00,Paul Swain
Governance,Children's Social Care,Children's and Young People's Safety,Local Safegrd Child Board:LSCB,Services - Professional Fees - Consultants Fees,21/08/2019,5282589,"4,312.50",YCTCS Ltd
Resources,Corporate & Democratic Core,Corporate Management,People Resourcing,Services - Professional Fees - Financial Services Fees,21/08/2019,5283007,"7,910.00",Disclosure and Barring Service
Resources,Corporate & Democratic Core,Corporate Management,Insurance Trading Centre,Legal Fees,05/08/2019,5274383,"1,034.00",Plexus Law
Resources,Corporate & Democratic Core,Corporate Management,Insurance Trading Centre,Legal Fees,14/08/2019,5279306,495.00,CLYDE & CO LLP
Resources,Corporate & Democratic Core,Corporate Management,Insurance Trading Centre,Legal Fees,28/08/2019,5279484,"1,248.00",Browne Jacobson LLP
Resources,Central Services to the Public,Local Tax Collection,Local Taxation,Services - Professional Fees - Legal Fees/Expenses,23/08/2019,5274895,"1,037.50",J E Baring & Co
Resources,Central Services to the Public,Local Tax Collection,Local Taxation,Services - Professional Fees - Legal Fees/Expenses,23/08/2019,5274895,-319.50,J E Baring & Co
Resources,Central Services to the Public,Local Tax Collection,Local Taxation,Services - Professional Fees - Legal Fees/Expenses,21/08/2019,5282633,"1,880.00",J E Baring & Co
Resources,Central Services to the Public,Local Tax Collection,NNDR & Community Charge,Services - Professional Fees - Legal Fees/Expenses,14/08/2019,5274893,"1,880.00",J E Baring & Co
Resources,Central Services to the Public,Local Tax Collection,NNDR & Community Charge,Services - Professional Fees - Legal Fees/Expenses,23/08/2019,5274896,"1,195.00",J E Baring & Co
Resources,Central Services to the Public,Local Tax Collection,NNDR & Community Charge,Services - Professional Fees - Legal Fees/Expenses,21/08/2019,5282635,"1,880.00",J E Baring & Co
Resources,Central Services to the Public,Local Tax Collection,NNDR & Community Charge,Services - Professional Fees - Legal Fees/Expenses,21/08/2019,5282639,"1,880.00",J E Baring & Co
Resources,Central Services to the Public,Local Tax Collection,NNDR & Community Charge,Services - Professional Fees - Legal Fees/Expenses,21/08/2019,5282648,"1,880.00",J E Baring & Co
Resources,Central Services to the Public,Local Tax Collection,Central Revenues,Services - Professional Fees - Legal Fees/Expenses,23/08/2019,5274894,"2,195.50",J E Baring & Co
Resources,Central Services to the Public,Local Tax Collection,Central Revenues,Services - Professional Fees - Legal Fees/Expenses,09/08/2019,5278727,780.00,J E Baring & Co
Resources,Central Services to the Public,Local Tax Collection,Central Revenues,Services - Professional Fees - Legal Fees/Expenses,09/08/2019,5278727,415.00,J E Baring & Co
Resources,Corporate & Democratic Core,Corporate Management,ICT Office,Computing - Maint Agreements - Maintenance,28/08/2019,5278657,"5,750.00",Kingsfield Computer Products Ltd
Resources,General Fund/Council Fund,Housing Benefits Administration,Central Benefits Team,Services - Professional Fees - Consultants Fees,02/08/2019,5271000,"6,187.50",Simon Horsington and Associates Ltd
Resources,General Fund/Council Fund,Housing Benefits Administration,Central Benefits Team,Services - Professional Fees - Financial Services Fees,14/08/2019,5277670,385.42,Allpay LTD
Resources,General Fund/Council Fund,Housing Benefits Administration,Central Benefits Team,Services - Professional Fees - Financial Services Fees,28/08/2019,5286762,337.74,Allpay LTD
Resources,General Fund/Council Fund,Housing Benefits Administration,Central Benefits Team,Comms - Courier,21/08/2019,5271541,741.28,Neopost Finance LTD
Resources,General Fund/Council Fund,Housing Benefits Administration,Central Benefits Team,Computing - Purchase of Software,14/08/2019,5279728,"12,250.00",RB Performance Ltd
Resources,General Fund/Council Fund,Housing Benefits Administration,Central Benefits Team,Payments to Private Contractors - Private Contractor,21/08/2019,5279882,282.62,Northgate Public Services (UK) LTD
Resources,General Fund/Council Fund,Housing Benefits Administration,Central Benefits Team,Payments to Private Contractors - Private Contractor,28/08/2019,5279883,"12,375.95",Northgate Public Services (UK) LTD
Resources,Corporate & Democratic Core,Corporate Management,PMO Management & Support,Services - Professional Fees - Consultants Fees,09/08/2019,5212908,"7,290.44",Agilisys Professional Services
Resources,Corporate & Democratic Core,Corporate Management,PMO Management & Support,Services - Professional Fees - Consultants Fees,09/08/2019,5230399,"3,546.00",Agilisys Professional Services
Resources,Corporate & Democratic Core,Corporate Management,PMO Management & Support,Services - Professional Fees - Consultants Fees,09/08/2019,5238571,"88,720.50",Grant Thornton UK LLP
Resources,Corporate & Democratic Core,Corporate Management,PMO Management & Support,Services - Professional Fees - Consultants Fees,07/08/2019,5242372,"59,760.00",Grant Thornton UK LLP
Resources,Corporate & Democratic Core,Corporate Management,PMO Management & Support,Services - Professional Fees - Consultants Fees,09/08/2019,5250076,"1,379.00",Agilisys Professional Services
Resources,Corporate & Democratic Core,Corporate Management,PMO Management & Support,Services - Professional Fees - Consultants Fees,07/08/2019,5271332,"120,101.00",Grant Thornton UK LLP
Resources,Corporate & Democratic Core,Corporate Management,PMO Management & Support,Services - Professional Fees - Consultants Fees,09/08/2019,5275278,"-35,168.00",Grant Thornton UK LLP
Resources,Corporate & Democratic Core,Corporate Management,PMO Management & Support,Services - Professional Fees - Consultants Fees,30/08/2019,5275279,"42,465.88",Grant Thornton UK LLP
Resources,Corporate & Democratic Core,Corporate Management,Smarter Customer Access,Services - Professional Fees - Consultants Fees,21/08/2019,5283235,"4,000.00",Hart Square Ltd
Resources,Corporate & Democratic Core,Corporate Management,Smarter Customer Access,Services - Professional Fees - Consultants Fees,23/08/2019,5283236,"4,000.00",Hart Square Ltd
Resources,Corporate & Democratic Core,Corporate Management,Smarter Customer Access,Comms - Courier,09/08/2019,5259012,441.50,Churchills Ltd
Resources,Corporate & Democratic Core,Corporate Management,Client Team,Computing - Purchase of Software,23/08/2019,5274964,673.75,Softcat PLC
Resources,Corporate & Democratic Core,Corporate Management,Client Team,Computing - Maint Agreements - Maintenance,16/08/2019,5277609,"5,750.00",Kingsfield Computer Products Ltd
Resources,Corporate & Democratic Core,Corporate Management,Multi Functional Printers,Stationery,07/08/2019,5271382,376.50,Ovenden Papers LTD
Resources,Corporate & Democratic Core,Corporate Management,Multi Functional Printers,Stationery,16/08/2019,5280015,251.00,Ovenden Papers LTD
Resources,Corporate & Democratic Core,Corporate Management,Multi Functional Printers,Stationery,19/08/2019,5280016,376.50,Ovenden Papers LTD
Resources,Corporate & Democratic Core,Corporate Management,Multi Functional Printers,Stationery,19/08/2019,5280017,376.50,Ovenden Papers LTD
Resources,Corporate & Democratic Core,Corporate Management,Multi Functional Printers,Stationery,14/08/2019,5280019,502.00,Ovenden Papers LTD
Resources,Corporate & Democratic Core,Corporate Management,Multi Functional Printers,Stationery,19/08/2019,5280021,376.50,Ovenden Papers LTD
Resources,Corporate & Democratic Core,Corporate Management,Multi Functional Printers,Stationery,28/08/2019,5289110,376.50,Ovenden Papers LTD
Resources,Corporate & Democratic Core,Corporate Management,Multi Functional Printers,Stationery,28/08/2019,5289111,376.50,Ovenden Papers LTD
Resources,Corporate & Democratic Core,Corporate Management,Occupational Health,Services - Professional Fees - Consultants Fees,19/08/2019,5271233,"23,000.50",Health Management Ltd
Resources,Corporate & Democratic Core,Corporate Management,Occupational Health,Recreational Activities,28/08/2019,5278656,"3,420.00",Crystal Palace Physio Group
Resources,Corporate & Democratic Core,Corporate Management,People Resourcing,Staff Advertising,19/08/2019,5271416,"3,580.00",Penna PLC
Resources,Corporate & Democratic Core,Corporate Management,People Resourcing,Computing - Purchase of Software,07/08/2019,5275300,"20,155.60",atlantic Data Ltd
Resources,Corporate & Democratic Core,Corporate Management,Chief Financial Officer Team,Computing - Consumables,16/08/2019,5250896,-376.32,CCS Media Ltd
Resources,Corporate & Democratic Core,Corporate Management,Corp  Services  Finance Team,Training Expenses - Staff External Training (UK Based),19/08/2019,5275283,"1,171.70",Nicholson McBride Ltd
Resources,Corporate & Democratic Core,Corporate Management,Internal Audit,Services - Professional Fees - Counsel's Fees,09/08/2019,5270299,350.00,Drystone Chambers
Resources,Corporate & Democratic Core,Corporate Management,Internal Audit,Services - Professional Fees - Counsel's Fees,09/08/2019,5278796,"1,025.00",5 Paper Buildings
Resources,Corporate & Democratic Core,Corporate Management,Internal Audit,Services - Professional Fees - Counsel's Fees,19/08/2019,5282646,675.00,5 Paper Buildings
Resources,Corporate & Democratic Core,Corporate Management,Internal Audit,Services - Professional Fees - Counsel's Fees,21/08/2019,5283314,650.00,Drystone Chambers
Resources,Corporate & Democratic Core,Corporate Management,Internal Audit,Services - Professional Fees - Counsel's Fees,30/08/2019,5289170,350.00,5 Paper Buildings
Resources,Corporate & Democratic Core,Corporate Management,Insurance Trading Centre,Insurance Premiums - Miscellaneous,02/08/2019,5274315,"7,171.67",JLT Specialty Ltd
Resources,Corporate & Democratic Core,Corporate Management,Insurance Trading Centre,Insurance Premiums - Commercial Property Insurance,14/08/2019,5279546,"51,963.95",Zurich Municipal
Resources,Corporate & Democratic Core,Corporate Management,Insurance Trading Centre,Insurance Premiums - Engineering Inspection Policy,02/08/2019,5274404,"119,208.71",Zurich Municipal
Resources,Corporate & Democratic Core,Corporate Management,Insurance Trading Centre,Insurance Claims - Public Liability Insurance,09/08/2019,5278789,"14,684.50",TV Edwards Solicitors (Client Account)
Resources,Corporate & Democratic Core,Corporate Management,Insurance Trading Centre,Services - Professional Fees - Consultants Fees,30/08/2019,5279255,"1,400.75",Agilisys Professional Services
Resources,Corporate & Democratic Core,Corporate Management,Insurance Trading Centre,Services - Professional Fees - Consultants Fees,30/08/2019,5279272,"2,008.50",Agilisys Professional Services
Resources,Corporate & Democratic Core,Corporate Management,Insurance Trading Centre,Computing - Purchase of Software,30/08/2019,5279257,"2,561.00",Agilisys Professional Services
Resources,Corporate & Democratic Core,Corporate Management,Insurance Trading Centre,Computing - Purchase of Software,30/08/2019,5279268,"1,994.63",Agilisys Professional Services
Resources,Central Services to the Public,Local Tax Collection,Local Taxation,Services - Professional Fees - Financial Services Fees,16/08/2019,5279226,"1,557.45",Allpay LTD
Resources,Central Services to the Public,Local Tax Collection,Local Taxation,Services - Professional Fees - Financial Services Fees,16/08/2019,5279227,"3,210.64",Allpay LTD
Resources,Central Services to the Public,Local Tax Collection,Local Taxation,Comms - Purchase of Equipment,19/08/2019,5267591,392.76,Bell Integration
Resources,Central Services to the Public,Local Tax Collection,Local Taxation,Computing - Purchase of Software,05/08/2019,5265212,517.43,CIVICA UK LTD
Resources,Central Services to the Public,Local Tax Collection,Local Taxation,Computing - Purchase of Software,05/08/2019,5265213,513.35,CIVICA UK LTD
Resources,Central Services to the Public,Local Tax Collection,Local Taxation,Computing - Purchase of Software,28/08/2019,5275252,"8,321.54",Northgate Public Services (UK) LTD
Resources,Central Services to the Public,Local Tax Collection,NNDR & Community Charge,Comms - Purchase of Equipment,28/08/2019,5286645,309.38,Vodafone Corporate LTD
Resources,Central Services to the Public,Local Tax Collection,NNDR & Community Charge,Subscriptions - Associations,19/08/2019,5271319,"10,300.00",Institute of Revenues Rating & Valuation
Resources,Central Services to the Public,Local Tax Collection,NNDR & Community Charge,Subscriptions - Associations,30/08/2019,5279632,"1,170.00",Institute of Revenues Rating & Valuation
Resources,Corporate & Democratic Core,Corporate Management,Finance Graduate Trainees,Training Expenses - Staff External Training (UK Based),30/08/2019,5278612,500.00,CIPFA Business Ltd
Resources,Corporate & Democratic Core,Corporate Management,Finance Graduate Trainees,Training Expenses - Staff External Training (UK Based),30/08/2019,5289757,300.00,CIPFA Business Ltd
Resources,Corporate & Democratic Core,Corporate Management,Financial operations,Subscriptions - Associations,02/08/2019,5271572,"5,075.00",CIPFA Business Ltd
Resources,Corporate & Democratic Core,Corporate Management,Financial Transactions,Training Expenses - Staff External Training (UK Based),21/08/2019,5283005,"1,790.00",ERAS Ltd
Resources,Corporate & Democratic Core,Corporate Management,Financial Transactions,Computing - Purchase of Software,19/08/2019,5271598,"3,502.40",Proactis Group Ltd
Resources,Corporate & Democratic Core,Corporate Management,Financial Transactions,Computing - Purchase of Software,19/08/2019,5271599,"1,499.20",Proactis Group Ltd
Resources,Corporate & Democratic Core,Corporate Management,Cashiers,Non Staff Transport Costs - Reimbursement,28/08/2019,5278698,"2,027.65",Jade Security Services
Resources,Corporate & Democratic Core,Corporate Management,Cashiers,Computing - Purchase of Software,30/08/2019,5279271,394.00,Agilisys Professional Services
Resources,Corporate & Democratic Core,Corporate Management,Payroll,Administration Charges - Administration Charges,14/08/2019,5279810,"3,113.89",TEACHERS PENSION AGENCY
Resources,Corporate & Democratic Core,Corporate Management,Payroll,Administration Charges - Administration Charges,14/08/2019,5279851,-762.89,Unison
Resources,Corporate & Democratic Core,Corporate Management,HR Learning and OD Corporate Training,Training Expenses - Staff External Training (UK Based),05/08/2019,5258905,350.00,Pulse First Aid Ltd
Resources,Corporate & Democratic Core,Corporate Management,HR Learning and OD Corporate Training,Training Expenses - Staff External Training (UK Based),12/08/2019,5262932,480.00,Pulse First Aid Ltd
Resources,Corporate & Democratic Core,Corporate Management,HR Learning and OD Corporate Training,Training Expenses - Staff External Training (UK Based),12/08/2019,5262933,900.00,Pulse First Aid Ltd
Resources,Corporate & Democratic Core,Corporate Management,HR Learning and OD Corporate Training,Training Expenses - Staff External Training (UK Based),23/08/2019,5271636,925.00,Passe-Partout Consulting Limited
Resources,Corporate & Democratic Core,Corporate Management,HR Learning and OD Corporate Training,Training Expenses - Staff External Training (UK Based),23/08/2019,5271666,625.00,Eliesha Training Ltd
Resources,Corporate & Democratic Core,Corporate Management,HR Learning and OD Corporate Training,Training Expenses - Staff External Training (UK Based),19/08/2019,5282560,979.50,Premier Life Skills LTD
Resources,Corporate & Democratic Core,Corporate Management,HR Learning and OD Corporate Training,Services - Professional Fees - Consultants Fees,28/08/2019,5278658,600.00,Realistic Project Management Ltd
Resources,Corporate & Democratic Core,Corporate Management,Purchasing Section,Training Expenses - Staff External Training (UK Based),28/08/2019,5271632,"7,437.40",Action Sustainability
Resources,Corporate & Democratic Core,Corporate Management,Purchasing Section,Subscriptions - Associations,28/08/2019,5286256,480.00,CENTRE FOR CIVIL SOCIETY LIMITED
Resources,Corporate & Democratic Core,Corporate Management,C & TR -Reprographics,Printing - External,28/08/2019,5289027,"39,904.19",London Borough Of Newham
Resources,Corporate & Democratic Core,Corporate Management,ICT Mosaic Project,Computing - Apportionment of Costs,23/08/2019,5275047,"12,672.00",Agilisys Professional Services
Resources,Corporate & Democratic Core,Corporate Management,ICT Office,Services - Professional Fees - Consultants Fees,09/08/2019,5267063,"58,800.00",Agilisys Professional Services
Resources,Corporate & Democratic Core,Corporate Management,ICT Office,Services - Professional Fees - Consultants Fees,09/08/2019,5267063,"2,940.00",Agilisys Professional Services
Resources,Corporate & Democratic Core,Corporate Management,ICT Office,Comms - Purchase of Equipment,14/08/2019,5266442,"168,219.31",Bell Integration
Resources,Corporate & Democratic Core,Corporate Management,ICT Office,Comms - Purchase of Equipment,30/08/2019,5289098,"11,206.06",Telefonica UK Limited
Resources,Corporate & Democratic Core,Corporate Management,ICT Office,Computing - Purchase of Software,14/08/2019,5267059,788.00,Agilisys Professional Services
Resources,Corporate & Democratic Core,Corporate Management,ICT Office,Computing - Purchase of Software,19/08/2019,5282790,"1,190.00",Freedom Of Speech Ltd
Resources,Corporate & Democratic Core,Corporate Management,THH - Rechargable Work,Services - Professional Fees - Consultants Fees,07/08/2019,5250079,541.75,Agilisys Professional Services
Resources,Corporate & Democratic Core,Corporate Management,THH - Rechargable Work,Services - Professional Fees - Consultants Fees,07/08/2019,5267046,"2,152.00",Agilisys Professional Services
Resources,Corporate & Democratic Core,Corporate Management,THH - Rechargable Work,Services - Professional Fees - Consultants Fees,07/08/2019,5267054,"2,970.00",Agilisys Professional Services
Resources,Corporate & Democratic Core,Corporate Management,THH - Rechargable Work,Services - Professional Fees - Consultants Fees,30/08/2019,5279280,"12,808.25",Agilisys Professional Services
Resources,Corporate & Democratic Core,Corporate Management,ICT Transition,Computing - Purchase of Software,30/08/2019,5279273,"3,504.00",Agilisys Professional Services
Resources,Corporate & Democratic Core,Corporate Management,ICT Transition,Computing - Purchase of Software,30/08/2019,5279273,"8,736.00",Agilisys Professional Services
Resources,Corporate & Democratic Core,Corporate Management,ICT Partnership,Payments to Private Contractors - Private Contractor,23/08/2019,5282815,"17,286.17",Agilisys Professional Services
Resources,Corporate & Democratic Core,Corporate Management,ICT Partnership,Payments to Private Contractors - Private Contractor,23/08/2019,5282815,"31,363.75",Agilisys Professional Services
Resources,Corporate & Democratic Core,Corporate Management,ICT Partnership,Payments to Private Contractors - Private Contractor,23/08/2019,5282815,"22,021.94",Agilisys Professional Services
Resources,Corporate & Democratic Core,Corporate Management,ICT Partnership,Payments to Private Contractors - Private Contractor,23/08/2019,5282815,"9,200.00",Agilisys Professional Services
Resources,Corporate & Democratic Core,Corporate Management,ICT Partnership,Payments to Private Contractors - Private Contractor,23/08/2019,5282815,"405,244.30",Agilisys Professional Services
Resources,Corporate & Democratic Core,Corporate Management,ICT Partnership,Payments to Private Contractors - Private Contractor,23/08/2019,5282815,"19,923.59",Agilisys Professional Services
Resources,Corporate & Democratic Core,Corporate Management,ICT Partnership,Payments to Private Contractors - Private Contractor,23/08/2019,5282815,"31,424.49",Agilisys Professional Services
Resources,Corporate & Democratic Core,Corporate Management,ICT Partnership,Payments to Private Contractors - Private Contractor,30/08/2019,5290488,"17,712.30",Global ECM Solutions Ltd
Resources,Corporate & Democratic Core,Corporate Management,ICT Returned Contracts,Computing - Purchase of Software,07/08/2019,5271029,"15,427.50",Mayrise Ltd t/a Yotta
Resources,Corporate & Democratic Core,Corporate Management,ICT Returned Contracts,Payments to Private Contractors - Other Contractors,16/08/2019,5267226,"4,840.00",1Spatial Group Ltd
Resources,Corporate & Democratic Core,Corporate Management,ICT Returned Contracts,Payments to Private Contractors - Other Contractors,19/08/2019,5274406,"16,320.50",15billion
Resources,Corporate & Democratic Core,Corporate Management,ICT Returned Contracts,Payments to Private Contractors - Other Contractors,05/08/2019,5275050,"3,075.00",Serversys LTD
Resources,Corporate & Democratic Core,Corporate Management,ICT Returned Contracts,Payments to Private Contractors - Other Contractors,07/08/2019,5277529,"119,911.00",Northgate Public Services (UK) LTD
Resources,Corporate & Democratic Core,Corporate Management,ICT Returned Contracts,Payments to Private Contractors - Other Contractors,12/08/2019,5279219,"8,100.00",Experian Limited
Resources,Corporate & Democratic Core,Corporate Management,ICT Returned Contracts,Payments to Private Contractors - Other Contractors,12/08/2019,5279511,"10,500.00",Public Consulting Group UK Ltd
Resources,Corporate & Democratic Core,Corporate Management,ICT Returned Contracts,Payments to Private Contractors - Other Contractors,23/08/2019,5286176,"40,070.46",Micro Focus Software UK Ltd
Resources,Corporate & Democratic Core,Corporate Management,ICT Returned Contracts,Payments to Private Contractors - Other Contractors,23/08/2019,5286177,"6,202.97",Micro Focus Software UK Ltd
Resources,Corporate & Democratic Core,Corporate Management,Network Transformation,Services - Professional Fees - Consultants Fees,12/08/2019,5267051,"4,993.50",Agilisys Professional Services
Resources,Corporate & Democratic Core,Corporate Management,Network Transformation,Services - Professional Fees - Consultants Fees,12/08/2019,5267053,"1,785.00",Agilisys Professional Services
Resources,Corporate & Democratic Core,Corporate Management,Network Transformation,Services - Professional Fees - Consultants Fees,07/08/2019,5267061,"7,437.63",Agilisys Professional Services
Resources,Corporate & Democratic Core,Corporate Management,Network Transformation,Services - Professional Fees - Consultants Fees,30/08/2019,5279264,935.75,Agilisys Professional Services
Resources,Corporate & Democratic Core,Corporate Management,Cloud Migration,Services - Professional Fees - Consultants Fees,07/08/2019,5267055,"7,280.16",Agilisys Professional Services
Resources,Corporate & Democratic Core,Corporate Management,Cloud Migration,Computing - Purchase of Software,30/08/2019,5282689,"54,466.81",CAPITA BUSINESS SERVICES LTD
Resources,Corporate & Democratic Core,Corporate Management,ICT Core Transformation,Computing - Purchase of Software,28/08/2019,5230407,"1,970.00",Agilisys Professional Services
Resources,Corporate & Democratic Core,Corporate Management,ICT Core Transformation,Computing - Purchase of Software,28/08/2019,5250092,"2,856.50",Agilisys Professional Services
Resources,Corporate & Democratic Core,Corporate Management,ICT Core Transformation,Computing - Purchase of Software,30/08/2019,5279253,320.13,Agilisys Professional Services
Resources,Corporate & Democratic Core,Corporate Management,ICT Project Team,Services - Professional Fees - Consultants Fees,07/08/2019,5266804,"39,135.00",Bloom Procurement Services Limited
Resources,Corporate & Democratic Core,Corporate Management,ICT Project Team,Services - Professional Fees - Consultants Fees,30/08/2019,5279254,"1,614.00",Agilisys Professional Services
Resources,Corporate & Democratic Core,Corporate Management,ICT Project Team,Computing - Purchase of Software,07/08/2019,5212900,"4,860.37",Agilisys Professional Services
Resources,Corporate & Democratic Core,Corporate Management,ICT Project Team,Computing - Purchase of Software,19/08/2019,5270225,723.77,Specialist Computer Centres PLC
Resources,Corporate & Democratic Core,Corporate Management,ICT Project Team,Computing - Purchase of Software,19/08/2019,5270225,290.40,Specialist Computer Centres PLC
Resources,Corporate & Democratic Core,Corporate Management,ICT Project Team,Computing - Purchase of Software,30/08/2019,5279256,"3,288.12",Agilisys Professional Services
Resources,Corporate & Democratic Core,Corporate Management,ICT Project Team,Computing - Purchase of Software,30/08/2019,5279259,"4,860.37",Agilisys Professional Services
Resources,Corporate & Democratic Core,Corporate Management,ICT Project Team,Computing - Purchase of Software,30/08/2019,5279263,"11,406.75",Agilisys Professional Services
Resources,Corporate & Democratic Core,Corporate Management,Desktop Transformation,Computing - Purchase of Software,28/08/2019,5184391,903.00,Softcat PLC
Resources,Corporate & Democratic Core,Corporate Management,Desktop Transformation,Computing - Purchase of Software,09/08/2019,5267062,"43,092.00",Agilisys Professional Services
Resources,Corporate & Democratic Core,Corporate Management,Desktop Transformation,Computing - Purchase of Software,28/08/2019,5271028,"5,559.84",Softcat PLC
Resources,Corporate & Democratic Core,Corporate Management,Desktop Transformation,Computing - Purchase of Software,28/08/2019,5271028,935.55,Softcat PLC
Resources,Corporate & Democratic Core,Corporate Management,Desktop Transformation,Computing - Purchase of Software,30/08/2019,5279260,"7,721.00",Agilisys Professional Services
Resources,Corporate & Democratic Core,Corporate Management,Desktop Transformation,Computing - Purchase of Software,30/08/2019,5279265,"2,824.50",Agilisys Professional Services
Resources,Corporate & Democratic Core,Corporate Management,Desktop Transformation,Computing - Purchase of Software,30/08/2019,5279274,"2,627.00",Agilisys Professional Services
Resources,Corporate & Democratic Core,Corporate Management,Desktop Transformation,Computing - Maint Agreements - Maintenance,21/08/2019,5271621,928.18,Kingsfield Computer Products Ltd
Resources,Corporate & Democratic Core,Corporate Management,Desktop Transformation,Computing - Maint Agreements - Maintenance,28/08/2019,5275293,"56,400.00",Kingsfield Computer Products Ltd
Resources,Corporate & Democratic Core,Corporate Management,Desktop Transformation,Computing - Maint Agreements - Maintenance,19/08/2019,5277610,"10,912.00",Kingsfield Computer Products Ltd
Resources,Corporate & Democratic Core,Corporate Management,Desktop Transformation,Computing - Maint Agreements - Maintenance,19/08/2019,5277610,"2,079.20",Kingsfield Computer Products Ltd
Resources,Corporate & Democratic Core,Corporate Management,Desktop Transformation,Computing - Maint Agreements - Maintenance,23/08/2019,5277611,928.00,Kingsfield Computer Products Ltd
Resources,Corporate & Democratic Core,Corporate Management,Desktop Transformation,Computing - Maint Agreements - Maintenance,23/08/2019,5277612,"2,079.20",Kingsfield Computer Products Ltd
Resources,Corporate & Democratic Core,Corporate Management,Desktop Transformation,Computing - Maint Agreements - Maintenance,23/08/2019,5277612,"10,912.00",Kingsfield Computer Products Ltd
Resources,No Service Specified,No Division Specified,"Resources - Capital Works		",Other External Fees - Consultants Fees,14/08/2019,5266427,525.00,Pellings LLP
Resources,No Service Specified,No Division Specified,"Resources - Capital Works		",Other External Fees - Consultants Fees,23/08/2019,5271631,"5,240.00",Capital Property & Construction  Consultants  Ltd
Resources,No Service Specified,No Division Specified,"Resources - Capital Works		",Other External Fees - Consultants Fees,23/08/2019,5286012,375.00,Pellings LLP
Resources,No Service Specified,No Division Specified,"Resources - Capital Works		",Other External Fees - Other External Fees,23/08/2019,5274322,"23,922.26",Rainbow Office Design Ltd
Resources,No Service Specified,No Division Specified,"Resources - Capital Works		",Other External Fees - Other External Fees,28/08/2019,5282996,"20,080.00",Interior Service Limited
Resources,No Service Specified,No Division Specified,"Resources - Capital Works		",Other Internal Fees - Other Internal Fees,23/08/2019,5279697,400.00,surelock security systems ltd
Resources,Education Services,Other Education and Community Budget,Shadwell Centre,Photocopier Charges - Consumables,23/08/2019,5271217,370.86,Supplies Team Ltd
Resources,Education Services,Other Education and Community Budget,Shadwell Centre,Photocopier Charges - Consumables,23/08/2019,5271217,370.86,Supplies Team Ltd
Resources,Education Services,Other Education and Community Budget,Shadwell Centre,Photocopier Charges - Consumables,23/08/2019,5271218,405.84,Supplies Team Ltd
Resources,Education Services,Other Education and Community Budget,Shadwell Centre,Photocopier Charges - Consumables,30/08/2019,5274956,370.86,Supplies Team Ltd
Resources,Education Services,Other Education and Community Budget,Shadwell Centre,Stationery,19/08/2019,5275361,277.00,ESPO
Resources,Education Services,Other Education and Community Budget,Shadwell Centre,Stationery,23/08/2019,5275363,414.00,ESPO
Resources,Cultural and Related Services,Library Service,Idea Store Management,Books - General Purchases,12/08/2019,5279524,250.00,The Reading Agency Ltd
Resources,Cultural and Related Services,Library Service,Idea Store Management,Office Furniture/Equipment,14/08/2019,5279551,"3,150.00",Unique Office Solutions
Resources,Cultural and Related Services,Library Service,Idea Store Management,Office Furniture/Equipment,14/08/2019,5279551,616.00,Unique Office Solutions
Resources,Cultural and Related Services,Library Service,Idea Store Management,Comms - Courier,05/08/2019,5259006,529.40,Churchills Ltd
Resources,Cultural and Related Services,Library Service,Bibliographical Service,Books - General Purchases,05/08/2019,5258801,494.21,Peters Bookselling Services
Resources,Cultural and Related Services,Library Service,Bibliographical Service,Books - General Purchases,05/08/2019,5258804,"1,204.66",Peters Bookselling Services
Resources,Cultural and Related Services,Library Service,Bibliographical Service,Books - General Purchases,05/08/2019,5259099,251.80,Peters Bookselling Services
Resources,Cultural and Related Services,Library Service,Bibliographical Service,Books - General Purchases,05/08/2019,5259101,326.77,Peters Bookselling Services
Resources,Cultural and Related Services,Library Service,Bibliographical Service,Books - General Purchases,05/08/2019,5259102,285.72,Peters Bookselling Services
Resources,Cultural and Related Services,Library Service,Bibliographical Service,Books - General Purchases,05/08/2019,5259106,403.82,Peters Bookselling Services
Resources,Cultural and Related Services,Library Service,Bibliographical Service,Books - General Purchases,05/08/2019,5259109,260.88,Askews and Holts Library Services Ltd
Resources,Cultural and Related Services,Library Service,Bibliographical Service,Books - General Purchases,05/08/2019,5259112,"1,498.51",Peters Bookselling Services
Resources,Cultural and Related Services,Library Service,Bibliographical Service,Books - General Purchases,05/08/2019,5259114,275.24,Peters Bookselling Services
Resources,Cultural and Related Services,Library Service,Bibliographical Service,Books - General Purchases,05/08/2019,5259118,257.79,Peters Bookselling Services
Resources,Cultural and Related Services,Library Service,Bibliographical Service,Books - General Purchases,05/08/2019,5259128,"1,422.43",Peters Bookselling Services
Resources,Cultural and Related Services,Library Service,Bibliographical Service,Books - General Purchases,12/08/2019,5265819,321.19,Askews and Holts Library Services Ltd
Resources,Cultural and Related Services,Library Service,Bibliographical Service,Books - General Purchases,12/08/2019,5266332,270.12,Peters Bookselling Services
Resources,Cultural and Related Services,Library Service,Bibliographical Service,Books - General Purchases,12/08/2019,5266335,250.46,Askews and Holts Library Services Ltd
Resources,Cultural and Related Services,Library Service,Bibliographical Service,Books - General Purchases,09/08/2019,5266341,"1,659.36",Peters Bookselling Services
Resources,Cultural and Related Services,Library Service,Bibliographical Service,Books - General Purchases,09/08/2019,5266343,"1,169.75",Peters Bookselling Services
Resources,Cultural and Related Services,Library Service,Bibliographical Service,Books - General Purchases,09/08/2019,5266344,517.41,Peters Bookselling Services
Resources,Cultural and Related Services,Library Service,Bibliographical Service,Books - General Purchases,09/08/2019,5266347,"1,117.08",Peters Bookselling Services
Resources,Cultural and Related Services,Library Service,Bibliographical Service,Books - General Purchases,09/08/2019,5266348,488.55,Peters Bookselling Services
Resources,Cultural and Related Services,Library Service,Bibliographical Service,Books - General Purchases,09/08/2019,5266349,641.85,Peters Bookselling Services
Resources,Cultural and Related Services,Library Service,Bibliographical Service,Books - General Purchases,16/08/2019,5266957,279.78,Askews and Holts Library Services Ltd
Resources,Cultural and Related Services,Library Service,Bibliographical Service,Books - General Purchases,21/08/2019,5271142,430.20,Ulverscroft Large Print Books Ltd
Resources,Cultural and Related Services,Library Service,Bibliographical Service,Books - General Purchases,23/08/2019,5271453,422.31,Peters Bookselling Services
Resources,Cultural and Related Services,Library Service,Bibliographical Service,Books - General Purchases,23/08/2019,5271681,335.94,Peters Bookselling Services
Resources,Cultural and Related Services,Library Service,Bibliographical Service,Books - General Purchases,23/08/2019,5271682,393.70,Peters Bookselling Services
Resources,Cultural and Related Services,Library Service,Bibliographical Service,Books - General Purchases,23/08/2019,5271688,394.17,Askews and Holts Library Services Ltd
Resources,Cultural and Related Services,Library Service,Bibliographical Service,Books - General Purchases,28/08/2019,5274887,404.16,Ulverscroft Large Print Books Ltd
Resources,Cultural and Related Services,Library Service,Bibliographical Service,Books - General Purchases,28/08/2019,5274888,307.21,Peters Bookselling Services
Resources,Cultural and Related Services,Library Service,Bibliographical Service,Books - General Purchases,28/08/2019,5274891,260.00,Askews and Holts Library Services Ltd
Resources,Cultural and Related Services,Library Service,Bibliographical Service,Books - General Purchases,30/08/2019,5289053,"2,500.00",Bolinda UK Ltd
Resources,Cultural and Related Services,Library Service,Bibliographical Service,Newspapers and Magazines - General Purchases,14/08/2019,5218114,259.48,Martin McColl
Resources,Cultural and Related Services,Library Service,Bibliographical Service,Newspapers and Magazines - General Purchases,19/08/2019,5258625,279.84,Martin McColl
Resources,Cultural and Related Services,Library Service,Bibliographical Service,Newspapers and Magazines - General Purchases,23/08/2019,5258629,261.48,Martin McColl
Resources,Cultural and Related Services,Library Service,Bibliographical Service,Newspapers and Magazines - General Purchases,02/08/2019,5274831,270.50,H & H Newsagent
Resources,Cultural and Related Services,Library Service,Bibliographical Service,Newspapers and Magazines - General Purchases,23/08/2019,5282206,286.08,Martin McColl
Resources,Cultural and Related Services,Library Service,Local History/Archive,Tools and Equipment - Purchase,21/08/2019,5282724,"1,420.00",G Ryder & Co Ltd
Resources,Cultural and Related Services,Library Service,Local History/Archive,Tools and Equipment - Purchase,21/08/2019,5282724,975.80,G Ryder & Co Ltd
Resources,Cultural and Related Services,Library Service,Local History/Archive,Tools and Equipment - Purchase,21/08/2019,5282724,330.00,G Ryder & Co Ltd
Resources,Cultural and Related Services,Library Service,Local History/Archive,Events & Exhibition Supplies,14/08/2019,5266998,300.00,Numbi Arts
Resources,Cultural and Related Services,Library Service,Local History/Archive,Services - Professional Fees - Consultants Fees,16/08/2019,5267263,550.00,National Conservation Service
Resources,Cultural and Related Services,Library Service,Local History/Archive,Services - Professional Fees - Consultants Fees,28/08/2019,5283179,"12,500.00",Conservation Ltd
Resources,Cultural and Related Services,Library Service,Local History/Archive,Services - Professional Fees - Consultants Fees,23/08/2019,5286028,514.80,Conservation Ltd
Resources,Cultural and Related Services,Library Service,Local History/Archive,Services - Professional Fees - Consultants Fees,23/08/2019,5286028,"1,201.20",Conservation Ltd
Resources,Cultural and Related Services,Library Service,Local History/Archive,Third Party Payments - Voluntary Associations,21/08/2019,5271231,500.00,Numbi Arts
Resources,Cultural and Related Services,Library Service,Idea Store - whitechapel,Catering - Hospitality,14/08/2019,5275257,290.00,Satt Caterers Ltd
Resources,Cultural and Related Services,Library Service,Idea Store - whitechapel,Kitchen Supplies - Food and Beverages,30/08/2019,5282203,880.00,Cooleraid Ltd
Resources,Cultural and Related Services,Library Service,Idea Store - whitechapel,Photocopier Charges - Consumables,16/08/2019,5266982,410.26,Supplies Team Ltd
Resources,Cultural and Related Services,Library Service,Idea Store - Bow,Photocopier Charges - Consumables,16/08/2019,5266983,269.15,Supplies Team Ltd
Resources,Cultural and Related Services,Library Service,Idea Store - Bow,Computing - Purchase of Hardware,05/08/2019,5271371,639.56,INSIGHT DIRECT (UK) LTD
Resources,Cultural and Related Services,Library Service,Idea Store - Canary Wharf,Photocopier Charges - Consumables,28/08/2019,5271585,413.17,Supplies Team Ltd
Resources,Cultural and Related Services,Library Service,Idea Store - ICT and Capital Projects,Computing - Purchase of Hardware,19/08/2019,5279523,975.84,INSIGHT DIRECT (UK) LTD
Resources,Education Services,Other Education and Community Budget,Lifelong Learning ACL Manageme,Subscriptions - Subscriptions to Associations,28/08/2019,5275355,820.00,Association of Adult Education & Trainin
Resources,Education Services,Other Education and Community Budget,Creative & Performing Arts,Educational/Training Supplies - Arts & Crafts,19/08/2019,5282683,449.28,Specialist Crafts LTD
Resources,Education Services,Other Education and Community Budget,MIS - Data,Services - Professional Fees - Consultants Fees,07/08/2019,5267060,"5,683.00",Agilisys Professional Services
Resources,Education Services,Other Education and Community Budget,MIS - Data,Services - Professional Fees - Consultants Fees,30/08/2019,5279270,"2,068.50",Agilisys Professional Services
Resources,Education Services,Other Education and Community Budget,MIS - Data,Computing - Maint Agreements - Maintenance,14/08/2019,5279668,"1,900.00",Tribal Education LTD
Resources,Education Services,Other Education and Community Budget,MIS - Data,Computing - Maint Agreements - Maintenance,14/08/2019,5279668,380.00,Tribal Education LTD
Resources,Education Services,Other Education and Community Budget,MIS - Data,Computing - Licences - Software,07/08/2019,5256342,"3,000.00",Trilobe IT
Resources,Education Services,Other Education and Community Budget,MIS - Data,Computing - Licences - Software,28/08/2019,5274405,"4,500.00",Trilobe IT
Resources,Education Services,Other Education and Community Budget,Technical Education,Repairs and Maintenance - Responsive - Repair & Maintenance,23/08/2019,5274359,662.00,Kent Catering Services  Bromley  Ltd
Resources,Education Services,Other Education and Community Budget,Technical Education,Contract Cleaning,14/08/2019,5279873,460.05,Alexandra Cleaning services
Resources,Education Services,Other Education and Community Budget,Technical Education,Contract Cleaning,14/08/2019,5279874,400.05,Alexandra Cleaning services
Resources,Education Services,Other Education and Community Budget,Technical Education,Contract Cleaning,14/08/2019,5279875,593.40,Alexandra Cleaning services
Resources,Corporate & Democratic Core,Corporate Management,Childrens Services Finance,Services - Professional Fees - Consultants Fees,28/08/2019,5274796,"4,550.00",Worth Consultancy Limited
Resources,No Service Specified,No Division Specified,Balance Sheet,Employees Debtor - STL Advances,05/08/2019,5275202,"3,641.81",ABELLIO EAST ANGLIA LTD
Resources,No Service Specified,No Division Specified,Balance Sheet,Employees Debtor - STL Advances,14/08/2019,5279850,"1,802.63",ABELLIO EAST ANGLIA LTD
Resources,No Service Specified,No Division Specified,Balance Sheet,Employees Debtor - STL Advances,28/08/2019,5289009,"2,481.81",ABELLIO EAST ANGLIA LTD
Resources,No Service Specified,No Division Specified,Balance Sheet,Employees Debtor - STL Advances,28/08/2019,5289010,"1,405.81",ABELLIO EAST ANGLIA LTD
Resources,No Service Specified,No Division Specified,Balance Sheet,Sundry Debtors - G.M.B.,14/08/2019,5279854,"3,798.94",GMB
Resources,No Service Specified,No Division Specified,Balance Sheet,Sundry Debtors - UNISON,14/08/2019,5279851,"30,515.85",Unison
Resources,No Service Specified,No Division Specified,Balance Sheet,Sundry Debtors - UNITE,14/08/2019,5279852,"1,560.10",TGWU
Resources,No Service Specified,No Division Specified,Balance Sheet,Inter-company Account - Due from THH - External Payments,30/08/2019,5274278,"1,250.00",CEL Solicitors
Resources,No Service Specified,No Division Specified,Balance Sheet,Inter-company Account - Due from THH - External Payments,30/08/2019,5274474,"7,750.00",ANTHONY GOLD SOLICITORS
Resources,No Service Specified,No Division Specified,Balance Sheet,Inter-company Account - Due from THH - External Payments,30/08/2019,5282877,788.00,Messrs Aticus Law Solicitors
Resources,No Service Specified,No Division Specified,Balance Sheet,Inter-company Account - Due from THH - External Payments,30/08/2019,5283103,"2,050.00",Miles & Partners Solicitors
Resources,No Service Specified,No Division Specified,Balance Sheet,Inter-company Account - Due from THH - External Payments,30/08/2019,5283295,"7,750.00",ANTHONY GOLD SOLICITORS
Resources,No Service Specified,No Division Specified,Balance Sheet,Opted-Out Schools Payroll Deductions - AVC - Opt-Out Schs Payments,12/08/2019,5278846,"1,500.00",PRUDENTIAL ASSURANCE COMPANY LTD
Resources,No Service Specified,No Division Specified,Balance Sheet,Opted-Out Schools Payroll Deductions - AVC - Opt-Out Schs Payments,12/08/2019,5278846,"1,401.71",PRUDENTIAL ASSURANCE COMPANY LTD
Resources,No Service Specified,No Division Specified,Balance Sheet,Opted-Out Schools Payroll Deductions - AVC - Opt-Out Schs Payments,12/08/2019,5278846,636.51,PRUDENTIAL ASSURANCE COMPANY LTD
Resources,No Service Specified,No Division Specified,Balance Sheet,Opted-Out Schools Payroll Deductions - AVC - Opt-Out Schs Payments,12/08/2019,5278846,783.98,PRUDENTIAL ASSURANCE COMPANY LTD
Resources,No Service Specified,No Division Specified,Balance Sheet,Opted-Out Schools Payroll Deductions - AVC - Opt-Out Schs Payments,12/08/2019,5278846,574.18,PRUDENTIAL ASSURANCE COMPANY LTD
Resources,No Service Specified,No Division Specified,Balance Sheet,Opted-Out Schools Payroll Deductions - AVC - Opt-Out Schs Payments,12/08/2019,5279161,"1,500.00",PRUDENTIAL ASSURANCE COMPANY LTD
Resources,No Service Specified,No Division Specified,Balance Sheet,Opted-Out Schools Payroll Deductions - AVC - Opt-Out Schs Payments,12/08/2019,5279161,"1,401.71",PRUDENTIAL ASSURANCE COMPANY LTD
Resources,No Service Specified,No Division Specified,Balance Sheet,Opted-Out Schools Payroll Deductions - AVC - Opt-Out Schs Payments,12/08/2019,5279161,636.51,PRUDENTIAL ASSURANCE COMPANY LTD
Resources,No Service Specified,No Division Specified,Balance Sheet,Opted-Out Schools Payroll Deductions - AVC - Opt-Out Schs Payments,12/08/2019,5279161,783.98,PRUDENTIAL ASSURANCE COMPANY LTD
Resources,No Service Specified,No Division Specified,Balance Sheet,Opted-Out Schools Payroll Deductions - AVC - Opt-Out Schs Payments,12/08/2019,5279161,574.18,PRUDENTIAL ASSURANCE COMPANY LTD
Resources,No Service Specified,No Division Specified,Balance Sheet,Opted-Out Schools Payroll Deductions - AVC - Opt-Out Schs Payments,12/08/2019,5279162,"1,500.00",PRUDENTIAL ASSURANCE COMPANY LTD
Resources,No Service Specified,No Division Specified,Balance Sheet,Opted-Out Schools Payroll Deductions - AVC - Opt-Out Schs Payments,12/08/2019,5279162,"1,401.71",PRUDENTIAL ASSURANCE COMPANY LTD
Resources,No Service Specified,No Division Specified,Balance Sheet,Opted-Out Schools Payroll Deductions - AVC - Opt-Out Schs Payments,12/08/2019,5279162,636.51,PRUDENTIAL ASSURANCE COMPANY LTD
Resources,No Service Specified,No Division Specified,Balance Sheet,Opted-Out Schools Payroll Deductions - AVC - Opt-Out Schs Payments,12/08/2019,5279162,783.98,PRUDENTIAL ASSURANCE COMPANY LTD
Resources,No Service Specified,No Division Specified,Balance Sheet,Opted-Out Schools Payroll Deductions - AVC - Opt-Out Schs Payments,12/08/2019,5279162,569.19,PRUDENTIAL ASSURANCE COMPANY LTD
Resources,No Service Specified,No Division Specified,Balance Sheet,Energy Debtors - Electricity,30/08/2019,5279364,315.92,British Gas Business
Resources,No Service Specified,No Division Specified,Balance Sheet,Uncertified VAT Control Account,07/08/2019,5271422,410.00,Thames Water Utilities LTD
Resources,No Service Specified,No Division Specified,Balance Sheet,HMRC Creditor - Sub Cntrctr Fin Act 1975,19/08/2019,5282906,"13,287.78",H M Revenue & Customs Only
Resources,No Service Specified,No Division Specified,Balance Sheet,Sundry Creditors - GLC Fund,07/08/2019,5278037,"8,508.82",LONDON PENSIONS FUND AUTHORITY
Resources,No Service Specified,No Division Specified,Balance Sheet,Sundry Creditors - GLC Fund,07/08/2019,5278038,"12,099.53",LONDON PENSIONS FUND AUTHORITY
Resources,No Service Specified,No Division Specified,Balance Sheet,Sundry Creditors - LPFA-Ers Lump Sum,07/08/2019,5278037,"5,543.17",LONDON PENSIONS FUND AUTHORITY
Resources,No Service Specified,No Division Specified,Balance Sheet,Sundry Creditors - LPFA-Opt Out Schs Payment,07/08/2019,5278038,906.91,LONDON PENSIONS FUND AUTHORITY
Resources,No Service Specified,No Division Specified,Balance Sheet,Sundry Creditors - NHS Pensions,05/08/2019,5275203,"20,894.58",NHS PENSIONS
Resources,No Service Specified,No Division Specified,Balance Sheet,Sundry Creditors - NHS Pensions,07/08/2019,5277784,"20,847.69",NHS PENSIONS
Resources,No Service Specified,No Division Specified,Balance Sheet,Sundry Creditors - NHS Pensions,09/08/2019,5279318,"20,877.45",NHS PENSIONS
Resources,No Service Specified,No Division Specified,Balance Sheet,System Interface Control Account - Comensura,01/08/2019,11382976,"597,273.76",Adecco UK Ltd
Resources,No Service Specified,No Division Specified,Balance Sheet,System Interface Control Account - Comensura,02/08/2019,11390096,"723,568.32",Adecco UK Ltd
Resources,No Service Specified,No Division Specified,Balance Sheet,System Interface Control Account - Comensura,12/08/2019,11393594,"507,620.74",Adecco UK Ltd
Resources,No Service Specified,No Division Specified,Balance Sheet,System Interface Control Account - Comensura,23/08/2019,11400164,"602,199.87",Adecco UK Ltd
Resources,No Service Specified,No Division Specified,Balance Sheet,System Interface Control Account - Comensura,28/08/2019,11400436,"703,270.46",Adecco UK Ltd
Health Adults and Community,Public Health,Substance Misuse,"Contracted Services (Drug and Alcohol)		",Payments to Private Contractors - Pharmacies,30/08/2019,5286663,"1,514.50",ABC DRUGSTORES LTD
Health Adults and Community,Adult Social Care,Physical Support - older people (65+),Generic Care Packages SE Team -PS,Social Care - Nursing Care,02/08/2019,5273720,"4,295.71",ACORN LODGE CARE HOME
Health Adults and Community,Adult Social Care,Physical Support - older people (65+),Generic Care Packages SE Team -PS,Social Care - Nursing Care,02/08/2019,5273729,"4,018.48",ACORN LODGE CARE HOME
Health Adults and Community,Adult Social Care,Physical Support - older people (65+),Generic Care Packages SE Team -PS,Income from Health - Nursing Care,02/08/2019,5273720,-733.19,ACORN LODGE CARE HOME
Health Adults and Community,Adult Social Care,Physical Support - older people (65+),Generic Care Packages SE Team -PS,Income from Health - Nursing Care,02/08/2019,5273729,-733.19,ACORN LODGE CARE HOME
Health Adults and Community,Adult Social Care,Mental Health Support - adults (18-64),Cmht For Older People,Social Care - Nursing Care,02/08/2019,5273726,"5,881.17",ACORN LODGE CARE HOME
Health Adults and Community,Adult Social Care,Mental Health Support - adults (18-64),Cmht For Older People,Income from Health - Nursing Care,02/08/2019,5273726,"-1,017.01",ACORN LODGE CARE HOME
Health Adults and Community,Public Health,Substance Misuse,"Residential Treatment (Drug and Alcohol)		",Client Treatment Services,28/08/2019,5279447,"4,350.00",Action on Addiction
Health Adults and Community,Adult Social Care,Sensory Support - older people (65+),Sight and Hearing Service,Social Care - Residential Care,28/08/2019,5287624,"3,946.48",ACTION ON HEARING LOSS
Health Adults and Community,Adult Social Care,Sensory Support - older people (65+),Sight and Hearing Service,Social Care - Residential Care,28/08/2019,5287625,"4,146.34",ACTION ON HEARING LOSS
Health Adults and Community,Adult Social Care,Learning Disabilty Support - older people (65+),CLDS - Health and Wellbeing,Social Care - Residential Care,21/08/2019,5285964,"6,659.40",ACTION ON HEARING LOSS
Health Adults and Community,Public Health,Substance Misuse,"Residential Treatment (Drug and Alcohol)		",Client Treatment Services,14/08/2019,5279512,"2,520.00",Addiction Recovery Centres Ltd
Health Adults and Community,Public Health,Substance Misuse,"Residential Treatment (Drug and Alcohol)		",Client Treatment Services,14/08/2019,5279513,"2,520.00",Addiction Recovery Centres Ltd
Health Adults and Community,Adult Social Care,Information and Early Intervention,"Ageing Well		",Social Care - Prevention & Support - Block,09/08/2019,5278905,"18,079.25",AGE UK EAST LONDON
Health Adults and Community,Adult Social Care,Physical Support - older people (65+),Generic Care Packages NE Team -PS,Social Care - Homecare,23/08/2019,5286337,529.36,AGE UK EAST LONDON
Health Adults and Community,Adult Social Care,Physical Support - older people (65+),Generic Care Packages NW Team -PS,Social Care - Homecare,23/08/2019,5286335,570.08,AGE UK EAST LONDON
Health Adults and Community,Adult Social Care,Physical Support - older people (65+),Generic Care Packages NW Team -PS,Social Care - Homecare,23/08/2019,5286338,549.72,AGE UK EAST LONDON
Health Adults and Community,Adult Social Care,Physical Support - older people (65+),Generic Care Packages NW Team -PS,Social Care - Homecare,23/08/2019,5286339,549.72,AGE UK EAST LONDON
Health Adults and Community,Adult Social Care,Physical Support - older people (65+),Generic Care Packages SE Team -PS,Social Care - Homecare,23/08/2019,5286332,570.08,AGE UK EAST LONDON
Health Adults and Community,Adult Social Care,Physical Support - older people (65+),Generic Care Packages SE Team -PS,Social Care - Homecare,23/08/2019,5286333,305.40,AGE UK EAST LONDON
Health Adults and Community,Adult Social Care,Learning Disabilty Support - older people (65+),CLDS - Health and Wellbeing,Social Care - Residential Care,28/08/2019,5287536,"9,949.72",AITCH CARE HOMES LONDON LTD
Health Adults and Community,Adult Social Care,Learning Disabilty Support - older people (65+),CLDS - Health and Wellbeing,Social Care - Residential Care,28/08/2019,5287550,"8,246.84",AITCH CARE HOMES LONDON LTD
Health Adults and Community,Adult Social Care,Mental Health Support - adults (18-64),Cmht Stepney / Wapping,Social Care - Residential Care,28/08/2019,5287441,"2,012.97",AK SUPPORTED HOUSING LTD
Health Adults and Community,Adult Social Care,Physical Support - older people (65+),Generic Care Packages NW Team -PS,Social Care - Nursing Care,28/08/2019,5287660,"5,285.90",Alexander Court
Health Adults and Community,Public Health,Substance Misuse,"Contracted Services (Drug and Alcohol)		",Payments to Private Contractors - Pharmacies,30/08/2019,5286652,940.90,Ali's Pharmacy
Health Adults and Community,Adult Social Care,Physical Support - older people (65+),Generic Care Packages NE Team -PS,Social Care - Direct Payments,21/08/2019,5284184,"2,133.42",Redacted Section 40 FOI Act
Health Adults and Community,Public Health,Substance Misuse,"Contracted Services (Drug and Alcohol)		",Payments to Private Contractors - Pharmacies,28/08/2019,5286795,410.10,ALLENS PHARMACY
Health Adults and Community,Adult Social Care,Physical Support - older people (65+),Generic Care Packages NW Team -PS,Social Care - Residential Care,02/08/2019,5274536,"1,923.86",ALTON HOUSE
Health Adults and Community,Adult Social Care,Physical Support - older people (65+),Generic Care Packages NW Team -PS,Social Care - Residential Care,02/08/2019,5274567,"-1,146.60",ALTON HOUSE
Health Adults and Community,Adult Social Care,Physical Support - older people (65+),Generic Care Packages NW Team -PS,Social Care - Residential Care,28/08/2019,5287265,"1,923.86",ALTON HOUSE
Health Adults and Community,Adult Social Care,Physical Support - older people (65+),Generic Care Packages NW Team -PS,Social Care - Residential Care,28/08/2019,5287295,"-1,146.60",ALTON HOUSE
Health Adults and Community,Adult Social Care,Information and Early Intervention,"Ageing Well		",Social Care - Old People-Supp Needs,23/08/2019,5286272,400.00,Alzheimer's Society
Health Adults and Community,Adult Social Care,Mental Health Support - adults (18-64),MH SLA Contracts,Social Care - Prevention & Support - Block,14/08/2019,5281588,"6,243.00",Alzheimer's Society
Health Adults and Community,Adult Social Care,Mental Health Support - adults (18-64),MH SLA Contracts,Social Care - Prevention & Support - Block,14/08/2019,5281589,"13,732.25",Alzheimer's Society
Health Adults and Community,Adult Social Care,Mental Health Support - adults (18-64),MH SLA Contracts,Social Care - Prevention & Support - Block,14/08/2019,5281590,"6,243.00",Alzheimer's Society
Health Adults and Community,Adult Social Care,Mental Health Support - adults (18-64),MH SLA Contracts,Social Care - Prevention & Support - Block,14/08/2019,5281591,"13,734.00",Alzheimer's Society
Health Adults and Community,Adult Social Care,Mental Health Support - adults (18-64),MH SLA Contracts,Social Care - Prevention & Support - Block,23/08/2019,5286445,"13,732.25",Alzheimer's Society
Health Adults and Community,Adult Social Care,Mental Health Support - adults (18-64),"BCF-BME Incl and Dementia Caf�					",Social Care - Prevention & Support - Block,23/08/2019,5286445,"-7,489.25",Alzheimer's Society
Health Adults and Community,Adult Social Care,Learning Disabilty Support - older people (65+),CLDS - Health and Wellbeing,Social Care - Residential Care,07/08/2019,5275525,"8,356.71",Amber Care East Anglia Ltd
Health Adults and Community,Adult Social Care,Learning Disabilty Support - older people (65+),CLDS - Health and Wellbeing,Social Care - Residential Care,28/08/2019,5287658,"8,356.71",Amber Care East Anglia Ltd
Health Adults and Community,Adult Social Care,Physical Support - older people (65+),Generic Care Packages NE Team -PS,Social Care - Residential Care,16/08/2019,5282345,814.29,Anchor Hanover Group - St Josephs
Health Adults and Community,Adult Social Care,Physical Support - older people (65+),Generic Care Packages NE Team -PS,Social Care - Residential Care,16/08/2019,5282346,950.00,Anchor Hanover Group - St Josephs
Health Adults and Community,Adult Social Care,Physical Support - older people (65+),Generic Care Packages NE Team -PS,Social Care - Residential Care,02/08/2019,5274552,"2,568.22",ANCHOR TRUST HOMES ACCOUNT
Health Adults and Community,Adult Social Care,Physical Support - older people (65+),Generic Care Packages NE Team -PS,Social Care - Residential Care,02/08/2019,5274565,"2,556.26",ANCHOR TRUST HOMES ACCOUNT
Health Adults and Community,Adult Social Care,Physical Support - older people (65+),Generic Care Packages NE Team -PS,Social Care - Residential Care,02/08/2019,5274598,"2,556.26",ANCHOR TRUST HOMES ACCOUNT
Health Adults and Community,Adult Social Care,Physical Support - older people (65+),Generic Care Packages NE Team -PS,Social Care - Residential Care,02/08/2019,5274678,"2,556.26",ANCHOR TRUST HOMES ACCOUNT
Health Adults and Community,Adult Social Care,Physical Support - older people (65+),Generic Care Packages NE Team -PS,Social Care - Residential Care,14/08/2019,5280145,"4,456.72",ANCHOR TRUST HOMES ACCOUNT
Health Adults and Community,Adult Social Care,Physical Support - older people (65+),Generic Care Packages NE Team -PS,Social Care - Residential Care,28/08/2019,5287281,"2,568.21",ANCHOR TRUST HOMES ACCOUNT
Health Adults and Community,Adult Social Care,Physical Support - older people (65+),Generic Care Packages NE Team -PS,Social Care - Residential Care,28/08/2019,5287293,"2,556.26",ANCHOR TRUST HOMES ACCOUNT
Health Adults and Community,Adult Social Care,Physical Support - older people (65+),Generic Care Packages NE Team -PS,Social Care - Residential Care,28/08/2019,5287326,"2,556.26",ANCHOR TRUST HOMES ACCOUNT
Health Adults and Community,Adult Social Care,Physical Support - older people (65+),Generic Care Packages NE Team -PS,Social Care - Residential Care,28/08/2019,5287399,"2,556.26",ANCHOR TRUST HOMES ACCOUNT
Health Adults and Community,Adult Social Care,Physical Support - older people (65+),Generic Care Packages NE Team -PS,Social Care - Residential Care,28/08/2019,5287409,"3,687.19",ANCHOR TRUST HOMES ACCOUNT
Health Adults and Community,Adult Social Care,Physical Support - older people (65+),Generic Care Packages NW Team -PS,Social Care - Residential Care,02/08/2019,5274555,"1,226.05",ANCHOR TRUST HOMES ACCOUNT
Health Adults and Community,Adult Social Care,Physical Support - older people (65+),Generic Care Packages NW Team -PS,Social Care - Residential Care,02/08/2019,5274566,"2,191.04",ANCHOR TRUST HOMES ACCOUNT
Health Adults and Community,Adult Social Care,Physical Support - older people (65+),Generic Care Packages NW Team -PS,Social Care - Residential Care,02/08/2019,5274568,"2,556.26",ANCHOR TRUST HOMES ACCOUNT
Health Adults and Community,Adult Social Care,Physical Support - older people (65+),Generic Care Packages NW Team -PS,Social Care - Residential Care,02/08/2019,5274593,"2,556.26",ANCHOR TRUST HOMES ACCOUNT
Health Adults and Community,Adult Social Care,Physical Support - older people (65+),Generic Care Packages NW Team -PS,Social Care - Residential Care,02/08/2019,5274604,"2,191.04",ANCHOR TRUST HOMES ACCOUNT
Health Adults and Community,Adult Social Care,Physical Support - older people (65+),Generic Care Packages NW Team -PS,Social Care - Residential Care,02/08/2019,5274668,494.75,ANCHOR TRUST HOMES ACCOUNT
Health Adults and Community,Adult Social Care,Physical Support - older people (65+),Generic Care Packages NW Team -PS,Social Care - Residential Care,02/08/2019,5274670,"2,556.26",ANCHOR TRUST HOMES ACCOUNT
Health Adults and Community,Adult Social Care,Physical Support - older people (65+),Generic Care Packages NW Team -PS,Social Care - Residential Care,02/08/2019,5274673,"2,191.04",ANCHOR TRUST HOMES ACCOUNT
Health Adults and Community,Adult Social Care,Physical Support - older people (65+),Generic Care Packages NW Team -PS,Social Care - Residential Care,09/08/2019,5278918,577.22,ANCHOR TRUST HOMES ACCOUNT
Health Adults and Community,Adult Social Care,Physical Support - older people (65+),Generic Care Packages NW Team -PS,Social Care - Residential Care,28/08/2019,5287284,"1,226.05",ANCHOR TRUST HOMES ACCOUNT
Health Adults and Community,Adult Social Care,Physical Support - older people (65+),Generic Care Packages NW Team -PS,Social Care - Residential Care,28/08/2019,5287294,"2,191.03",ANCHOR TRUST HOMES ACCOUNT
Health Adults and Community,Adult Social Care,Physical Support - older people (65+),Generic Care Packages NW Team -PS,Social Care - Residential Care,28/08/2019,5287296,"2,556.26",ANCHOR TRUST HOMES ACCOUNT
Health Adults and Community,Adult Social Care,Physical Support - older people (65+),Generic Care Packages NW Team -PS,Social Care - Residential Care,28/08/2019,5287321,"2,556.26",ANCHOR TRUST HOMES ACCOUNT
Health Adults and Community,Adult Social Care,Physical Support - older people (65+),Generic Care Packages NW Team -PS,Social Care - Residential Care,28/08/2019,5287332,"2,191.03",ANCHOR TRUST HOMES ACCOUNT
Health Adults and Community,Adult Social Care,Physical Support - older people (65+),Generic Care Packages NW Team -PS,Social Care - Residential Care,28/08/2019,5287394,"2,556.26",ANCHOR TRUST HOMES ACCOUNT
Health Adults and Community,Adult Social Care,Physical Support - older people (65+),Generic Care Packages NW Team -PS,Social Care - Residential Care,28/08/2019,5287396,"2,191.03",ANCHOR TRUST HOMES ACCOUNT
Health Adults and Community,Adult Social Care,Physical Support - older people (65+),Generic Care Packages NW Team -PS,Social Care - Residential Care,28/08/2019,5287406,"2,556.26",ANCHOR TRUST HOMES ACCOUNT
Health Adults and Community,Adult Social Care,Physical Support - older people (65+),Generic Care Packages NW Team -PS,Social Care - Prevention & Support,02/08/2019,5274673,449.46,ANCHOR TRUST HOMES ACCOUNT
Health Adults and Community,Adult Social Care,Physical Support - older people (65+),Generic Care Packages NW Team -PS,Social Care - Prevention & Support,28/08/2019,5287396,449.45,ANCHOR TRUST HOMES ACCOUNT
Health Adults and Community,Adult Social Care,Physical Support - older people (65+),Generic Care Packages SE Team -PS,Social Care - Residential Care,02/08/2019,5274570,"2,556.26",ANCHOR TRUST HOMES ACCOUNT
Health Adults and Community,Adult Social Care,Physical Support - older people (65+),Generic Care Packages SE Team -PS,Social Care - Residential Care,28/08/2019,5287298,"2,556.26",ANCHOR TRUST HOMES ACCOUNT
Health Adults and Community,Adult Social Care,Mental Health Support - adults (18-64),Cmht For Older People,Social Care - Residential Care,02/08/2019,5274602,"2,191.04",ANCHOR TRUST HOMES ACCOUNT
Health Adults and Community,Adult Social Care,Mental Health Support - adults (18-64),Cmht For Older People,Social Care - Residential Care,28/08/2019,5287330,"2,191.03",ANCHOR TRUST HOMES ACCOUNT
Health Adults and Community,Adult Social Care,Mental Health Support - adults (18-64),Cmht For Older People,Social Care - Prevention & Support,02/08/2019,5274602,367.44,ANCHOR TRUST HOMES ACCOUNT
Health Adults and Community,Adult Social Care,Mental Health Support - adults (18-64),Cmht For Older People,Social Care - Prevention & Support,28/08/2019,5287330,367.44,ANCHOR TRUST HOMES ACCOUNT
Health Adults and Community,Adult Social Care,Mental Health Support - adults (18-64),"Generic Care Packages NW Team-MH						",Social Care - Residential Care,02/08/2019,5274569,"2,556.26",ANCHOR TRUST HOMES ACCOUNT
Health Adults and Community,Adult Social Care,Mental Health Support - adults (18-64),"Generic Care Packages NW Team-MH						",Social Care - Residential Care,28/08/2019,5287297,"2,556.26",ANCHOR TRUST HOMES ACCOUNT
Health Adults and Community,Adult Social Care,Mental Health Support - adults (18-64),Cmht Bow / Poplar North,Social Care - Supported Living,28/08/2019,5288976,"5,650.85",ANGEL SUPPORT LIVING LTD
Health Adults and Community,Adult Social Care,Mental Health Support - adults (18-64),Cmht Stepney / Wapping,Social Care - Supported Living,28/08/2019,5287661,"2,435.71",ANGEL SUPPORT LIVING LTD
Health Adults and Community,Adult Social Care,Learning Disabilty Support - older people (65+),CLDS - Health and Wellbeing,Social Care - Residential Care,28/08/2019,5287579,"3,270.33",ANGEL SUPPORT LIVING LTD
Health Adults and Community,Adult Social Care,Learning Disabilty Support - older people (65+),CLDS - Health and Wellbeing,Social Care - Residential Care,28/08/2019,5287587,"1,638.57",ANGEL SUPPORT LIVING LTD
Health Adults and Community,Adult Social Care,Mental Health Support - adults (18-64),Cmht For Older People,Social Care - Nursing Care,21/08/2019,5284359,"5,934.06",Anisha Grange
Health Adults and Community,Adult Social Care,Physical Support - older people (65+),Generic Care Packages NW Team -PS,Social Care - Homecare,07/08/2019,5275600,454.31,APASENTH
Health Adults and Community,Adult Social Care,Physical Support - older people (65+),Generic Care Packages NW Team -PS,Social Care - Homecare,07/08/2019,5275614,285.79,APASENTH
Health Adults and Community,Adult Social Care,Physical Support - older people (65+),Generic Care Packages NW Team -PS,Social Care - Homecare,07/08/2019,5275619,557.54,APASENTH
Health Adults and Community,Adult Social Care,Physical Support - older people (65+),Generic Care Packages NW Team -PS,Social Care - Homecare,07/08/2019,5275777,336.08,APASENTH
Health Adults and Community,Adult Social Care,Physical Support - older people (65+),Generic Care Packages NW Team -PS,Social Care - Homecare,07/08/2019,5275783,427.00,APASENTH
